Workbook

Sheet الاجمالى
A1: إجمالى أرصدة التوكيلات 8-2-2025
A2: م | B2: الكود | C2: الصنف | D2: الوحدة | E2: الرصيد الدفترى بالكرتونة | F2: تاريخ الانتاج | T2: الرصيد الفعلى بالكرتونة
F3: 2024-01-01 | G3: 2024-02-01 | H3: 2024-03-01 | I3: 2024-04-01 | J3: 2024-05-01 | K3: 2024-06-01 | L3: 2024-07-01 | M3: 2024-08-01 | N3: 2024-09-01 | O3: 2024-10-01 | P3: 2024-11-01 | Q3: 2024-12-01 | R3: 2025-01-01 | S3: 2025-02-01
A4: 1 | B4: 6222000901529 | C4: منتج 1 | D4: كرتونة | E4: =SUM(الاسكندرية:ادفو!E4) -> 3876 | F4: =SUM(الاسكندرية:ادفو!F4) -> 0 | G4: =SUM(الاسكندرية:ادفو!G4) -> 0 | H4: =SUM(الاسكندرية:ادفو!H4) -> 0 | I4: =SUM(الاسكندرية:ادفو!I4) -> 0 | J4: =SUM(الاسكندرية:ادفو!J4) -> 0 | K4: =SUM(الاسكندرية:ادفو!K4) -> 0 | L4: =SUM(الاسكندرية:ادفو!L4) -> 0 | M4: =SUM(الاسكندرية:ادفو!M4) -> 0 | N4: =SUM(الاسكندرية:ادفو!N4) -> 0 | O4: =SUM(الاسكندرية:ادفو!O4) -> 0 | P4: =SUM(الاسكندرية:ادفو!P4) -> 0 | Q4: =SUM(الاسكندرية:ادفو!Q4) -> 0 | R4: =SUM(الاسكندرية:ادفو!R4) -> 0 | S4: =SUM(الاسكندرية:ادفو!S4) -> 0 | T4: =SUM(F4:S4) -> 0
A5: 2 | B5: 6222000901536 | C5: منتج 2 | D5: كرتونة | E5: =SUM(الاسكندرية:ادفو!E5) -> 3165 | F5: =SUM(الاسكندرية:ادفو!F5) -> 0 | G5: =SUM(الاسكندرية:ادفو!G5) -> 0 | H5: =SUM(الاسكندرية:ادفو!H5) -> 0 | I5: =SUM(الاسكندرية:ادفو!I5) -> 0 | J5: =SUM(الاسكندرية:ادفو!J5) -> 0 | K5: =SUM(الاسكندرية:ادفو!K5) -> 0 | L5: =SUM(الاسكندرية:ادفو!L5) -> 0 | M5: =SUM(الاسكندرية:ادفو!M5) -> 0 | N5: =SUM(الاسكندرية:ادفو!N5) -> 0 | O5: =SUM(الاسكندرية:ادفو!O5) -> 0 | P5: =SUM(الاسكندرية:ادفو!P5) -> 0 | Q5: =SUM(الاسكندرية:ادفو!Q5) -> 0 | R5: =SUM(الاسكندرية:ادفو!R5) -> 0 | S5: =SUM(الاسكندرية:ادفو!S5) -> 0 | T5: =SUM(F5:S5) -> 0
A6: 3 | B6: 6222000911733 | C6: منتج 3 | D6: كرتونة | E6: =SUM(الاسكندرية:ادفو!E6) -> 3406 | F6: =SUM(الاسكندرية:ادفو!F6) -> 0 | G6: =SUM(الاسكندرية:ادفو!G6) -> 0 | H6: =SUM(الاسكندرية:ادفو!H6) -> 0 | I6: =SUM(الاسكندرية:ادفو!I6) -> 0 | J6: =SUM(الاسكندرية:ادفو!J6) -> 0 | K6: =SUM(الاسكندرية:ادفو!K6) -> 0 | L6: =SUM(الاسكندرية:ادفو!L6) -> 0 | M6: =SUM(الاسكندرية:ادفو!M6) -> 0 | N6: =SUM(الاسكندرية:ادفو!N6) -> 0 | O6: =SUM(الاسكندرية:ادفو!O6) -> 0 | P6: =SUM(الاسكندرية:ادفو!P6) -> 0 | Q6: =SUM(الاسكندرية:ادفو!Q6) -> 0 | R6: =SUM(الاسكندرية:ادفو!R6) -> 0 | S6: =SUM(الاسكندرية:ادفو!S6) -> 0 | T6: 0
A7: 4 | B7: 6222000911764 | C7: منتج 4 | D7: كرتونة | E7: =SUM(الاسكندرية:ادفو!E7) -> 2062 | F7: =SUM(الاسكندرية:ادفو!F7) -> 0 | G7: =SUM(الاسكندرية:ادفو!G7) -> 0 | H7: =SUM(الاسكندرية:ادفو!H7) -> 0 | I7: =SUM(الاسكندرية:ادفو!I7) -> 0 | J7: =SUM(الاسكندرية:ادفو!J7) -> 0 | K7: =SUM(الاسكندرية:ادفو!K7) -> 0 | L7: =SUM(الاسكندرية:ادفو!L7) -> 0 | M7: =SUM(الاسكندرية:ادفو!M7) -> 0 | N7: =SUM(الاسكندرية:ادفو!N7) -> 0 | O7: =SUM(الاسكندرية:ادفو!O7) -> 0 | P7: =SUM(الاسكندرية:ادفو!P7) -> 0 | Q7: =SUM(الاسكندرية:ادفو!Q7) -> 0 | R7: =SUM(الاسكندرية:ادفو!R7) -> 0 | S7: =SUM(الاسكندرية:ادفو!S7) -> 0 | T7: 0
A8: 5 | B8: 00743 | C8: منتج 5 | D8: كرتونة | E8: =SUM(الاسكندرية:ادفو!E8) -> 622 | F8: =SUM(الاسكندرية:ادفو!F8) -> 0 | G8: =SUM(الاسكندرية:ادفو!G8) -> 0 | H8: =SUM(الاسكندرية:ادفو!H8) -> 0 | I8: =SUM(الاسكندرية:ادفو!I8) -> 0 | J8: =SUM(الاسكندرية:ادفو!J8) -> 0 | K8: =SUM(الاسكندرية:ادفو!K8) -> 0 | L8: =SUM(الاسكندرية:ادفو!L8) -> 0 | M8: =SUM(الاسكندرية:ادفو!M8) -> 0 | N8: =SUM(الاسكندرية:ادفو!N8) -> 0 | O8: =SUM(الاسكندرية:ادفو!O8) -> 0 | P8: =SUM(الاسكندرية:ادفو!P8) -> 0 | Q8: =SUM(الاسكندرية:ادفو!Q8) -> 0 | R8: =SUM(الاسكندرية:ادفو!R8) -> 0 | S8: =SUM(الاسكندرية:ادفو!S8) -> 0 | T8: 0
A9: 6 | B9: 6222000901758 | C9: منتج 6 | D9: كرتونة | E9: =SUM(الاسكندرية:ادفو!E9) -> 6537 | F9: =SUM(الاسكندرية:ادفو!F9) -> 0 | G9: =SUM(الاسكندرية:ادفو!G9) -> 0 | H9: =SUM(الاسكندرية:ادفو!H9) -> 0 | I9: =SUM(الاسكندرية:ادفو!I9) -> 0 | J9: =SUM(الاسكندرية:ادفو!J9) -> 0 | K9: =SUM(الاسكندرية:ادفو!K9) -> 0 | L9: =SUM(الاسكندرية:ادفو!L9) -> 0 | M9: =SUM(الاسكندرية:ادفو!M9) -> 0 | N9: =SUM(الاسكندرية:ادفو!N9) -> 0 | O9: =SUM(الاسكندرية:ادفو!O9) -> 0 | P9: =SUM(الاسكندرية:ادفو!P9) -> 0 | Q9: =SUM(الاسكندرية:ادفو!Q9) -> 0 | R9: =SUM(الاسكندرية:ادفو!R9) -> 0 | S9: =SUM(الاسكندرية:ادفو!S9) -> 0 | T9: 0
A10: 7 | B10: 6222000912020 | C10: منتج 7 | D10: كرتونة | E10: =SUM(الاسكندرية:ادفو!E10) -> 1110 | F10: =SUM(الاسكندرية:ادفو!F10) -> 0 | G10: =SUM(الاسكندرية:ادفو!G10) -> 0 | H10: =SUM(الاسكندرية:ادفو!H10) -> 0 | I10: =SUM(الاسكندرية:ادفو!I10) -> 0 | J10: =SUM(الاسكندرية:ادفو!J10) -> 0 | K10: =SUM(الاسكندرية:ادفو!K10) -> 0 | L10: =SUM(الاسكندرية:ادفو!L10) -> 0 | M10: =SUM(الاسكندرية:ادفو!M10) -> 0 | N10: =SUM(الاسكندرية:ادفو!N10) -> 0 | O10: =SUM(الاسكندرية:ادفو!O10) -> 0 | P10: =SUM(الاسكندرية:ادفو!P10) -> 0 | Q10: =SUM(الاسكندرية:ادفو!Q10) -> 0 | R10: =SUM(الاسكندرية:ادفو!R10) -> 0 | S10: =SUM(الاسكندرية:ادفو!S10) -> 0 | T10: 0
A11: 8 | B11: 6222000909815 | C11: منتج 8 | D11: كرتونة | E11: =SUM(الاسكندرية:ادفو!E11) -> 4323 | F11: =SUM(الاسكندرية:ادفو!F11) -> 0 | G11: =SUM(الاسكندرية:ادفو!G11) -> 0 | H11: =SUM(الاسكندرية:ادفو!H11) -> 0 | I11: =SUM(الاسكندرية:ادفو!I11) -> 0 | J11: =SUM(الاسكندرية:ادفو!J11) -> 0 | K11: =SUM(الاسكندرية:ادفو!K11) -> 0 | L11: =SUM(الاسكندرية:ادفو!L11) -> 0 | M11: =SUM(الاسكندرية:ادفو!M11) -> 0 | N11: =SUM(الاسكندرية:ادفو!N11) -> 0 | O11: =SUM(الاسكندرية:ادفو!O11) -> 0 | P11: =SUM(الاسكندرية:ادفو!P11) -> 0 | Q11: =SUM(الاسكندرية:ادفو!Q11) -> 0 | R11: =SUM(الاسكندرية:ادفو!R11) -> 0 | S11: =SUM(الاسكندرية:ادفو!S11) -> 0 | T11: 0
A12: 9 | B12: 6222000908610 | C12: منتج 9 | D12: كرتونة | E12: =SUM(الاسكندرية:ادفو!E12) -> 892 | F12: =SUM(الاسكندرية:ادفو!F12) -> 0 | G12: =SUM(الاسكندرية:ادفو!G12) -> 0 | H12: =SUM(الاسكندرية:ادفو!H12) -> 0 | I12: =SUM(الاسكندرية:ادفو!I12) -> 0 | J12: =SUM(الاسكندرية:ادفو!J12) -> 0 | K12: =SUM(الاسكندرية:ادفو!K12) -> 0 | L12: =SUM(الاسكندرية:ادفو!L12) -> 0 | M12: =SUM(الاسكندرية:ادفو!M12) -> 0 | N12: =SUM(الاسكندرية:ادفو!N12) -> 0 | O12: =SUM(الاسكندرية:ادفو!O12) -> 0 | P12: =SUM(الاسكندرية:ادفو!P12) -> 0 | Q12: =SUM(الاسكندرية:ادفو!Q12) -> 0 | R12: =SUM(الاسكندرية:ادفو!R12) -> 0 | S12: =SUM(الاسكندرية:ادفو!S12) -> 0 | T12: 0
A13: 10 | B13: 6222000909891 | C13: منتج 10 | D13: كرتونة | E13: =SUM(الاسكندرية:ادفو!E13) -> 1785 | F13: =SUM(الاسكندرية:ادفو!F13) -> 0 | G13: =SUM(الاسكندرية:ادفو!G13) -> 0 | H13: =SUM(الاسكندرية:ادفو!H13) -> 0 | I13: =SUM(الاسكندرية:ادفو!I13) -> 0 | J13: =SUM(الاسكندرية:ادفو!J13) -> 0 | K13: =SUM(الاسكندرية:ادفو!K13) -> 0 | L13: =SUM(الاسكندرية:ادفو!L13) -> 0 | M13: =SUM(الاسكندرية:ادفو!M13) -> 0 | N13: =SUM(الاسكندرية:ادفو!N13) -> 0 | O13: =SUM(الاسكندرية:ادفو!O13) -> 0 | P13: =SUM(الاسكندرية:ادفو!P13) -> 0 | Q13: =SUM(الاسكندرية:ادفو!Q13) -> 0 | R13: =SUM(الاسكندرية:ادفو!R13) -> 0 | S13: =SUM(الاسكندرية:ادفو!S13) -> 0 | T13: 0
A14: 11 | B14: 6222000911757 | C14: منتج 11 | D14: كرتونة | E14: =SUM(الاسكندرية:ادفو!E14) -> 0 | F14: =SUM(الاسكندرية:ادفو!F14) -> 0 | G14: =SUM(الاسكندرية:ادفو!G14) -> 0 | H14: =SUM(الاسكندرية:ادفو!H14) -> 0 | I14: =SUM(الاسكندرية:ادفو!I14) -> 0 | J14: =SUM(الاسكندرية:ادفو!J14) -> 0 | K14: =SUM(الاسكندرية:ادفو!K14) -> 0 | L14: =SUM(الاسكندرية:ادفو!L14) -> 0 | M14: =SUM(الاسكندرية:ادفو!M14) -> 0 | N14: =SUM(الاسكندرية:ادفو!N14) -> 0 | O14: =SUM(الاسكندرية:ادفو!O14) -> 0 | P14: =SUM(الاسكندرية:ادفو!P14) -> 0 | Q14: =SUM(الاسكندرية:ادفو!Q14) -> 0 | R14: =SUM(الاسكندرية:ادفو!R14) -> 0 | S14: =SUM(الاسكندرية:ادفو!S14) -> 0 | T14: 0
A15: 12 | B15: 00744 | C15: منتج 12 | D15: كرتونة | E15: =SUM(الاسكندرية:ادفو!E15) -> 1839 | F15: =SUM(الاسكندرية:ادفو!F15) -> 0 | G15: =SUM(الاسكندرية:ادفو!G15) -> 0 | H15: =SUM(الاسكندرية:ادفو!H15) -> 0 | I15: =SUM(الاسكندرية:ادفو!I15) -> 0 | J15: =SUM(الاسكندرية:ادفو!J15) -> 0 | K15: =SUM(الاسكندرية:ادفو!K15) -> 0 | L15: =SUM(الاسكندرية:ادفو!L15) -> 0 | M15: =SUM(الاسكندرية:ادفو!M15) -> 0 | N15: =SUM(الاسكندرية:ادفو!N15) -> 0 | O15: =SUM(الاسكندرية:ادفو!O15) -> 0 | P15: =SUM(الاسكندرية:ادفو!P15) -> 0 | Q15: =SUM(الاسكندرية:ادفو!Q15) -> 0 | R15: =SUM(الاسكندرية:ادفو!R15) -> 0 | S15: =SUM(الاسكندرية:ادفو!S15) -> 0 | T15: 0
A16: 13 | B16: 6222000901642 | C16: منتج 13 | D16: كرتونة | E16: =SUM(الاسكندرية:ادفو!E16) -> 6969.5 | F16: =SUM(الاسكندرية:ادفو!F16) -> 0 | G16: =SUM(الاسكندرية:ادفو!G16) -> 0 | H16: =SUM(الاسكندرية:ادفو!H16) -> 0 | I16: =SUM(الاسكندرية:ادفو!I16) -> 0 | J16: =SUM(الاسكندرية:ادفو!J16) -> 0 | K16: =SUM(الاسكندرية:ادفو!K16) -> 0 | L16: =SUM(الاسكندرية:ادفو!L16) -> 0 | M16: =SUM(الاسكندرية:ادفو!M16) -> 0 | N16: =SUM(الاسكندرية:ادفو!N16) -> 0 | O16: =SUM(الاسكندرية:ادفو!O16) -> 0 | P16: =SUM(الاسكندرية:ادفو!P16) -> 0 | Q16: =SUM(الاسكندرية:ادفو!Q16) -> 0 | R16: =SUM(الاسكندرية:ادفو!R16) -> 0 | S16: =SUM(الاسكندرية:ادفو!S16) -> 0 | T16: 0
A17: 14 | B17: 6222000912037 | C17: منتج 14 | D17: كرتونة | E17: =SUM(الاسكندرية:ادفو!E17) -> 1560 | F17: =SUM(الاسكندرية:ادفو!F17) -> 0 | G17: =SUM(الاسكندرية:ادفو!G17) -> 0 | H17: =SUM(الاسكندرية:ادفو!H17) -> 0 | I17: =SUM(الاسكندرية:ادفو!I17) -> 0 | J17: =SUM(الاسكندرية:ادفو!J17) -> 0 | K17: =SUM(الاسكندرية:ادفو!K17) -> 0 | L17: =SUM(الاسكندرية:ادفو!L17) -> 0 | M17: =SUM(الاسكندرية:ادفو!M17) -> 0 | N17: =SUM(الاسكندرية:ادفو!N17) -> 0 | O17: =SUM(الاسكندرية:ادفو!O17) -> 0 | P17: =SUM(الاسكندرية:ادفو!P17) -> 0 | Q17: =SUM(الاسكندرية:ادفو!Q17) -> 0 | R17: =SUM(الاسكندرية:ادفو!R17) -> 0 | S17: =SUM(الاسكندرية:ادفو!S17) -> 0 | T17: 0
A18: 15 | B18: 6222000909808 | C18: منتج 15 | D18: كرتونة | E18: =SUM(الاسكندرية:ادفو!E18) -> 1789 | F18: =SUM(الاسكندرية:ادفو!F18) -> 0 | G18: =SUM(الاسكندرية:ادفو!G18) -> 0 | H18: =SUM(الاسكندرية:ادفو!H18) -> 0 | I18: =SUM(الاسكندرية:ادفو!I18) -> 0 | J18: =SUM(الاسكندرية:ادفو!J18) -> 0 | K18: =SUM(الاسكندرية:ادفو!K18) -> 0 | L18: =SUM(الاسكندرية:ادفو!L18) -> 0 | M18: =SUM(الاسكندرية:ادفو!M18) -> 0 | N18: =SUM(الاسكندرية:ادفو!N18) -> 0 | O18: =SUM(الاسكندرية:ادفو!O18) -> 0 | P18: =SUM(الاسكندرية:ادفو!P18) -> 0 | Q18: =SUM(الاسكندرية:ادفو!Q18) -> 0 | R18: =SUM(الاسكندرية:ادفو!R18) -> 0 | S18: =SUM(الاسكندرية:ادفو!S18) -> 0 | T18: 0
A19: 16 | B19: 6222000905268 | C19: منتج 16 | D19: كرتونة | E19: =SUM(الاسكندرية:ادفو!E19) -> 52 | F19: =SUM(الاسكندرية:ادفو!F19) -> 0 | G19: =SUM(الاسكندرية:ادفو!G19) -> 0 | H19: =SUM(الاسكندرية:ادفو!H19) -> 0 | I19: =SUM(الاسكندرية:ادفو!I19) -> 0 | J19: =SUM(الاسكندرية:ادفو!J19) -> 0 | K19: =SUM(الاسكندرية:ادفو!K19) -> 0 | L19: =SUM(الاسكندرية:ادفو!L19) -> 0 | M19: =SUM(الاسكندرية:ادفو!M19) -> 0 | N19: =SUM(الاسكندرية:ادفو!N19) -> 0 | O19: =SUM(الاسكندرية:ادفو!O19) -> 0 | P19: =SUM(الاسكندرية:ادفو!P19) -> 0 | Q19: =SUM(الاسكندرية:ادفو!Q19) -> 0 | R19: =SUM(الاسكندرية:ادفو!R19) -> 0 | S19: =SUM(الاسكندرية:ادفو!S19) -> 0 | T19: 0
A20: 17 | B20: 6222000907583 | C20: منتج 17 | D20: كرتونة | E20: =SUM(الاسكندرية:ادفو!E20) -> 704 | F20: =SUM(الاسكندرية:ادفو!F20) -> 0 | G20: =SUM(الاسكندرية:ادفو!G20) -> 0 | H20: =SUM(الاسكندرية:ادفو!H20) -> 0 | I20: =SUM(الاسكندرية:ادفو!I20) -> 0 | J20: =SUM(الاسكندرية:ادفو!J20) -> 0 | K20: =SUM(الاسكندرية:ادفو!K20) -> 0 | L20: =SUM(الاسكندرية:ادفو!L20) -> 0 | M20: =SUM(الاسكندرية:ادفو!M20) -> 0 | N20: =SUM(الاسكندرية:ادفو!N20) -> 0 | O20: =SUM(الاسكندرية:ادفو!O20) -> 0 | P20: =SUM(الاسكندرية:ادفو!P20) -> 0 | Q20: =SUM(الاسكندرية:ادفو!Q20) -> 0 | R20: =SUM(الاسكندرية:ادفو!R20) -> 0 | S20: =SUM(الاسكندرية:ادفو!S20) -> 0 | T20: 0
A21: 18 | B21: 6222000909884 | C21: منتج 18 | D21: كرتونة | E21: =SUM(الاسكندرية:ادفو!E21) -> 2191 | F21: =SUM(الاسكندرية:ادفو!F21) -> 0 | G21: =SUM(الاسكندرية:ادفو!G21) -> 0 | H21: =SUM(الاسكندرية:ادفو!H21) -> 0 | I21: =SUM(الاسكندرية:ادفو!I21) -> 0 | J21: =SUM(الاسكندرية:ادفو!J21) -> 0 | K21: =SUM(الاسكندرية:ادفو!K21) -> 0 | L21: =SUM(الاسكندرية:ادفو!L21) -> 0 | M21: =SUM(الاسكندرية:ادفو!M21) -> 0 | N21: =SUM(الاسكندرية:ادفو!N21) -> 0 | O21: =SUM(الاسكندرية:ادفو!O21) -> 0 | P21: =SUM(الاسكندرية:ادفو!P21) -> 0 | Q21: =SUM(الاسكندرية:ادفو!Q21) -> 0 | R21: =SUM(الاسكندرية:ادفو!R21) -> 0 | S21: =SUM(الاسكندرية:ادفو!S21) -> 0 | T21: 0
A22: 19 | B22: 002770 | C22: منتج 19 | D22: كرتونة | E22: =SUM(الاسكندرية:ادفو!E22) -> 352 | F22: =SUM(الاسكندرية:ادفو!F22) -> 0 | G22: =SUM(الاسكندرية:ادفو!G22) -> 0 | H22: =SUM(الاسكندرية:ادفو!H22) -> 0 | I22: =SUM(الاسكندرية:ادفو!I22) -> 0 | J22: =SUM(الاسكندرية:ادفو!J22) -> 0 | K22: =SUM(الاسكندرية:ادفو!K22) -> 0 | L22: =SUM(الاسكندرية:ادفو!L22) -> 0 | M22: =SUM(الاسكندرية:ادفو!M22) -> 0 | N22: =SUM(الاسكندرية:ادفو!N22) -> 0 | O22: =SUM(الاسكندرية:ادفو!O22) -> 0 | P22: =SUM(الاسكندرية:ادفو!P22) -> 0 | Q22: =SUM(الاسكندرية:ادفو!Q22) -> 0 | R22: =SUM(الاسكندرية:ادفو!R22) -> 0 | S22: =SUM(الاسكندرية:ادفو!S22) -> 0 | T22: 0
A23: 20 | B23: 6222000912525 | C23: منتج 20 | D23: كرتونة | E23: =SUM(الاسكندرية:ادفو!E23) -> 1132 | F23: =SUM(الاسكندرية:ادفو!F23) -> 0 | G23: =SUM(الاسكندرية:ادفو!G23) -> 0 | H23: =SUM(الاسكندرية:ادفو!H23) -> 0 | I23: =SUM(الاسكندرية:ادفو!I23) -> 0 | J23: =SUM(الاسكندرية:ادفو!J23) -> 0 | K23: =SUM(الاسكندرية:ادفو!K23) -> 0 | L23: =SUM(الاسكندرية:ادفو!L23) -> 0 | M23: =SUM(الاسكندرية:ادفو!M23) -> 0 | N23: =SUM(الاسكندرية:ادفو!N23) -> 0 | O23: =SUM(الاسكندرية:ادفو!O23) -> 0 | P23: =SUM(الاسكندرية:ادفو!P23) -> 0 | Q23: =SUM(الاسكندرية:ادفو!Q23) -> 0 | R23: =SUM(الاسكندرية:ادفو!R23) -> 0 | S23: =SUM(الاسكندرية:ادفو!S23) -> 0 | T23: 0
A24: 21 | B24: 6222000912518 | C24: منتج 21 | D24: كرتونة | E24: =SUM(الاسكندرية:ادفو!E24) -> 1767 | F24: =SUM(الاسكندرية:ادفو!F24) -> 0 | G24: =SUM(الاسكندرية:ادفو!G24) -> 0 | H24: =SUM(الاسكندرية:ادفو!H24) -> 0 | I24: =SUM(الاسكندرية:ادفو!I24) -> 0 | J24: =SUM(الاسكندرية:ادفو!J24) -> 0 | K24: =SUM(الاسكندرية:ادفو!K24) -> 0 | L24: =SUM(الاسكندرية:ادفو!L24) -> 0 | M24: =SUM(الاسكندرية:ادفو!M24) -> 0 | N24: =SUM(الاسكندرية:ادفو!N24) -> 0 | O24: =SUM(الاسكندرية:ادفو!O24) -> 0 | P24: =SUM(الاسكندرية:ادفو!P24) -> 0 | Q24: =SUM(الاسكندرية:ادفو!Q24) -> 0 | R24: =SUM(الاسكندرية:ادفو!R24) -> 0 | S24: =SUM(الاسكندرية:ادفو!S24) -> 0 | T24: 0
A25: 22 | B25: 6222000908566 | C25: منتج 22 | D25: كرتونة | E25: =SUM(الاسكندرية:ادفو!E25) -> 853.5 | F25: =SUM(الاسكندرية:ادفو!F25) -> 0 | G25: =SUM(الاسكندرية:ادفو!G25) -> 0 | H25: =SUM(الاسكندرية:ادفو!H25) -> 0 | I25: =SUM(الاسكندرية:ادفو!I25) -> 0 | J25: =SUM(الاسكندرية:ادفو!J25) -> 0 | K25: =SUM(الاسكندرية:ادفو!K25) -> 0 | L25: =SUM(الاسكندرية:ادفو!L25) -> 0 | M25: =SUM(الاسكندرية:ادفو!M25) -> 0 | N25: =SUM(الاسكندرية:ادفو!N25) -> 0 | O25: =SUM(الاسكندرية:ادفو!O25) -> 0 | P25: =SUM(الاسكندرية:ادفو!P25) -> 0 | Q25: =SUM(الاسكندرية:ادفو!Q25) -> 0 | R25: =SUM(الاسكندرية:ادفو!R25) -> 0 | S25: =SUM(الاسكندرية:ادفو!S25) -> 0 | T25: 0
A26: 23 | B26: 6222000908573 | C26: منتج 23 | D26: كرتونة | E26: =SUM(الاسكندرية:ادفو!E26) -> 1375 | F26: =SUM(الاسكندرية:ادفو!F26) -> 0 | G26: =SUM(الاسكندرية:ادفو!G26) -> 0 | H26: =SUM(الاسكندرية:ادفو!H26) -> 0 | I26: =SUM(الاسكندرية:ادفو!I26) -> 0 | J26: =SUM(الاسكندرية:ادفو!J26) -> 0 | K26: =SUM(الاسكندرية:ادفو!K26) -> 0 | L26: =SUM(الاسكندرية:ادفو!L26) -> 0 | M26: =SUM(الاسكندرية:ادفو!M26) -> 0 | N26: =SUM(الاسكندرية:ادفو!N26) -> 0 | O26: =SUM(الاسكندرية:ادفو!O26) -> 0 | P26: =SUM(الاسكندرية:ادفو!P26) -> 0 | Q26: =SUM(الاسكندرية:ادفو!Q26) -> 0 | R26: =SUM(الاسكندرية:ادفو!R26) -> 0 | S26: =SUM(الاسكندرية:ادفو!S26) -> 0 | T26: 0
A27: 24 | B27: 6222000912501 | C27: منتج 24 | D27: كرتونة | E27: =SUM(الاسكندرية:ادفو!E27) -> 318 | F27: =SUM(الاسكندرية:ادفو!F27) -> 0 | G27: =SUM(الاسكندرية:ادفو!G27) -> 0 | H27: =SUM(الاسكندرية:ادفو!H27) -> 0 | I27: =SUM(الاسكندرية:ادفو!I27) -> 0 | J27: =SUM(الاسكندرية:ادفو!J27) -> 0 | K27: =SUM(الاسكندرية:ادفو!K27) -> 0 | L27: =SUM(الاسكندرية:ادفو!L27) -> 0 | M27: =SUM(الاسكندرية:ادفو!M27) -> 0 | N27: =SUM(الاسكندرية:ادفو!N27) -> 0 | O27: =SUM(الاسكندرية:ادفو!O27) -> 0 | P27: =SUM(الاسكندرية:ادفو!P27) -> 0 | Q27: =SUM(الاسكندرية:ادفو!Q27) -> 0 | R27: =SUM(الاسكندرية:ادفو!R27) -> 0 | S27: =SUM(الاسكندرية:ادفو!S27) -> 0 | T27: 0
A28: 25 | B28: 6222000912457 | C28: منتج 25 | D28: كرتونة | E28: =SUM(الاسكندرية:ادفو!E28) -> 556 | F28: =SUM(الاسكندرية:ادفو!F28) -> 0 | G28: =SUM(الاسكندرية:ادفو!G28) -> 0 | H28: =SUM(الاسكندرية:ادفو!H28) -> 0 | I28: =SUM(الاسكندرية:ادفو!I28) -> 0 | J28: =SUM(الاسكندرية:ادفو!J28) -> 0 | K28: =SUM(الاسكندرية:ادفو!K28) -> 0 | L28: =SUM(الاسكندرية:ادفو!L28) -> 0 | M28: =SUM(الاسكندرية:ادفو!M28) -> 0 | N28: =SUM(الاسكندرية:ادفو!N28) -> 0 | O28: =SUM(الاسكندرية:ادفو!O28) -> 0 | P28: =SUM(الاسكندرية:ادفو!P28) -> 0 | Q28: =SUM(الاسكندرية:ادفو!Q28) -> 0 | R28: =SUM(الاسكندرية:ادفو!R28) -> 0 | S28: =SUM(الاسكندرية:ادفو!S28) -> 0 | T28: 0
A29: 26 | B29: 6222000901611 | C29: منتج 26 | D29: كرتونة | E29: =SUM(الاسكندرية:ادفو!E29) -> 7761 | F29: =SUM(الاسكندرية:ادفو!F29) -> 0 | G29: =SUM(الاسكندرية:ادفو!G29) -> 0 | H29: =SUM(الاسكندرية:ادفو!H29) -> 0 | I29: =SUM(الاسكندرية:ادفو!I29) -> 0 | J29: =SUM(الاسكندرية:ادفو!J29) -> 0 | K29: =SUM(الاسكندرية:ادفو!K29) -> 0 | L29: =SUM(الاسكندرية:ادفو!L29) -> 0 | M29: =SUM(الاسكندرية:ادفو!M29) -> 0 | N29: =SUM(الاسكندرية:ادفو!N29) -> 0 | O29: =SUM(الاسكندرية:ادفو!O29) -> 0 | P29: =SUM(الاسكندرية:ادفو!P29) -> 0 | Q29: =SUM(الاسكندرية:ادفو!Q29) -> 0 | R29: =SUM(الاسكندرية:ادفو!R29) -> 0 | S29: =SUM(الاسكندرية:ادفو!S29) -> 0 | T29: 0
A30: 27 | B30: 6222000909907 | C30: منتج 27 | D30: كرتونة | E30: =SUM(الاسكندرية:ادفو!E30) -> 1472 | F30: =SUM(الاسكندرية:ادفو!F30) -> 0 | G30: =SUM(الاسكندرية:ادفو!G30) -> 0 | H30: =SUM(الاسكندرية:ادفو!H30) -> 0 | I30: =SUM(الاسكندرية:ادفو!I30) -> 0 | J30: =SUM(الاسكندرية:ادفو!J30) -> 0 | K30: =SUM(الاسكندرية:ادفو!K30) -> 0 | L30: =SUM(الاسكندرية:ادفو!L30) -> 0 | M30: =SUM(الاسكندرية:ادفو!M30) -> 0 | N30: =SUM(الاسكندرية:ادفو!N30) -> 0 | O30: =SUM(الاسكندرية:ادفو!O30) -> 0 | P30: =SUM(الاسكندرية:ادفو!P30) -> 0 | Q30: =SUM(الاسكندرية:ادفو!Q30) -> 0 | R30: =SUM(الاسكندرية:ادفو!R30) -> 0 | S30: =SUM(الاسكندرية:ادفو!S30) -> 0 | T30: 0
A31: 28 | B31: 6222000911498 | C31: منتج 28 | D31: كرتونة | E31: =SUM(الاسكندرية:ادفو!E31) -> 2180 | F31: =SUM(الاسكندرية:ادفو!F31) -> 0 | G31: =SUM(الاسكندرية:ادفو!G31) -> 0 | H31: =SUM(الاسكندرية:ادفو!H31) -> 0 | I31: =SUM(الاسكندرية:ادفو!I31) -> 0 | J31: =SUM(الاسكندرية:ادفو!J31) -> 0 | K31: =SUM(الاسكندرية:ادفو!K31) -> 0 | L31: =SUM(الاسكندرية:ادفو!L31) -> 0 | M31: =SUM(الاسكندرية:ادفو!M31) -> 0 | N31: =SUM(الاسكندرية:ادفو!N31) -> 0 | O31: =SUM(الاسكندرية:ادفو!O31) -> 0 | P31: =SUM(الاسكندرية:ادفو!P31) -> 0 | Q31: =SUM(الاسكندرية:ادفو!Q31) -> 0 | R31: =SUM(الاسكندرية:ادفو!R31) -> 0 | S31: =SUM(الاسكندرية:ادفو!S31) -> 0 | T31: 0
A32: 29 | B32: 002771 | C32: منتج 29 | D32: كرتونة | E32: =SUM(الاسكندرية:ادفو!E32) -> 42 | F32: =SUM(الاسكندرية:ادفو!F32) -> 0 | G32: =SUM(الاسكندرية:ادفو!G32) -> 0 | H32: =SUM(الاسكندرية:ادفو!H32) -> 0 | I32: =SUM(الاسكندرية:ادفو!I32) -> 0 | J32: =SUM(الاسكندرية:ادفو!J32) -> 0 | K32: =SUM(الاسكندرية:ادفو!K32) -> 0 | L32: =SUM(الاسكندرية:ادفو!L32) -> 0 | M32: =SUM(الاسكندرية:ادفو!M32) -> 0 | N32: =SUM(الاسكندرية:ادفو!N32) -> 0 | O32: =SUM(الاسكندرية:ادفو!O32) -> 0 | P32: =SUM(الاسكندرية:ادفو!P32) -> 0 | Q32: =SUM(الاسكندرية:ادفو!Q32) -> 0 | R32: =SUM(الاسكندرية:ادفو!R32) -> 0 | S32: =SUM(الاسكندرية:ادفو!S32) -> 0 | T32: 0
A33: 30 | B33: 6222000912778 | C33: منتج 30 | D33: كرتونة | E33: =SUM(الاسكندرية:ادفو!E33) -> 8117 | F33: =SUM(الاسكندرية:ادفو!F33) -> 0 | G33: =SUM(الاسكندرية:ادفو!G33) -> 0 | H33: =SUM(الاسكندرية:ادفو!H33) -> 0 | I33: =SUM(الاسكندرية:ادفو!I33) -> 0 | J33: =SUM(الاسكندرية:ادفو!J33) -> 0 | K33: =SUM(الاسكندرية:ادفو!K33) -> 0 | L33: =SUM(الاسكندرية:ادفو!L33) -> 0 | M33: =SUM(الاسكندرية:ادفو!M33) -> 0 | N33: =SUM(الاسكندرية:ادفو!N33) -> 0 | O33: =SUM(الاسكندرية:ادفو!O33) -> 0 | P33: =SUM(الاسكندرية:ادفو!P33) -> 0 | Q33: =SUM(الاسكندرية:ادفو!Q33) -> 0 | R33: =SUM(الاسكندرية:ادفو!R33) -> 0 | S33: =SUM(الاسكندرية:ادفو!S33) -> 0 | T33: 0
A34: 31 | B34: 6222000912822 | C34: منتج 31 | D34: كرتونة | E34: =SUM(الاسكندرية:ادفو!E34) -> 509 | F34: =SUM(الاسكندرية:ادفو!F34) -> 0 | G34: =SUM(الاسكندرية:ادفو!G34) -> 0 | H34: =SUM(الاسكندرية:ادفو!H34) -> 0 | I34: =SUM(الاسكندرية:ادفو!I34) -> 0 | J34: =SUM(الاسكندرية:ادفو!J34) -> 0 | K34: =SUM(الاسكندرية:ادفو!K34) -> 0 | L34: =SUM(الاسكندرية:ادفو!L34) -> 0 | M34: =SUM(الاسكندرية:ادفو!M34) -> 0 | N34: =SUM(الاسكندرية:ادفو!N34) -> 0 | O34: =SUM(الاسكندرية:ادفو!O34) -> 0 | P34: =SUM(الاسكندرية:ادفو!P34) -> 0 | Q34: =SUM(الاسكندرية:ادفو!Q34) -> 0 | R34: =SUM(الاسكندرية:ادفو!R34) -> 0 | S34: =SUM(الاسكندرية:ادفو!S34) -> 0 | T34: 0
A35: 32 | B35: 6222000912532 | C35: منتج 32 | D35: كرتونة | E35: =SUM(الاسكندرية:ادفو!E35) -> 1318 | F35: =SUM(الاسكندرية:ادفو!F35) -> 0 | G35: =SUM(الاسكندرية:ادفو!G35) -> 0 | H35: =SUM(الاسكندرية:ادفو!H35) -> 0 | I35: =SUM(الاسكندرية:ادفو!I35) -> 0 | J35: =SUM(الاسكندرية:ادفو!J35) -> 0 | K35: =SUM(الاسكندرية:ادفو!K35) -> 0 | L35: =SUM(الاسكندرية:ادفو!L35) -> 0 | M35: =SUM(الاسكندرية:ادفو!M35) -> 0 | N35: =SUM(الاسكندرية:ادفو!N35) -> 0 | O35: =SUM(الاسكندرية:ادفو!O35) -> 0 | P35: =SUM(الاسكندرية:ادفو!P35) -> 0 | Q35: =SUM(الاسكندرية:ادفو!Q35) -> 0 | R35: =SUM(الاسكندرية:ادفو!R35) -> 0 | S35: =SUM(الاسكندرية:ادفو!S35) -> 0 | T35: 0
A36: 33 | B36: 6222000901697 | C36: منتج 33 | D36: كرتونة | E36: =SUM(الاسكندرية:ادفو!E36) -> 8493 | F36: =SUM(الاسكندرية:ادفو!F36) -> 0 | G36: =SUM(الاسكندرية:ادفو!G36) -> 0 | H36: =SUM(الاسكندرية:ادفو!H36) -> 0 | I36: =SUM(الاسكندرية:ادفو!I36) -> 0 | J36: =SUM(الاسكندرية:ادفو!J36) -> 0 | K36: =SUM(الاسكندرية:ادفو!K36) -> 0 | L36: =SUM(الاسكندرية:ادفو!L36) -> 0 | M36: =SUM(الاسكندرية:ادفو!M36) -> 0 | N36: =SUM(الاسكندرية:ادفو!N36) -> 0 | O36: =SUM(الاسكندرية:ادفو!O36) -> 0 | P36: =SUM(الاسكندرية:ادفو!P36) -> 0 | Q36: =SUM(الاسكندرية:ادفو!Q36) -> 0 | R36: =SUM(الاسكندرية:ادفو!R36) -> 0 | S36: =SUM(الاسكندرية:ادفو!S36) -> 0 | T36: 0
A37: 34 | B37: 6222000911481 | C37: منتج 34 | D37: كرتونة | E37: =SUM(الاسكندرية:ادفو!E37) -> 0 | F37: =SUM(الاسكندرية:ادفو!F37) -> 0 | G37: =SUM(الاسكندرية:ادفو!G37) -> 0 | H37: =SUM(الاسكندرية:ادفو!H37) -> 0 | I37: =SUM(الاسكندرية:ادفو!I37) -> 0 | J37: =SUM(الاسكندرية:ادفو!J37) -> 0 | K37: =SUM(الاسكندرية:ادفو!K37) -> 0 | L37: =SUM(الاسكندرية:ادفو!L37) -> 0 | M37: =SUM(الاسكندرية:ادفو!M37) -> 0 | N37: =SUM(الاسكندرية:ادفو!N37) -> 0 | O37: =SUM(الاسكندرية:ادفو!O37) -> 0 | P37: =SUM(الاسكندرية:ادفو!P37) -> 0 | Q37: =SUM(الاسكندرية:ادفو!Q37) -> 0 | R37: =SUM(الاسكندرية:ادفو!R37) -> 0 | S37: =SUM(الاسكندرية:ادفو!S37) -> 0 | T37: 0
A38: 35 | B38: 6222000908276 | C38: منتج 35 | D38: كرتونة | E38: =SUM(الاسكندرية:ادفو!E38) -> 2767 | F38: =SUM(الاسكندرية:ادفو!F38) -> 0 | G38: =SUM(الاسكندرية:ادفو!G38) -> 0 | H38: =SUM(الاسكندرية:ادفو!H38) -> 0 | I38: =SUM(الاسكندرية:ادفو!I38) -> 0 | J38: =SUM(الاسكندرية:ادفو!J38) -> 0 | K38: =SUM(الاسكندرية:ادفو!K38) -> 0 | L38: =SUM(الاسكندرية:ادفو!L38) -> 0 | M38: =SUM(الاسكندرية:ادفو!M38) -> 0 | N38: =SUM(الاسكندرية:ادفو!N38) -> 0 | O38: =SUM(الاسكندرية:ادفو!O38) -> 0 | P38: =SUM(الاسكندرية:ادفو!P38) -> 0 | Q38: =SUM(الاسكندرية:ادفو!Q38) -> 0 | R38: =SUM(الاسكندرية:ادفو!R38) -> 0 | S38: =SUM(الاسكندرية:ادفو!S38) -> 0 | T38: 0
A39: 36 | B39: 6222000909921 | C39: منتج 36 | D39: كرتونة | E39: =SUM(الاسكندرية:ادفو!E39) -> 94 | F39: =SUM(الاسكندرية:ادفو!F39) -> 0 | G39: =SUM(الاسكندرية:ادفو!G39) -> 0 | H39: =SUM(الاسكندرية:ادفو!H39) -> 0 | I39: =SUM(الاسكندرية:ادفو!I39) -> 0 | J39: =SUM(الاسكندرية:ادفو!J39) -> 0 | K39: =SUM(الاسكندرية:ادفو!K39) -> 0 | L39: =SUM(الاسكندرية:ادفو!L39) -> 0 | M39: =SUM(الاسكندرية:ادفو!M39) -> 0 | N39: =SUM(الاسكندرية:ادفو!N39) -> 0 | O39: =SUM(الاسكندرية:ادفو!O39) -> 0 | P39: =SUM(الاسكندرية:ادفو!P39) -> 0 | Q39: =SUM(الاسكندرية:ادفو!Q39) -> 0 | R39: =SUM(الاسكندرية:ادفو!R39) -> 0 | S39: =SUM(الاسكندرية:ادفو!S39) -> 0 | T39: 0
A40: 37 | B40: 6222000909839 | C40: منتج 37 | D40: كرتونة | E40: =SUM(الاسكندرية:ادفو!E40) -> 3842 | F40: =SUM(الاسكندرية:ادفو!F40) -> 0 | G40: =SUM(الاسكندرية:ادفو!G40) -> 0 | H40: =SUM(الاسكندرية:ادفو!H40) -> 0 | I40: =SUM(الاسكندرية:ادفو!I40) -> 0 | J40: =SUM(الاسكندرية:ادفو!J40) -> 0 | K40: =SUM(الاسكندرية:ادفو!K40) -> 0 | L40: =SUM(الاسكندرية:ادفو!L40) -> 0 | M40: =SUM(الاسكندرية:ادفو!M40) -> 0 | N40: =SUM(الاسكندرية:ادفو!N40) -> 0 | O40: =SUM(الاسكندرية:ادفو!O40) -> 0 | P40: =SUM(الاسكندرية:ادفو!P40) -> 0 | Q40: =SUM(الاسكندرية:ادفو!Q40) -> 0 | R40: =SUM(الاسكندرية:ادفو!R40) -> 0 | S40: =SUM(الاسكندرية:ادفو!S40) -> 0 | T40: 0
A41: 38 | B41: 6222000908825 | C41: منتج 38 | D41: كرتونة | E41: =SUM(الاسكندرية:ادفو!E41) -> 1072 | F41: =SUM(الاسكندرية:ادفو!F41) -> 0 | G41: =SUM(الاسكندرية:ادفو!G41) -> 0 | H41: =SUM(الاسكندرية:ادفو!H41) -> 0 | I41: =SUM(الاسكندرية:ادفو!I41) -> 0 | J41: =SUM(الاسكندرية:ادفو!J41) -> 0 | K41: =SUM(الاسكندرية:ادفو!K41) -> 0 | L41: =SUM(الاسكندرية:ادفو!L41) -> 0 | M41: =SUM(الاسكندرية:ادفو!M41) -> 0 | N41: =SUM(الاسكندرية:ادفو!N41) -> 0 | O41: =SUM(الاسكندرية:ادفو!O41) -> 0 | P41: =SUM(الاسكندرية:ادفو!P41) -> 0 | Q41: =SUM(الاسكندرية:ادفو!Q41) -> 0 | R41: =SUM(الاسكندرية:ادفو!R41) -> 0 | S41: =SUM(الاسكندرية:ادفو!S41) -> 0 | T41: 0
A42: 39 | B42: 6222000907637 | C42: منتج 39 | D42: كرتونة | E42: =SUM(الاسكندرية:ادفو!E42) -> 780 | F42: =SUM(الاسكندرية:ادفو!F42) -> 0 | G42: =SUM(الاسكندرية:ادفو!G42) -> 0 | H42: =SUM(الاسكندرية:ادفو!H42) -> 0 | I42: =SUM(الاسكندرية:ادفو!I42) -> 0 | J42: =SUM(الاسكندرية:ادفو!J42) -> 0 | K42: =SUM(الاسكندرية:ادفو!K42) -> 0 | L42: =SUM(الاسكندرية:ادفو!L42) -> 0 | M42: =SUM(الاسكندرية:ادفو!M42) -> 0 | N42: =SUM(الاسكندرية:ادفو!N42) -> 0 | O42: =SUM(الاسكندرية:ادفو!O42) -> 0 | P42: =SUM(الاسكندرية:ادفو!P42) -> 0 | Q42: =SUM(الاسكندرية:ادفو!Q42) -> 0 | R42: =SUM(الاسكندرية:ادفو!R42) -> 0 | S42: =SUM(الاسكندرية:ادفو!S42) -> 0 | T42: 0
A43: 40 | B43: 6222000903295 | C43: منتج 40 | D43: كرتونة | E43: =SUM(الاسكندرية:ادفو!E43) -> 438 | F43: =SUM(الاسكندرية:ادفو!F43) -> 0 | G43: =SUM(الاسكندرية:ادفو!G43) -> 0 | H43: =SUM(الاسكندرية:ادفو!H43) -> 0 | I43: =SUM(الاسكندرية:ادفو!I43) -> 0 | J43: =SUM(الاسكندرية:ادفو!J43) -> 0 | K43: =SUM(الاسكندرية:ادفو!K43) -> 0 | L43: =SUM(الاسكندرية:ادفو!L43) -> 0 | M43: =SUM(الاسكندرية:ادفو!M43) -> 0 | N43: =SUM(الاسكندرية:ادفو!N43) -> 0 | O43: =SUM(الاسكندرية:ادفو!O43) -> 0 | P43: =SUM(الاسكندرية:ادفو!P43) -> 0 | Q43: =SUM(الاسكندرية:ادفو!Q43) -> 0 | R43: =SUM(الاسكندرية:ادفو!R43) -> 0 | S43: =SUM(الاسكندرية:ادفو!S43) -> 0 | T43: 0
A44: 41 | B44: 6222000912006 | C44: منتج 41 | D44: كرتونة | E44: =SUM(الاسكندرية:ادفو!E44) -> 1711 | F44: =SUM(الاسكندرية:ادفو!F44) -> 0 | G44: =SUM(الاسكندرية:ادفو!G44) -> 0 | H44: =SUM(الاسكندرية:ادفو!H44) -> 0 | I44: =SUM(الاسكندرية:ادفو!I44) -> 0 | J44: =SUM(الاسكندرية:ادفو!J44) -> 0 | K44: =SUM(الاسكندرية:ادفو!K44) -> 0 | L44: =SUM(الاسكندرية:ادفو!L44) -> 0 | M44: =SUM(الاسكندرية:ادفو!M44) -> 0 | N44: =SUM(الاسكندرية:ادفو!N44) -> 0 | O44: =SUM(الاسكندرية:ادفو!O44) -> 0 | P44: =SUM(الاسكندرية:ادفو!P44) -> 0 | Q44: =SUM(الاسكندرية:ادفو!Q44) -> 0 | R44: =SUM(الاسكندرية:ادفو!R44) -> 0 | S44: =SUM(الاسكندرية:ادفو!S44) -> 0 | T44: 0
A45: 42 | B45: 6222000911993 | C45: منتج 42 | D45: كرتونة | E45: =SUM(الاسكندرية:ادفو!E45) -> 1539 | F45: =SUM(الاسكندرية:ادفو!F45) -> 0 | G45: =SUM(الاسكندرية:ادفو!G45) -> 0 | H45: =SUM(الاسكندرية:ادفو!H45) -> 0 | I45: =SUM(الاسكندرية:ادفو!I45) -> 0 | J45: =SUM(الاسكندرية:ادفو!J45) -> 0 | K45: =SUM(الاسكندرية:ادفو!K45) -> 0 | L45: =SUM(الاسكندرية:ادفو!L45) -> 0 | M45: =SUM(الاسكندرية:ادفو!M45) -> 0 | N45: =SUM(الاسكندرية:ادفو!N45) -> 0 | O45: =SUM(الاسكندرية:ادفو!O45) -> 0 | P45: =SUM(الاسكندرية:ادفو!P45) -> 0 | Q45: =SUM(الاسكندرية:ادفو!Q45) -> 0 | R45: =SUM(الاسكندرية:ادفو!R45) -> 0 | S45: =SUM(الاسكندرية:ادفو!S45) -> 0 | T45: 0
A46: 43 | B46: 6222000912013 | C46: منتج 43 | D46: كرتونة | E46: =SUM(الاسكندرية:ادفو!E46) -> 1669 | F46: =SUM(الاسكندرية:ادفو!F46) -> 0 | G46: =SUM(الاسكندرية:ادفو!G46) -> 0 | H46: =SUM(الاسكندرية:ادفو!H46) -> 0 | I46: =SUM(الاسكندرية:ادفو!I46) -> 0 | J46: =SUM(الاسكندرية:ادفو!J46) -> 0 | K46: =SUM(الاسكندرية:ادفو!K46) -> 0 | L46: =SUM(الاسكندرية:ادفو!L46) -> 0 | M46: =SUM(الاسكندرية:ادفو!M46) -> 0 | N46: =SUM(الاسكندرية:ادفو!N46) -> 0 | O46: =SUM(الاسكندرية:ادفو!O46) -> 0 | P46: =SUM(الاسكندرية:ادفو!P46) -> 0 | Q46: =SUM(الاسكندرية:ادفو!Q46) -> 0 | R46: =SUM(الاسكندرية:ادفو!R46) -> 0 | S46: =SUM(الاسكندرية:ادفو!S46) -> 0 | T46: 0
A47: 44 | B47: 6222000964197 | C47: منتج 44 | D47: كرتونة | E47: =SUM(الاسكندرية:ادفو!E47) -> 410 | F47: =SUM(الاسكندرية:ادفو!F47) -> 0 | G47: =SUM(الاسكندرية:ادفو!G47) -> 0 | H47: =SUM(الاسكندرية:ادفو!H47) -> 0 | I47: =SUM(الاسكندرية:ادفو!I47) -> 0 | J47: =SUM(الاسكندرية:ادفو!J47) -> 0 | K47: =SUM(الاسكندرية:ادفو!K47) -> 0 | L47: =SUM(الاسكندرية:ادفو!L47) -> 0 | M47: =SUM(الاسكندرية:ادفو!M47) -> 0 | N47: =SUM(الاسكندرية:ادفو!N47) -> 0 | O47: =SUM(الاسكندرية:ادفو!O47) -> 0 | P47: =SUM(الاسكندرية:ادفو!P47) -> 0 | Q47: =SUM(الاسكندرية:ادفو!Q47) -> 0 | R47: =SUM(الاسكندرية:ادفو!R47) -> 0 | S47: =SUM(الاسكندرية:ادفو!S47) -> 0 | T47: 0
A48: 45 | B48: 6222000906630 | C48: منتج 45 | D48: كرتونة | E48: =SUM(الاسكندرية:ادفو!E48) -> 1267 | F48: =SUM(الاسكندرية:ادفو!F48) -> 0 | G48: =SUM(الاسكندرية:ادفو!G48) -> 0 | H48: =SUM(الاسكندرية:ادفو!H48) -> 0 | I48: =SUM(الاسكندرية:ادفو!I48) -> 0 | J48: =SUM(الاسكندرية:ادفو!J48) -> 0 | K48: =SUM(الاسكندرية:ادفو!K48) -> 0 | L48: =SUM(الاسكندرية:ادفو!L48) -> 0 | M48: =SUM(الاسكندرية:ادفو!M48) -> 0 | N48: =SUM(الاسكندرية:ادفو!N48) -> 0 | O48: =SUM(الاسكندرية:ادفو!O48) -> 0 | P48: =SUM(الاسكندرية:ادفو!P48) -> 0 | Q48: =SUM(الاسكندرية:ادفو!Q48) -> 0 | R48: =SUM(الاسكندرية:ادفو!R48) -> 0 | S48: =SUM(الاسكندرية:ادفو!S48) -> 0 | T48: 0
A49: 46 | B49: 6222000902519 | C49: منتج 46 | D49: كرتونة | E49: =SUM(الاسكندرية:ادفو!E49) -> 1091 | F49: =SUM(الاسكندرية:ادفو!F49) -> 0 | G49: =SUM(الاسكندرية:ادفو!G49) -> 0 | H49: =SUM(الاسكندرية:ادفو!H49) -> 0 | I49: =SUM(الاسكندرية:ادفو!I49) -> 0 | J49: =SUM(الاسكندرية:ادفو!J49) -> 0 | K49: =SUM(الاسكندرية:ادفو!K49) -> 0 | L49: =SUM(الاسكندرية:ادفو!L49) -> 0 | M49: =SUM(الاسكندرية:ادفو!M49) -> 0 | N49: =SUM(الاسكندرية:ادفو!N49) -> 0 | O49: =SUM(الاسكندرية:ادفو!O49) -> 0 | P49: =SUM(الاسكندرية:ادفو!P49) -> 0 | Q49: =SUM(الاسكندرية:ادفو!Q49) -> 0 | R49: =SUM(الاسكندرية:ادفو!R49) -> 0 | S49: =SUM(الاسكندرية:ادفو!S49) -> 0 | T49: 0
A50: 47 | B50: 6222000902557 | C50: منتج 47 | D50: كرتونة | E50: =SUM(الاسكندرية:ادفو!E50) -> 2611 | F50: =SUM(الاسكندرية:ادفو!F50) -> 0 | G50: =SUM(الاسكندرية:ادفو!G50) -> 0 | H50: =SUM(الاسكندرية:ادفو!H50) -> 0 | I50: =SUM(الاسكندرية:ادفو!I50) -> 0 | J50: =SUM(الاسكندرية:ادفو!J50) -> 0 | K50: =SUM(الاسكندرية:ادفو!K50) -> 0 | L50: =SUM(الاسكندرية:ادفو!L50) -> 0 | M50: =SUM(الاسكندرية:ادفو!M50) -> 0 | N50: =SUM(الاسكندرية:ادفو!N50) -> 0 | O50: =SUM(الاسكندرية:ادفو!O50) -> 0 | P50: =SUM(الاسكندرية:ادفو!P50) -> 0 | Q50: =SUM(الاسكندرية:ادفو!Q50) -> 0 | R50: =SUM(الاسكندرية:ادفو!R50) -> 0 | S50: =SUM(الاسكندرية:ادفو!S50) -> 0 | T50: 0
A51: 48 | B51: 6222000902564 | C51: منتج 48 | D51: كرتونة | E51: =SUM(الاسكندرية:ادفو!E51) -> 2578 | F51: =SUM(الاسكندرية:ادفو!F51) -> 0 | G51: =SUM(الاسكندرية:ادفو!G51) -> 0 | H51: =SUM(الاسكندرية:ادفو!H51) -> 0 | I51: =SUM(الاسكندرية:ادفو!I51) -> 0 | J51: =SUM(الاسكندرية:ادفو!J51) -> 0 | K51: =SUM(الاسكندرية:ادفو!K51) -> 0 | L51: =SUM(الاسكندرية:ادفو!L51) -> 0 | M51: =SUM(الاسكندرية:ادفو!M51) -> 0 | N51: =SUM(الاسكندرية:ادفو!N51) -> 0 | O51: =SUM(الاسكندرية:ادفو!O51) -> 0 | P51: =SUM(الاسكندرية:ادفو!P51) -> 0 | Q51: =SUM(الاسكندرية:ادفو!Q51) -> 0 | R51: =SUM(الاسكندرية:ادفو!R51) -> 0 | S51: =SUM(الاسكندرية:ادفو!S51) -> 0 | T51: 0
A52: 49 | B52: 6222000910033 | C52: منتج 49 | D52: كرتونة | E52: =SUM(الاسكندرية:ادفو!E52) -> 62 | F52: =SUM(الاسكندرية:ادفو!F52) -> 0 | G52: =SUM(الاسكندرية:ادفو!G52) -> 0 | H52: =SUM(الاسكندرية:ادفو!H52) -> 0 | I52: =SUM(الاسكندرية:ادفو!I52) -> 0 | J52: =SUM(الاسكندرية:ادفو!J52) -> 0 | K52: =SUM(الاسكندرية:ادفو!K52) -> 0 | L52: =SUM(الاسكندرية:ادفو!L52) -> 0 | M52: =SUM(الاسكندرية:ادفو!M52) -> 0 | N52: =SUM(الاسكندرية:ادفو!N52) -> 0 | O52: =SUM(الاسكندرية:ادفو!O52) -> 0 | P52: =SUM(الاسكندرية:ادفو!P52) -> 0 | Q52: =SUM(الاسكندرية:ادفو!Q52) -> 0 | R52: =SUM(الاسكندرية:ادفو!R52) -> 0 | S52: =SUM(الاسكندرية:ادفو!S52) -> 0 | T52: 0
A53: 50 | B53: 6222000910026 | C53: منتج 50 | D53: كرتونة | E53: =SUM(الاسكندرية:ادفو!E53) -> 0 | F53: =SUM(الاسكندرية:ادفو!F53) -> 0 | G53: =SUM(الاسكندرية:ادفو!G53) -> 0 | H53: =SUM(الاسكندرية:ادفو!H53) -> 0 | I53: =SUM(الاسكندرية:ادفو!I53) -> 0 | J53: =SUM(الاسكندرية:ادفو!J53) -> 0 | K53: =SUM(الاسكندرية:ادفو!K53) -> 0 | L53: =SUM(الاسكندرية:ادفو!L53) -> 0 | M53: =SUM(الاسكندرية:ادفو!M53) -> 0 | N53: =SUM(الاسكندرية:ادفو!N53) -> 0 | O53: =SUM(الاسكندرية:ادفو!O53) -> 0 | P53: =SUM(الاسكندرية:ادفو!P53) -> 0 | Q53: =SUM(الاسكندرية:ادفو!Q53) -> 0 | R53: =SUM(الاسكندرية:ادفو!R53) -> 0 | S53: =SUM(الاسكندرية:ادفو!S53) -> 0 | T53: 0
A54: 51 | B54: 6222000909945 | C54: منتج 51 | D54: كرتونة | E54: =SUM(الاسكندرية:ادفو!E54) -> 46 | F54: =SUM(الاسكندرية:ادفو!F54) -> 0 | G54: =SUM(الاسكندرية:ادفو!G54) -> 0 | H54: =SUM(الاسكندرية:ادفو!H54) -> 0 | I54: =SUM(الاسكندرية:ادفو!I54) -> 0 | J54: =SUM(الاسكندرية:ادفو!J54) -> 0 | K54: =SUM(الاسكندرية:ادفو!K54) -> 0 | L54: =SUM(الاسكندرية:ادفو!L54) -> 0 | M54: =SUM(الاسكندرية:ادفو!M54) -> 0 | N54: =SUM(الاسكندرية:ادفو!N54) -> 0 | O54: =SUM(الاسكندرية:ادفو!O54) -> 0 | P54: =SUM(الاسكندرية:ادفو!P54) -> 0 | Q54: =SUM(الاسكندرية:ادفو!Q54) -> 0 | R54: =SUM(الاسكندرية:ادفو!R54) -> 0 | S54: =SUM(الاسكندرية:ادفو!S54) -> 0 | T54: 0
A55: 52 | B55: 6222000910200 | C55: منتج 52 | D55: كرتونة | E55: =SUM(الاسكندرية:ادفو!E55) -> 20848 | F55: =SUM(الاسكندرية:ادفو!F55) -> 0 | G55: =SUM(الاسكندرية:ادفو!G55) -> 0 | H55: =SUM(الاسكندرية:ادفو!H55) -> 0 | I55: =SUM(الاسكندرية:ادفو!I55) -> 0 | J55: =SUM(الاسكندرية:ادفو!J55) -> 0 | K55: =SUM(الاسكندرية:ادفو!K55) -> 0 | L55: =SUM(الاسكندرية:ادفو!L55) -> 0 | M55: =SUM(الاسكندرية:ادفو!M55) -> 0 | N55: =SUM(الاسكندرية:ادفو!N55) -> 0 | O55: =SUM(الاسكندرية:ادفو!O55) -> 0 | P55: =SUM(الاسكندرية:ادفو!P55) -> 0 | Q55: =SUM(الاسكندرية:ادفو!Q55) -> 0 | R55: =SUM(الاسكندرية:ادفو!R55) -> 0 | S55: =SUM(الاسكندرية:ادفو!S55) -> 0 | T55: 0
A56: 53 | B56: 6222000910514 | C56: منتج 53 | D56: كرتونة | E56: =SUM(الاسكندرية:ادفو!E56) -> 13413 | F56: =SUM(الاسكندرية:ادفو!F56) -> 0 | G56: =SUM(الاسكندرية:ادفو!G56) -> 0 | H56: =SUM(الاسكندرية:ادفو!H56) -> 0 | I56: =SUM(الاسكندرية:ادفو!I56) -> 0 | J56: =SUM(الاسكندرية:ادفو!J56) -> 0 | K56: =SUM(الاسكندرية:ادفو!K56) -> 0 | L56: =SUM(الاسكندرية:ادفو!L56) -> 0 | M56: =SUM(الاسكندرية:ادفو!M56) -> 0 | N56: =SUM(الاسكندرية:ادفو!N56) -> 0 | O56: =SUM(الاسكندرية:ادفو!O56) -> 0 | P56: =SUM(الاسكندرية:ادفو!P56) -> 0 | Q56: =SUM(الاسكندرية:ادفو!Q56) -> 0 | R56: =SUM(الاسكندرية:ادفو!R56) -> 0 | S56: =SUM(الاسكندرية:ادفو!S56) -> 0 | T56: 0
A57: 54 | B57: 6222000909976 | C57: منتج 54 | D57: كرتونة | E57: =SUM(الاسكندرية:ادفو!E57) -> 15825 | F57: =SUM(الاسكندرية:ادفو!F57) -> 0 | G57: =SUM(الاسكندرية:ادفو!G57) -> 0 | H57: =SUM(الاسكندرية:ادفو!H57) -> 0 | I57: =SUM(الاسكندرية:ادفو!I57) -> 0 | J57: =SUM(الاسكندرية:ادفو!J57) -> 0 | K57: =SUM(الاسكندرية:ادفو!K57) -> 0 | L57: =SUM(الاسكندرية:ادفو!L57) -> 0 | M57: =SUM(الاسكندرية:ادفو!M57) -> 0 | N57: =SUM(الاسكندرية:ادفو!N57) -> 0 | O57: =SUM(الاسكندرية:ادفو!O57) -> 0 | P57: =SUM(الاسكندرية:ادفو!P57) -> 0 | Q57: =SUM(الاسكندرية:ادفو!Q57) -> 0 | R57: =SUM(الاسكندرية:ادفو!R57) -> 0 | S57: =SUM(الاسكندرية:ادفو!S57) -> 0 | T57: 0
A58: 55 | B58: 6222000909983 | C58: منتج 55 | D58: كرتونة | E58: =SUM(الاسكندرية:ادفو!E58) -> 10284 | F58: =SUM(الاسكندرية:ادفو!F58) -> 0 | G58: =SUM(الاسكندرية:ادفو!G58) -> 0 | H58: =SUM(الاسكندرية:ادفو!H58) -> 0 | I58: =SUM(الاسكندرية:ادفو!I58) -> 0 | J58: =SUM(الاسكندرية:ادفو!J58) -> 0 | K58: =SUM(الاسكندرية:ادفو!K58) -> 0 | L58: =SUM(الاسكندرية:ادفو!L58) -> 0 | M58: =SUM(الاسكندرية:ادفو!M58) -> 0 | N58: =SUM(الاسكندرية:ادفو!N58) -> 0 | O58: =SUM(الاسكندرية:ادفو!O58) -> 0 | P58: =SUM(الاسكندرية:ادفو!P58) -> 0 | Q58: =SUM(الاسكندرية:ادفو!Q58) -> 0 | R58: =SUM(الاسكندرية:ادفو!R58) -> 0 | S58: =SUM(الاسكندرية:ادفو!S58) -> 0 | T58: 0
A59: 56 | B59: 6222000909969 | C59: منتج 56 | D59: كرتونة | E59: =SUM(الاسكندرية:ادفو!E59) -> 5901 | F59: =SUM(الاسكندرية:ادفو!F59) -> 0 | G59: =SUM(الاسكندرية:ادفو!G59) -> 0 | H59: =SUM(الاسكندرية:ادفو!H59) -> 0 | I59: =SUM(الاسكندرية:ادفو!I59) -> 0 | J59: =SUM(الاسكندرية:ادفو!J59) -> 0 | K59: =SUM(الاسكندرية:ادفو!K59) -> 0 | L59: =SUM(الاسكندرية:ادفو!L59) -> 0 | M59: =SUM(الاسكندرية:ادفو!M59) -> 0 | N59: =SUM(الاسكندرية:ادفو!N59) -> 0 | O59: =SUM(الاسكندرية:ادفو!O59) -> 0 | P59: =SUM(الاسكندرية:ادفو!P59) -> 0 | Q59: =SUM(الاسكندرية:ادفو!Q59) -> 0 | R59: =SUM(الاسكندرية:ادفو!R59) -> 0 | S59: =SUM(الاسكندرية:ادفو!S59) -> 0 | T59: 0
A60: 57 | B60: 622200097116 | C60: منتج 57 | D60: كرتونة | E60: =SUM(الاسكندرية:ادفو!E60) -> 8961 | F60: =SUM(الاسكندرية:ادفو!F60) -> 0 | G60: =SUM(الاسكندرية:ادفو!G60) -> 0 | H60: =SUM(الاسكندرية:ادفو!H60) -> 0 | I60: =SUM(الاسكندرية:ادفو!I60) -> 0 | J60: =SUM(الاسكندرية:ادفو!J60) -> 0 | K60: =SUM(الاسكندرية:ادفو!K60) -> 0 | L60: =SUM(الاسكندرية:ادفو!L60) -> 0 | M60: =SUM(الاسكندرية:ادفو!M60) -> 0 | N60: =SUM(الاسكندرية:ادفو!N60) -> 0 | O60: =SUM(الاسكندرية:ادفو!O60) -> 0 | P60: =SUM(الاسكندرية:ادفو!P60) -> 0 | Q60: =SUM(الاسكندرية:ادفو!Q60) -> 0 | R60: =SUM(الاسكندرية:ادفو!R60) -> 0 | S60: =SUM(الاسكندرية:ادفو!S60) -> 0 | T60: 0
A61: 58 | B61: 6222000912372 | C61: منتج 58 | D61: كرتونة | E61: =SUM(الاسكندرية:ادفو!E61) -> 9242 | F61: =SUM(الاسكندرية:ادفو!F61) -> 0 | G61: =SUM(الاسكندرية:ادفو!G61) -> 0 | H61: =SUM(الاسكندرية:ادفو!H61) -> 0 | I61: =SUM(الاسكندرية:ادفو!I61) -> 0 | J61: =SUM(الاسكندرية:ادفو!J61) -> 0 | K61: =SUM(الاسكندرية:ادفو!K61) -> 0 | L61: =SUM(الاسكندرية:ادفو!L61) -> 0 | M61: =SUM(الاسكندرية:ادفو!M61) -> 0 | N61: =SUM(الاسكندرية:ادفو!N61) -> 0 | O61: =SUM(الاسكندرية:ادفو!O61) -> 0 | P61: =SUM(الاسكندرية:ادفو!P61) -> 0 | Q61: =SUM(الاسكندرية:ادفو!Q61) -> 0 | R61: =SUM(الاسكندرية:ادفو!R61) -> 0 | S61: =SUM(الاسكندرية:ادفو!S61) -> 0 | T61: 0
A62: 59 | B62: 6222000912488 | C62: منتج 59 | D62: كرتونة | E62: =SUM(الاسكندرية:ادفو!E62) -> 9779 | F62: =SUM(الاسكندرية:ادفو!F62) -> 0 | G62: =SUM(الاسكندرية:ادفو!G62) -> 0 | H62: =SUM(الاسكندرية:ادفو!H62) -> 0 | I62: =SUM(الاسكندرية:ادفو!I62) -> 0 | J62: =SUM(الاسكندرية:ادفو!J62) -> 0 | K62: =SUM(الاسكندرية:ادفو!K62) -> 0 | L62: =SUM(الاسكندرية:ادفو!L62) -> 0 | M62: =SUM(الاسكندرية:ادفو!M62) -> 0 | N62: =SUM(الاسكندرية:ادفو!N62) -> 0 | O62: =SUM(الاسكندرية:ادفو!O62) -> 0 | P62: =SUM(الاسكندرية:ادفو!P62) -> 0 | Q62: =SUM(الاسكندرية:ادفو!Q62) -> 0 | R62: =SUM(الاسكندرية:ادفو!R62) -> 0 | S62: =SUM(الاسكندرية:ادفو!S62) -> 0 | T62: 0
A63: 60 | B63: 6222000914383 | C63: منتج 60 | D63: كرتونة | E63: =SUM(الاسكندرية:ادفو!E63) -> 655 | F63: =SUM(الاسكندرية:ادفو!F63) -> 0 | G63: =SUM(الاسكندرية:ادفو!G63) -> 0 | H63: =SUM(الاسكندرية:ادفو!H63) -> 0 | I63: =SUM(الاسكندرية:ادفو!I63) -> 0 | J63: =SUM(الاسكندرية:ادفو!J63) -> 0 | K63: =SUM(الاسكندرية:ادفو!K63) -> 0 | L63: =SUM(الاسكندرية:ادفو!L63) -> 0 | M63: =SUM(الاسكندرية:ادفو!M63) -> 0 | N63: =SUM(الاسكندرية:ادفو!N63) -> 0 | O63: =SUM(الاسكندرية:ادفو!O63) -> 0 | P63: =SUM(الاسكندرية:ادفو!P63) -> 0 | Q63: =SUM(الاسكندرية:ادفو!Q63) -> 0 | R63: =SUM(الاسكندرية:ادفو!R63) -> 0 | S63: =SUM(الاسكندرية:ادفو!S63) -> 0 | T63: 0
A64: 61 | B64: 6222000914369 | C64: منتج 61 | D64: كرتونة | E64: =SUM(الاسكندرية:ادفو!E64) -> 60 | F64: =SUM(الاسكندرية:ادفو!F64) -> 0 | G64: =SUM(الاسكندرية:ادفو!G64) -> 0 | H64: =SUM(الاسكندرية:ادفو!H64) -> 0 | I64: =SUM(الاسكندرية:ادفو!I64) -> 0 | J64: =SUM(الاسكندرية:ادفو!J64) -> 0 | K64: =SUM(الاسكندرية:ادفو!K64) -> 0 | L64: =SUM(الاسكندرية:ادفو!L64) -> 0 | M64: =SUM(الاسكندرية:ادفو!M64) -> 0 | N64: =SUM(الاسكندرية:ادفو!N64) -> 0 | O64: =SUM(الاسكندرية:ادفو!O64) -> 0 | P64: =SUM(الاسكندرية:ادفو!P64) -> 0 | Q64: =SUM(الاسكندرية:ادفو!Q64) -> 0 | R64: =SUM(الاسكندرية:ادفو!R64) -> 0 | S64: =SUM(الاسكندرية:ادفو!S64) -> 0 | T64: 0
A65: 62 | B65: 6222000914376 | C65: منتج 62 | D65: كرتونة | E65: =SUM(الاسكندرية:ادفو!E65) -> 179 | F65: =SUM(الاسكندرية:ادفو!F65) -> 0 | G65: =SUM(الاسكندرية:ادفو!G65) -> 0 | H65: =SUM(الاسكندرية:ادفو!H65) -> 0 | I65: =SUM(الاسكندرية:ادفو!I65) -> 0 | J65: =SUM(الاسكندرية:ادفو!J65) -> 0 | K65: =SUM(الاسكندرية:ادفو!K65) -> 0 | L65: =SUM(الاسكندرية:ادفو!L65) -> 0 | M65: =SUM(الاسكندرية:ادفو!M65) -> 0 | N65: =SUM(الاسكندرية:ادفو!N65) -> 0 | O65: =SUM(الاسكندرية:ادفو!O65) -> 0 | P65: =SUM(الاسكندرية:ادفو!P65) -> 0 | Q65: =SUM(الاسكندرية:ادفو!Q65) -> 0 | R65: =SUM(الاسكندرية:ادفو!R65) -> 0 | S65: =SUM(الاسكندرية:ادفو!S65) -> 0 | T65: 0
A66: 63 | B66: 6222000912365 | C66: منتج 63 | D66: كرتونة | E66: =SUM(الاسكندرية:ادفو!E66) -> 1317 | F66: =SUM(الاسكندرية:ادفو!F66) -> 0 | G66: =SUM(الاسكندرية:ادفو!G66) -> 0 | H66: =SUM(الاسكندرية:ادفو!H66) -> 0 | I66: =SUM(الاسكندرية:ادفو!I66) -> 0 | J66: =SUM(الاسكندرية:ادفو!J66) -> 0 | K66: =SUM(الاسكندرية:ادفو!K66) -> 0 | L66: =SUM(الاسكندرية:ادفو!L66) -> 0 | M66: =SUM(الاسكندرية:ادفو!M66) -> 0 | N66: =SUM(الاسكندرية:ادفو!N66) -> 0 | O66: =SUM(الاسكندرية:ادفو!O66) -> 0 | P66: =SUM(الاسكندرية:ادفو!P66) -> 0 | Q66: =SUM(الاسكندرية:ادفو!Q66) -> 0 | R66: =SUM(الاسكندرية:ادفو!R66) -> 0 | S66: =SUM(الاسكندرية:ادفو!S66) -> 0 | T66: 0
A67: 64 | B67: 6222000902083 | C67: منتج 64 | D67: كرتونة | E67: =SUM(الاسكندرية:ادفو!E67) -> 578 | F67: =SUM(الاسكندرية:ادفو!F67) -> 0 | G67: =SUM(الاسكندرية:ادفو!G67) -> 0 | H67: =SUM(الاسكندرية:ادفو!H67) -> 0 | I67: =SUM(الاسكندرية:ادفو!I67) -> 0 | J67: =SUM(الاسكندرية:ادفو!J67) -> 0 | K67: =SUM(الاسكندرية:ادفو!K67) -> 0 | L67: =SUM(الاسكندرية:ادفو!L67) -> 0 | M67: =SUM(الاسكندرية:ادفو!M67) -> 0 | N67: =SUM(الاسكندرية:ادفو!N67) -> 0 | O67: =SUM(الاسكندرية:ادفو!O67) -> 0 | P67: =SUM(الاسكندرية:ادفو!P67) -> 0 | Q67: =SUM(الاسكندرية:ادفو!Q67) -> 0 | R67: =SUM(الاسكندرية:ادفو!R67) -> 0 | S67: =SUM(الاسكندرية:ادفو!S67) -> 0 | T67: 0
A68: 65 | B68: 6222000913904 | C68: منتج 65 | D68: كرتونة | E68: =SUM(الاسكندرية:ادفو!E68) -> 401 | F68: =SUM(الاسكندرية:ادفو!F68) -> 0 | G68: =SUM(الاسكندرية:ادفو!G68) -> 0 | H68: =SUM(الاسكندرية:ادفو!H68) -> 0 | I68: =SUM(الاسكندرية:ادفو!I68) -> 0 | J68: =SUM(الاسكندرية:ادفو!J68) -> 0 | K68: =SUM(الاسكندرية:ادفو!K68) -> 0 | L68: =SUM(الاسكندرية:ادفو!L68) -> 0 | M68: =SUM(الاسكندرية:ادفو!M68) -> 0 | N68: =SUM(الاسكندرية:ادفو!N68) -> 0 | O68: =SUM(الاسكندرية:ادفو!O68) -> 0 | P68: =SUM(الاسكندرية:ادفو!P68) -> 0 | Q68: =SUM(الاسكندرية:ادفو!Q68) -> 0 | R68: =SUM(الاسكندرية:ادفو!R68) -> 0 | S68: =SUM(الاسكندرية:ادفو!S68) -> 0 | T68: 0
A69: 66 | B69: EG-670026743-2453 | C69: منتج 66 | D69: كرتونة | E69: =SUM(الاسكندرية:ادفو!E69) -> 28 | F69: =SUM(الاسكندرية:ادفو!F69) -> 0 | G69: =SUM(الاسكندرية:ادفو!G69) -> 0 | H69: =SUM(الاسكندرية:ادفو!H69) -> 0 | I69: =SUM(الاسكندرية:ادفو!I69) -> 0 | J69: =SUM(الاسكندرية:ادفو!J69) -> 0 | K69: =SUM(الاسكندرية:ادفو!K69) -> 0 | L69: =SUM(الاسكندرية:ادفو!L69) -> 0 | M69: =SUM(الاسكندرية:ادفو!M69) -> 0 | N69: =SUM(الاسكندرية:ادفو!N69) -> 0 | O69: =SUM(الاسكندرية:ادفو!O69) -> 0 | P69: =SUM(الاسكندرية:ادفو!P69) -> 0 | Q69: =SUM(الاسكندرية:ادفو!Q69) -> 0 | R69: =SUM(الاسكندرية:ادفو!R69) -> 0 | S69: =SUM(الاسكندرية:ادفو!S69) -> 0 | T69: =SUM(F69:S69) -> 0
A70: 67 | B70: 6222000915243 | C70: منتج 67 | D70: كرتونة | E70: =SUM(الاسكندرية:ادفو!E70) -> 421 | F70: =SUM(الاسكندرية:ادفو!F70) -> 0 | G70: =SUM(الاسكندرية:ادفو!G70) -> 0 | H70: =SUM(الاسكندرية:ادفو!H70) -> 0 | I70: =SUM(الاسكندرية:ادفو!I70) -> 0 | J70: =SUM(الاسكندرية:ادفو!J70) -> 0 | K70: =SUM(الاسكندرية:ادفو!K70) -> 0 | L70: =SUM(الاسكندرية:ادفو!L70) -> 0 | M70: =SUM(الاسكندرية:ادفو!M70) -> 0 | N70: =SUM(الاسكندرية:ادفو!N70) -> 0 | O70: =SUM(الاسكندرية:ادفو!O70) -> 0 | P70: =SUM(الاسكندرية:ادفو!P70) -> 0 | Q70: =SUM(الاسكندرية:ادفو!Q70) -> 0 | R70: =SUM(الاسكندرية:ادفو!R70) -> 0 | S70: =SUM(الاسكندرية:ادفو!S70) -> 0 | T70: 0
A71: 68 | B71: 6888000909953 | C71: منتج 68 | D71: كرتونة | E71: =SUM(الاسكندرية:ادفو!E71) -> 4163 | F71: =SUM(الاسكندرية:ادفو!F71) -> 0 | G71: =SUM(الاسكندرية:ادفو!G71) -> 0 | H71: =SUM(الاسكندرية:ادفو!H71) -> 0 | I71: =SUM(الاسكندرية:ادفو!I71) -> 0 | J71: =SUM(الاسكندرية:ادفو!J71) -> 0 | K71: =SUM(الاسكندرية:ادفو!K71) -> 0 | L71: =SUM(الاسكندرية:ادفو!L71) -> 0 | M71: =SUM(الاسكندرية:ادفو!M71) -> 0 | N71: =SUM(الاسكندرية:ادفو!N71) -> 0 | O71: =SUM(الاسكندرية:ادفو!O71) -> 0 | P71: =SUM(الاسكندرية:ادفو!P71) -> 0 | Q71: =SUM(الاسكندرية:ادفو!Q71) -> 0 | R71: =SUM(الاسكندرية:ادفو!R71) -> 0 | S71: =SUM(الاسكندرية:ادفو!S71) -> 0 | T71: =SUM(F71:S71) -> 0
A72: الاجمالى | E72: =SUM(الاسكندرية:ادفو!E72) -> 203100 | F72: =SUM(الاسكندرية:ادفو!F72) -> 0 | G72: =SUM(الاسكندرية:ادفو!G72) -> 0 | H72: =SUM(الاسكندرية:ادفو!H72) -> 0 | I72: =SUM(الاسكندرية:ادفو!I72) -> 0 | J72: =SUM(الاسكندرية:ادفو!J72) -> 0 | K72: =SUM(الاسكندرية:ادفو!K72) -> 0 | L72: =SUM(الاسكندرية:ادفو!L72) -> 0 | M72: =SUM(الاسكندرية:ادفو!M72) -> 0 | N72: =SUM(الاسكندرية:ادفو!N72) -> 0 | O72: =SUM(الاسكندرية:ادفو!O72) -> 0 | P72: =SUM(الاسكندرية:ادفو!P72) -> 0 | Q72: =SUM(الاسكندرية:ادفو!Q72) -> 0 | R72: =SUM(الاسكندرية:ادفو!R72) -> 0 | S72: =SUM(الاسكندرية:ادفو!S72) -> 0 | T72: =SUM(F72:S72) -> 0
F74: 89 | G74: 189 | H74: 309 | I74: 669 | J74: 239 | K74: 566 | L74: 1078 | M74: 998 | N74: 2012 | O74: 1791 | P74: 1700.5 | Q74: 26921.5 | R74: 142408 | S74: 24130 | T74: 203100
J80: .

Sheet الاسكندرية
A1: رصيد توكيل ( الاسكندية ) عن يوم ( 8-2-2025 )
A2: م | B2: الكود | C2: الصنف | D2: الوحدة | E2: الرصيد الدفترى بالكرتونة | T2: الرصيد الفعلى بالكرتونة
F3: 2024-01-01 | G3: 2024-02-01 | H3: 2024-03-01 | I3: 2024-04-01 | J3: 2024-05-01 | K3: 2024-06-01 | L3: 2024-07-01 | M3: 2024-08-01 | N3: 2024-09-01 | O3: 2024-10-01 | P3: 2024-11-01 | Q3: 2024-12-01 | R3: 2025-01-01 | S3: 2025-02-01
A4: 1 | B4: 6222000901529 | C4: منتج 1 | D4: كرتونة | E4: 263 | T4: =SUM(F4:S4) -> 0
A5: 2 | B5: 6222000901536 | C5: منتج 2 | D5: كرتونة | E5: 264 | T5: =SUM(F5:S5) -> 0
A6: 3 | B6: 6222000911733 | C6: منتج 3 | D6: كرتونة | E6: 642 | T6: 0
A7: 4 | B7: 6222000911764 | C7: منتج 4 | D7: كرتونة | E7: 170 | T7: 0
A8: 5 | B8: 00743 | C8: منتج 5 | D8: كرتونة | E8: 1 | T8: 0
A9: 6 | B9: 6222000901758 | C9: منتج 6 | D9: كرتونة | E9: 77 | T9: 0
A10: 7 | B10: 6222000912020 | C10: منتج 7 | D10: كرتونة | E10: 123 | T10: 0
A11: 8 | B11: 6222000909815 | C11: منتج 8 | D11: كرتونة | E11: 773 | T11: 0
A12: 9 | B12: 6222000908610 | C12: منتج 9 | D12: كرتونة | E12: 94 | T12: 0
A13: 10 | B13: 6222000909891 | C13: منتج 10 | D13: كرتونة | E13: 0 | T13: 0
A14: 11 | B14: 6222000911757 | C14: منتج 11 | D14: كرتونة | E14: 0 | T14: 0
A15: 12 | B15: 00744 | C15: منتج 12 | D15: كرتونة | E15: 214 | T15: 0
A16: 13 | B16: 6222000901642 | C16: منتج 13 | D16: كرتونة | E16: 46 | T16: 0
A17: 14 | B17: 6222000912037 | C17: منتج 14 | D17: كرتونة | E17: 139 | T17: 0
A18: 15 | B18: 6222000909808 | C18: منتج 15 | D18: كرتونة | E18: 130 | T18: 0
A19: 16 | B19: 6222000905268 | C19: منتج 16 | D19: كرتونة | E19: 0 | T19: 0
A20: 17 | B20: 6222000907583 | C20: منتج 17 | D20: كرتونة | E20: 41 | T20: 0
A21: 18 | B21: 6222000909884 | C21: منتج 18 | D21: كرتونة | E21: 101 | T21: 0
A22: 19 | B22: 002770 | C22: منتج 19 | D22: كرتونة | E22: 18 | T22: 0
A23: 20 | B23: 6222000912525 | C23: منتج 20 | D23: كرتونة | E23: 28 | T23: 0
A24: 21 | B24: 6222000912518 | C24: منتج 21 | D24: كرتونة | E24: 14 | T24: 0
A25: 22 | B25: 6222000908566 | C25: منتج 22 | D25: كرتونة | E25: 103 | T25: 0
A26: 23 | B26: 6222000908573 | C26: منتج 23 | D26: كرتونة | E26: 136 | T26: 0
A27: 24 | B27: 6222000912501 | C27: منتج 24 | D27: كرتونة | E27: 0 | T27: 0
A28: 25 | B28: 6222000912457 | C28: منتج 25 | D28: كرتونة | E28: 40 | T28: 0
A29: 26 | B29: 6222000901611 | C29: منتج 26 | D29: كرتونة | E29: 112 | T29: 0
A30: 27 | B30: 6222000909907 | C30: منتج 27 | D30: كرتونة | E30: 70 | T30: 0
A31: 28 | B31: 6222000911498 | C31: منتج 28 | D31: كرتونة | E31: 157 | T31: 0
A32: 29 | B32: 002771 | C32: منتج 29 | D32: كرتونة | E32: 0 | T32: 0
A33: 30 | B33: 6222000912778 | C33: منتج 30 | D33: كرتونة | E33: 310 | T33: 0
A34: 31 | B34: 6222000912822 | C34: منتج 31 | D34: كرتونة | E34: 1 | T34: 0
A35: 32 | B35: 6222000912532 | C35: منتج 32 | D35: كرتونة | E35: 121 | T35: 0
A36: 33 | B36: 6222000901697 | C36: منتج 33 | D36: كرتونة | E36: 2 | T36: 0
A37: 34 | B37: 6222000911481 | C37: منتج 34 | D37: كرتونة | E37: 0 | T37: 0
A38: 35 | B38: 6222000908276 | C38: منتج 35 | D38: كرتونة | E38: 240 | T38: 0
A39: 36 | B39: 6222000909921 | C39: منتج 36 | D39: كرتونة | E39: 0 | T39: 0
A40: 37 | B40: 6222000909839 | C40: منتج 37 | D40: كرتونة | E40: 157 | T40: 0
A41: 38 | B41: 6222000908825 | C41: منتج 38 | D41: كرتونة | E41: 69 | T41: 0
A42: 39 | B42: 6222000907637 | C42: منتج 39 | D42: كرتونة | E42: 62 | T42: 0
A43: 40 | B43: 6222000903295 | C43: منتج 40 | D43: كرتونة | E43: 19 | T43: 0
A44: 41 | B44: 6222000912006 | C44: منتج 41 | D44: كرتونة | E44: 40 | T44: 0
A45: 42 | B45: 6222000911993 | C45: منتج 42 | D45: كرتونة | E45: 50 | T45: 0
A46: 43 | B46: 6222000912013 | C46: منتج 43 | D46: كرتونة | E46: 0 | T46: 0
A47: 44 | B47: 6222000964197 | C47: منتج 44 | D47: كرتونة | E47: 40 | T47: 0
A48: 45 | B48: 6222000906630 | C48: منتج 45 | D48: كرتونة | E48: 0 | T48: 0
A49: 46 | B49: 6222000902519 | C49: منتج 46 | D49: كرتونة | E49: 2 | T49: 0
A50: 47 | B50: 6222000902557 | C50: منتج 47 | D50: كرتونة | E50: 196 | T50: 0
A51: 48 | B51: 6222000902564 | C51: منتج 48 | D51: كرتونة | E51: 113 | T51: 0
A52: 49 | B52: 6222000910033 | C52: منتج 49 | D52: كرتونة | E52: 0 | T52: 0
A53: 50 | B53: 6222000910026 | C53: منتج 50 | D53: كرتونة | E53: 0 | T53: 0
A54: 51 | B54: 6222000909945 | C54: منتج 51 | D54: كرتونة | E54: 0 | T54: 0
A55: 52 | B55: 6222000910200 | C55: منتج 52 | D55: كرتونة | E55: 1319 | T55: 0
A56: 53 | B56: 6222000910514 | C56: منتج 53 | D56: كرتونة | E56: 911 | T56: 0
A57: 54 | B57: 6222000909976 | C57: منتج 54 | D57: كرتونة | E57: 341 | T57: 0
A58: 55 | B58: 6222000909983 | C58: منتج 55 | D58: كرتونة | E58: 416 | T58: 0
A59: 56 | B59: 6222000909969 | C59: منتج 56 | D59: كرتونة | E59: 27 | T59: 0
A60: 57 | B60: 622200097116 | C60: منتج 57 | D60: كرتونة | E60: 116 | T60: 0
A61: 58 | B61: 6222000912372 | C61: منتج 58 | D61: كرتونة | E61: 144 | T61: 0
A62: 59 | B62: 6222000912488 | C62: منتج 59 | D62: كرتونة | E62: 260 | T62: 0
A63: 60 | B63: 6222000914383 | C63: منتج 60 | D63: كرتونة | E63: 0 | T63: 0
A64: 61 | B64: 6222000914369 | C64: منتج 61 | D64: كرتونة | E64: 56 | T64: 0
A65: 62 | B65: 6222000914376 | C65: منتج 62 | D65: كرتونة | E65: 108 | T65: 0
A66: 63 | B66: 6222000912365 | C66: منتج 63 | D66: كرتونة | E66: 8 | T66: 0
A67: 64 | B67: 6222000902083 | C67: منتج 64 | D67: كرتونة | E67: 93 | T67: 0
A68: 65 | B68: 6222000913904 | C68: منتج 65 | D68: كرتونة | E68: 62 | T68: 0
A69: 66 | B69: EG-670026743-2453 | C69: منتج 66 | D69: كرتونة | E69: 0 | T69: =SUM(F69:S69) -> 0
A70: 67 | B70: 6222000915243 | C70: منتج 67 | D70: كرتونة | E70: 21 | T70: 0
A71: 68 | B71: 6888000909953 | C71: منتج 68 | D71: كرتونة | E71: 442 | T71: 0
A72: الاجمالى | E72: =SUM(E4:E71) -> 9502 | F72: =SUM(F4:F71) -> 0 | G72: 0 | H72: 0 | I72: 0 | J72: 0 | K72: 0 | L72: 0 | M72: 0 | N72: 0 | O72: 0 | P72: 0 | Q72: 0 | R72: 0 | S72: 0 | T72: 0

Sheet كفرالشيخ
A1: رصيد توكيل(كفر الشيخ) عن يوم ( 8/2/2025)
A2: م | B2: الكود | C2: الصنف | D2: الوحدة | E2: الرصيد الدفترى بالكرتونة | F2: تاريخ الانتاج | T2: الرصيد الفعلى بالكرتونة
F3: 2024-01-01 | G3: 2024-02-01 | H3: 2024-03-01 | I3: 2024-04-01 | J3: 2024-05-01 | K3: 2024-06-01 | L3: 2024-07-01 | M3: 2024-08-01 | N3: 2024-09-01 | O3: 2024-10-01 | P3: 2024-11-01 | Q3: 2024-12-01 | R3: 2025-01-01 | S3: 2025-02-01
A4: 1 | B4: 6222000901529 | C4: منتج 1 | D4: كرتونة | E4: 212 | T4: =SUM(F4:S4) -> 0
A5: 2 | B5: 6222000901536 | C5: منتج 2 | D5: كرتونة | E5: 141 | T5: =SUM(F5:S5) -> 0
A6: 3 | B6: 6222000911733 | C6: منتج 3 | D6: كرتونة | E6: 122 | T6: 0
A7: 4 | B7: 6222000911764 | C7: منتج 4 | D7: كرتونة | E7: 0 | T7: 0
A8: 5 | B8: 00743 | C8: منتج 5 | D8: كرتونة | E8: 36 | T8: 0
A9: 6 | B9: 6222000901758 | C9: منتج 6 | D9: كرتونة | E9: 275 | T9: 0
A10: 7 | B10: 6222000912020 | C10: منتج 7 | D10: كرتونة | E10: 85 | T10: 0
A11: 8 | B11: 6222000909815 | C11: منتج 8 | D11: كرتونة | E11: 86 | T11: 0
A12: 9 | B12: 6222000908610 | C12: منتج 9 | D12: كرتونة | E12: 0 | T12: 0
A13: 10 | B13: 6222000909891 | C13: منتج 10 | D13: كرتونة | E13: 0 | T13: 0
A14: 11 | B14: 6222000911757 | C14: منتج 11 | D14: كرتونة | E14: 0 | T14: 0
A15: 12 | B15: 00744 | C15: منتج 12 | D15: كرتونة | E15: 103 | T15: 0
A16: 13 | B16: 6222000901642 | C16: منتج 13 | D16: كرتونة | E16: 1041 | T16: 0
A17: 14 | B17: 6222000912037 | C17: منتج 14 | D17: كرتونة | E17: 195 | T17: 0
A18: 15 | B18: 6222000909808 | C18: منتج 15 | D18: كرتونة | E18: 0 | T18: 0
A19: 16 | B19: 6222000905268 | C19: منتج 16 | D19: كرتونة | E19: 0 | T19: 0
A20: 17 | B20: 6222000907583 | C20: منتج 17 | D20: كرتونة | E20: 0 | T20: 0
A21: 18 | B21: 6222000909884 | C21: منتج 18 | D21: كرتونة | E21: 0 | T21: 0
A22: 19 | B22: 002770 | C22: منتج 19 | D22: كرتونة | E22: 0 | T22: 0
A23: 20 | B23: 6222000912525 | C23: منتج 20 | D23: كرتونة | E23: 24 | T23: 0
A24: 21 | B24: 6222000912518 | C24: منتج 21 | D24: كرتونة | E24: 36 | T24: 0
A25: 22 | B25: 6222000908566 | C25: منتج 22 | D25: كرتونة | E25: 15 | T25: 0
A26: 23 | B26: 6222000908573 | C26: منتج 23 | D26: كرتونة | E26: 65 | T26: 0
A27: 24 | B27: 6222000912501 | C27: منتج 24 | D27: كرتونة | E27: 0 | T27: 0
A28: 25 | B28: 6222000912457 | C28: منتج 25 | D28: كرتونة | E28: 40 | T28: 0
A29: 26 | B29: 6222000901611 | C29: منتج 26 | D29: كرتونة | E29: 485 | T29: 0
A30: 27 | B30: 6222000909907 | C30: منتج 27 | D30: كرتونة | E30: 0 | T30: 0
A31: 28 | B31: 6222000911498 | C31: منتج 28 | D31: كرتونة | E31: 20 | T31: 0
A32: 29 | B32: 002771 | C32: منتج 29 | D32: كرتونة | E32: 0 | T32: 0
A33: 30 | B33: 6222000912778 | C33: منتج 30 | D33: كرتونة | E33: 146 | T33: 0
A34: 31 | B34: 6222000912822 | C34: منتج 31 | D34: كرتونة | E34: 30 | T34: 0
A35: 32 | B35: 6222000912532 | C35: منتج 32 | D35: كرتونة | E35: 68 | T35: 0
A36: 33 | B36: 6222000901697 | C36: منتج 33 | D36: كرتونة | E36: 231 | T36: 0
A37: 34 | B37: 6222000911481 | C37: منتج 34 | D37: كرتونة | E37: 0 | T37: 0
A38: 35 | B38: 6222000908276 | C38: منتج 35 | D38: كرتونة | E38: 101 | T38: 0
A39: 36 | B39: 6222000909921 | C39: منتج 36 | D39: كرتونة | E39: 0 | T39: 0
A40: 37 | B40: 6222000909839 | C40: منتج 37 | D40: كرتونة | E40: 64 | T40: 0
A41: 38 | B41: 6222000908825 | C41: منتج 38 | D41: كرتونة | E41: 42 | T41: 0
A42: 39 | B42: 6222000907637 | C42: منتج 39 | D42: كرتونة | E42: 0 | T42: 0
A43: 40 | B43: 6222000903295 | C43: منتج 40 | D43: كرتونة | E43: 25 | T43: 0
A44: 41 | B44: 6222000912006 | C44: منتج 41 | D44: كرتونة | E44: 44 | T44: 0
A45: 42 | B45: 6222000911993 | C45: منتج 42 | D45: كرتونة | E45: 31 | T45: 0
A46: 43 | B46: 6222000912013 | C46: منتج 43 | D46: كرتونة | E46: 44 | T46: 0
A47: 44 | B47: 6222000964197 | C47: منتج 44 | D47: كرتونة | E47: 234 | T47: 0
A48: 45 | B48: 6222000906630 | C48: منتج 45 | D48: كرتونة | E48: 79 | T48: 0
A49: 46 | B49: 6222000902519 | C49: منتج 46 | D49: كرتونة | E49: 79 | T49: 0
A50: 47 | B50: 6222000902557 | C50: منتج 47 | D50: كرتونة | E50: 113 | T50: 0
A51: 48 | B51: 6222000902564 | C51: منتج 48 | D51: كرتونة | E51: 58 | T51: 0
A52: 49 | B52: 6222000910033 | C52: منتج 49 | D52: كرتونة | E52: 0 | T52: 0
A53: 50 | B53: 6222000910026 | C53: منتج 50 | D53: كرتونة | E53: 0 | T53: 0
A54: 51 | B54: 6222000909945 | C54: منتج 51 | D54: كرتونة | E54: 0 | T54: 0
A55: 52 | B55: 6222000910200 | C55: منتج 52 | D55: كرتونة | E55: 1436 | T55: 0
A56: 53 | B56: 6222000910514 | C56: منتج 53 | D56: كرتونة | E56: 645 | T56: 0
A57: 54 | B57: 6222000909976 | C57: منتج 54 | D57: كرتونة | E57: 2133 | T57: 0
A58: 55 | B58: 6222000909983 | C58: منتج 55 | D58: كرتونة | E58: 561 | T58: 0
A59: 56 | B59: 6222000909969 | C59: منتج 56 | D59: كرتونة | E59: 273 | T59: 0
A60: 57 | B60: 622200097116 | C60: منتج 57 | D60: كرتونة | E60: 421 | T60: 0
A61: 58 | B61: 6222000912372 | C61: منتج 58 | D61: كرتونة | E61: 730 | T61: 0
A62: 59 | B62: 6222000912488 | C62: منتج 59 | D62: كرتونة | E62: 227 | T62: 0
A63: 60 | B63: 6222000914383 | C63: منتج 60 | D63: كرتونة | E63: 0 | T63: 0
A64: 61 | B64: 6222000914369 | C64: منتج 61 | D64: كرتونة | E64: 1 | T64: 0
A65: 62 | B65: 6222000914376 | C65: منتج 62 | D65: كرتونة | E65: 0 | T65: 0
A66: 63 | B66: 6222000912365 | C66: منتج 63 | D66: كرتونة | E66: 0 | T66: 0
A67: 64 | B67: 6222000902083 | C67: منتج 64 | D67: كرتونة | E67: 89 | T67: 0
A68: 65 | B68: 6222000913904 | C68: منتج 65 | D68: كرتونة | E68: 55 | T68: 0
A69: 66 | B69: EG-670026743-2453 | C69: منتج 66 | D69: كرتونة | E69: 0 | T69: =SUM(F69:S69) -> 0
A70: 67 | B70: 6222000915243 | C70: منتج 67 | D70: كرتونة | E70: 0 | T70: 0
A71: 68 | B71: 6888000909953 | C71: منتج 68 | D71: كرتونة | E71: 0 | T71: 0
A72: الاجمالى | E72: =SUM(E4:E71) -> 10941 | F72: 0 | G72: 0 | H72: 0 | I72: 0 | J72: 0 | K72: 0 | L72: 0 | M72: 0 | N72: 0 | O72: 0 | P72: 0 | Q72: 0 | R72: 0 | S72: 0 | T72: 0

Sheet البحيرة
A1: رصيد توكيل ( البحيره ) عن يوم ( 8/2/2025 )
A2: م | B2: الكود | C2: الصنف | D2: الوحدة | E2: الرصيد الدفترى بالكرتونة | F2: تاريخ الانتاج | T2: الرصيد الفعلى بالكرتونة
F3: 2024-01-01 | G3: 2024-02-01 | H3: 2024-03-01 | I3: 2024-04-01 | J3: 2024-05-01 | K3: 2024-06-01 | L3: 2024-07-01 | M3: 2024-08-01 | N3: 2024-09-01 | O3: 2024-10-01 | P3: 2024-11-01 | Q3: 2024-12-01 | R3: 2025-01-01 | S3: 2025-02-01
A4: 1 | B4: 6222000901529 | C4: منتج 1 | D4: كرتونة | E4: 128 | T4: =SUM(F4:S4) -> 0
A5: 2 | B5: 6222000901536 | C5: منتج 2 | D5: كرتونة | E5: 163 | T5: =SUM(F5:S5) -> 0
A6: 3 | B6: 6222000911733 | C6: منتج 3 | D6: كرتونة | E6: 0 | T6: 0
A7: 4 | B7: 6222000911764 | C7: منتج 4 | D7: كرتونة | E7: 0 | T7: 0
A8: 5 | B8: 00743 | C8: منتج 5 | D8: كرتونة | E8: 0 | T8: 0
A9: 6 | B9: 6222000901758 | C9: منتج 6 | D9: كرتونة | E9: 346 | T9: 0
A10: 7 | B10: 6222000912020 | C10: منتج 7 | D10: كرتونة | E10: 64 | T10: 0
A11: 8 | B11: 6222000909815 | C11: منتج 8 | D11: كرتونة | E11: 301 | T11: 0
A12: 9 | B12: 6222000908610 | C12: منتج 9 | D12: كرتونة | E12: 36 | T12: 0
A13: 10 | B13: 6222000909891 | C13: منتج 10 | D13: كرتونة | E13: 0 | T13: 0
A14: 11 | B14: 6222000911757 | C14: منتج 11 | D14: كرتونة | E14: 0 | T14: 0
A15: 12 | B15: 00744 | C15: منتج 12 | D15: كرتونة | E15: 128 | T15: 0
A16: 13 | B16: 6222000901642 | C16: منتج 13 | D16: كرتونة | E16: 167 | T16: 0
A17: 14 | B17: 6222000912037 | C17: منتج 14 | D17: كرتونة | E17: 161 | T17: 0
A18: 15 | B18: 6222000909808 | C18: منتج 15 | D18: كرتونة | E18: 65 | T18: 0
A19: 16 | B19: 6222000905268 | C19: منتج 16 | D19: كرتونة | E19: 0 | T19: 0
A20: 17 | B20: 6222000907583 | C20: منتج 17 | D20: كرتونة | E20: 0 | T20: 0
A21: 18 | B21: 6222000909884 | C21: منتج 18 | D21: كرتونة | E21: 0 | T21: 0
A22: 19 | B22: 002770 | C22: منتج 19 | D22: كرتونة | E22: 0 | T22: 0
A23: 20 | B23: 6222000912525 | C23: منتج 20 | D23: كرتونة | E23: 176 | T23: 0
A24: 21 | B24: 6222000912518 | C24: منتج 21 | D24: كرتونة | E24: 344 | T24: 0
A25: 22 | B25: 6222000908566 | C25: منتج 22 | D25: كرتونة | E25: 0 | T25: 0
A26: 23 | B26: 6222000908573 | C26: منتج 23 | D26: كرتونة | E26: 82 | T26: 0
A27: 24 | B27: 6222000912501 | C27: منتج 24 | D27: كرتونة | E27: 0 | T27: 0
A28: 25 | B28: 6222000912457 | C28: منتج 25 | D28: كرتونة | E28: 18 | T28: 0
A29: 26 | B29: 6222000901611 | C29: منتج 26 | D29: كرتونة | E29: 380 | T29: 0
A30: 27 | B30: 6222000909907 | C30: منتج 27 | D30: كرتونة | E30: 0 | T30: 0
A31: 28 | B31: 6222000911498 | C31: منتج 28 | D31: كرتونة | E31: 2 | T31: 0
A32: 29 | B32: 002771 | C32: منتج 29 | D32: كرتونة | E32: 0 | T32: 0
A33: 30 | B33: 6222000912778 | C33: منتج 30 | D33: كرتونة | E33: 341 | T33: 0
A34: 31 | B34: 6222000912822 | C34: منتج 31 | D34: كرتونة | E34: 0 | T34: 0
A35: 32 | B35: 6222000912532 | C35: منتج 32 | D35: كرتونة | E35: 116 | T35: 0
A36: 33 | B36: 6222000901697 | C36: منتج 33 | D36: كرتونة | E36: 87 | T36: 0
A37: 34 | B37: 6222000911481 | C37: منتج 34 | D37: كرتونة | E37: 0 | T37: 0
A38: 35 | B38: 6222000908276 | C38: منتج 35 | D38: كرتونة | E38: 208 | T38: 0
A39: 36 | B39: 6222000909921 | C39: منتج 36 | D39: كرتونة | E39: 0 | T39: 0
A40: 37 | B40: 6222000909839 | C40: منتج 37 | D40: كرتونة | E40: 182 | T40: =SUM(F40:S40) -> 0
A41: 38 | B41: 6222000908825 | C41: منتج 38 | D41: كرتونة | E41: 25 | T41: 0
A42: 39 | B42: 6222000907637 | C42: منتج 39 | D42: كرتونة | E42: 0 | T42: 0
A43: 40 | B43: 6222000903295 | C43: منتج 40 | D43: كرتونة | E43: 0 | T43: 0
A44: 41 | B44: 6222000912006 | C44: منتج 41 | D44: كرتونة | E44: 448 | T44: 0
A45: 42 | B45: 6222000911993 | C45: منتج 42 | D45: كرتونة | E45: 318 | T45: 0
A46: 43 | B46: 6222000912013 | C46: منتج 43 | D46: كرتونة | E46: 462 | T46: 0
A47: 44 | B47: 6222000964197 | C47: منتج 44 | D47: كرتونة | E47: 18 | T47: 0
A48: 45 | B48: 6222000906630 | C48: منتج 45 | D48: كرتونة | E48: 1 | T48: 0
A49: 46 | B49: 6222000902519 | C49: منتج 46 | D49: كرتونة | E49: 11 | T49: 0
A50: 47 | B50: 6222000902557 | C50: منتج 47 | D50: كرتونة | E50: 203 | T50: 0
A51: 48 | B51: 6222000902564 | C51: منتج 48 | D51: كرتونة | E51: 80 | T51: 0
A52: 49 | B52: 6222000910033 | C52: منتج 49 | D52: كرتونة | E52: 0 | T52: 0
A53: 50 | B53: 6222000910026 | C53: منتج 50 | D53: كرتونة | E53: 0 | T53: 0
A54: 51 | B54: 6222000909945 | C54: منتج 51 | D54: كرتونة | E54: 0 | T54: 0
A55: 52 | B55: 6222000910200 | C55: منتج 52 | D55: كرتونة | E55: 972 | T55: 0
A56: 53 | B56: 6222000910514 | C56: منتج 53 | D56: كرتونة | E56: 890 | T56: 0
A57: 54 | B57: 6222000909976 | C57: منتج 54 | D57: كرتونة | E57: 766 | T57: 0
A58: 55 | B58: 6222000909983 | C58: منتج 55 | D58: كرتونة | E58: 550 | T58: 0
A59: 56 | B59: 6222000909969 | C59: منتج 56 | D59: كرتونة | E59: 366 | T59: 0
A60: 57 | B60: 622200097116 | C60: منتج 57 | D60: كرتونة | E60: 417 | T60: 0
A61: 58 | B61: 6222000912372 | C61: منتج 58 | D61: كرتونة | E61: 2679 | T61: 0
A62: 59 | B62: 6222000912488 | C62: منتج 59 | D62: كرتونة | E62: 850 | T62: 0
A63: 60 | B63: 6222000914383 | C63: منتج 60 | D63: كرتونة | E63: 0 | T63: 0
A64: 61 | B64: 6222000914369 | C64: منتج 61 | D64: كرتونة | E64: 0 | T64: 0
A65: 62 | B65: 6222000914376 | C65: منتج 62 | D65: كرتونة | E65: 0 | T65: 0
A66: 63 | B66: 6222000912365 | C66: منتج 63 | D66: كرتونة | E66: 0 | T66: 0
A67: 64 | B67: 6222000902083 | C67: منتج 64 | D67: كرتونة | E67: 0 | T67: 0
A68: 65 | B68: 6222000913904 | C68: منتج 65 | D68: كرتونة | E68: 0 | T68: 0
A69: 66 | B69: EG-670026743-2453 | C69: منتج 66 | D69: كرتونة | E69: 0 | T69: =SUM(F69:S69) -> 0
A70: 67 | B70: 6222000915243 | C70: منتج 67 | D70: كرتونة | E70: 0 | T70: 0
A71: 68 | B71: 6888000909953 | C71: منتج 68 | D71: كرتونة | E71: 0 | T71: 0
A72: الاجمالى | E72: =SUM(E4:E71) -> 12551 | F72: =SUM(F4:F71) -> 0 | G72: 0 | H72: 0 | I72: 0 | J72: 0 | K72: 0 | L72: 0 | M72: 0 | N72: 0 | O72: 0 | P72: 0 | Q72: 0 | R72: 0 | S72: 0 | T72: 0

Sheet طنطا
A1: رصيد توكيل ( طنطا ) عن يوم ( 2025/2/8 )
A2: م | B2: الكود | C2: الصنف | D2: الوحدة | E2: الرصيد الدفترى بالكرتونة | F2: تاريخ الانتاج | T2: الرصيد الفعلى بالكرتونة
F3: 2024-01-01 | G3: 2024-02-01 | H3: 2024-03-01 | I3: 2024-04-01 | J3: 2024-05-01 | K3: 2024-06-01 | L3: 2024-07-01 | M3: 2024-08-01 | N3: 2024-09-01 | O3: 2024-10-01 | P3: 2024-11-01 | Q3: 2024-12-01 | R3: 2025-01-01 | S3: 2025-02-01
A4: 1 | B4: 6222000901529 | C4: منتج 1 | D4: كرتونة | E4: 72 | T4: =SUM(F4:S4) -> 0
A5: 2 | B5: 6222000901536 | C5: منتج 2 | D5: كرتونة | E5: 282 | T5: =SUM(F5:S5) -> 0
A6: 3 | B6: 6222000911733 | C6: منتج 3 | D6: كرتونة | E6: 189 | T6: 0
A7: 4 | B7: 6222000911764 | C7: منتج 4 | D7: كرتونة | E7: 55 | T7: 0
A8: 5 | B8: 00743 | C8: منتج 5 | D8: كرتونة | E8: 25 | T8: 0
A9: 6 | B9: 6222000901758 | C9: منتج 6 | D9: كرتونة | E9: 482 | T9: 0
A10: 7 | B10: 6222000912020 | C10: منتج 7 | D10: كرتونة | E10: 98 | T10: 0
A11: 8 | B11: 6222000909815 | C11: منتج 8 | D11: كرتونة | E11: 87 | T11: 0
A12: 9 | B12: 6222000908610 | C12: منتج 9 | D12: كرتونة | E12: 85 | T12: 0
A13: 10 | B13: 6222000909891 | C13: منتج 10 | D13: كرتونة | E13: 1 | T13: 0
A14: 11 | B14: 6222000911757 | C14: منتج 11 | D14: كرتونة | E14: 0 | T14: 0
A15: 12 | B15: 00744 | C15: منتج 12 | D15: كرتونة | E15: 48 | T15: 0
A16: 13 | B16: 6222000901642 | C16: منتج 13 | D16: كرتونة | E16: 1490 | T16: 0
A17: 14 | B17: 6222000912037 | C17: منتج 14 | D17: كرتونة | E17: 97 | T17: 0
A18: 15 | B18: 6222000909808 | C18: منتج 15 | D18: كرتونة | E18: 0 | T18: 0
A19: 16 | B19: 6222000905268 | C19: منتج 16 | D19: كرتونة | E19: 0 | T19: 0
A20: 17 | B20: 6222000907583 | C20: منتج 17 | D20: كرتونة | E20: 0 | T20: 0
A21: 18 | B21: 6222000909884 | C21: منتج 18 | D21: كرتونة | E21: 45 | T21: 0
A22: 19 | B22: 002770 | C22: منتج 19 | D22: كرتونة | E22: 0 | T22: 0
A23: 20 | B23: 6222000912525 | C23: منتج 20 | D23: كرتونة | E23: 63 | T23: 0
A24: 21 | B24: 6222000912518 | C24: منتج 21 | D24: كرتونة | E24: 0 | T24: 0
A25: 22 | B25: 6222000908566 | C25: منتج 22 | D25: كرتونة | E25: 67 | T25: 0
A26: 23 | B26: 6222000908573 | C26: منتج 23 | D26: كرتونة | E26: 48 | T26: 0
A27: 24 | B27: 6222000912501 | C27: منتج 24 | D27: كرتونة | E27: 11 | T27: 0
A28: 25 | B28: 6222000912457 | C28: منتج 25 | D28: كرتونة | E28: 50 | T28: 0
A29: 26 | B29: 6222000901611 | C29: منتج 26 | D29: كرتونة | E29: 932 | T29: 0
A30: 27 | B30: 6222000909907 | C30: منتج 27 | D30: كرتونة | E30: 11 | T30: 0
A31: 28 | B31: 6222000911498 | C31: منتج 28 | D31: كرتونة | E31: 5 | T31: 0
A32: 29 | B32: 002771 | C32: منتج 29 | D32: كرتونة | E32: 0 | T32: 0
A33: 30 | B33: 6222000912778 | C33: منتج 30 | D33: كرتونة | E33: 83 | T33: 0
A34: 31 | B34: 6222000912822 | C34: منتج 31 | D34: كرتونة | E34: 0 | T34: 0
A35: 32 | B35: 6222000912532 | C35: منتج 32 | D35: كرتونة | E35: 23 | T35: 0
A36: 33 | B36: 6222000901697 | C36: منتج 33 | D36: كرتونة | E36: 101 | T36: 0
A37: 34 | B37: 6222000911481 | C37: منتج 34 | D37: كرتونة | E37: 0 | T37: 0
A38: 35 | B38: 6222000908276 | C38: منتج 35 | D38: كرتونة | E38: 58 | T38: 0
A39: 36 | B39: 6222000909921 | C39: منتج 36 | D39: كرتونة | E39: 0 | T39: 0
A40: 37 | B40: 6222000909839 | C40: منتج 37 | D40: كرتونة | E40: 10 | T40: 0
A41: 38 | B41: 6222000908825 | C41: منتج 38 | D41: كرتونة | E41: 0 | T41: 0
A42: 39 | B42: 6222000907637 | C42: منتج 39 | D42: كرتونة | E42: 12 | T42: 0
A43: 40 | B43: 6222000903295 | C43: منتج 40 | D43: كرتونة | E43: 35 | T43: 0
A44: 41 | B44: 6222000912006 | C44: منتج 41 | D44: كرتونة | E44: 163 | T44: 0
A45: 42 | B45: 6222000911993 | C45: منتج 42 | D45: كرتونة | E45: 148 | T45: 0
A46: 43 | B46: 6222000912013 | C46: منتج 43 | D46: كرتونة | E46: 122 | T46: 0
A47: 44 | B47: 6222000964197 | C47: منتج 44 | D47: كرتونة | E47: 0 | T47: 0
A48: 45 | B48: 6222000906630 | C48: منتج 45 | D48: كرتونة | E48: 53 | T48: 0
A49: 46 | B49: 6222000902519 | C49: منتج 46 | D49: كرتونة | E49: 142 | T49: 0
A50: 47 | B50: 6222000902557 | C50: منتج 47 | D50: كرتونة | E50: 197 | T50: 0
A51: 48 | B51: 6222000902564 | C51: منتج 48 | D51: كرتونة | E51: 214 | T51: 0
A52: 49 | B52: 6222000910033 | C52: منتج 49 | D52: كرتونة | E52: 0 | T52: 0
A53: 50 | B53: 6222000910026 | C53: منتج 50 | D53: كرتونة | E53: 0 | T53: 0
A54: 51 | B54: 6222000909945 | C54: منتج 51 | D54: كرتونة | E54: 0 | T54: 0
A55: 52 | B55: 6222000910200 | C55: منتج 52 | D55: كرتونة | E55: 665 | T55: 0
A56: 53 | B56: 6222000910514 | C56: منتج 53 | D56: كرتونة | E56: 162 | T56: 0
A57: 54 | B57: 6222000909976 | C57: منتج 54 | D57: كرتونة | E57: 2469 | T57: 0
A58: 55 | B58: 6222000909983 | C58: منتج 55 | D58: كرتونة | E58: 1442 | T58: 0
A59: 56 | B59: 6222000909969 | C59: منتج 56 | D59: كرتونة | E59: 449 | T59: 0
A60: 57 | B60: 622200097116 | C60: منتج 57 | D60: كرتونة | E60: 1057 | T60: 0
A61: 58 | B61: 6222000912372 | C61: منتج 58 | D61: كرتونة | E61: 88 | T61: 0
A62: 59 | B62: 6222000912488 | C62: منتج 59 | D62: كرتونة | E62: 317 | T62: 0
A63: 60 | B63: 6222000914383 | C63: منتج 60 | D63: كرتونة | E63: 0 | T63: 0
A64: 61 | B64: 6222000914369 | C64: منتج 61 | D64: كرتونة | E64: 0 | T64: 0
A65: 62 | B65: 6222000914376 | C65: منتج 62 | D65: كرتونة | E65: 0 | T65: 0
A66: 63 | B66: 6222000912365 | C66: منتج 63 | D66: كرتونة | E66: 0 | T66: 0
A67: 64 | B67: 6222000902083 | C67: منتج 64 | D67: كرتونة | E67: 69 | T67: 0
A68: 65 | B68: 6222000913904 | C68: منتج 65 | D68: كرتونة | E68: 57 | T68: 0
A69: 66 | B69: EG-670026743-2453 | C69: منتج 66 | D69: كرتونة | E69: 0 | T69: =SUM(F69:S69) -> 0
A70: 67 | B70: 6222000915243 | C70: منتج 67 | D70: كرتونة | E70: 94 | T70: 0
A71: 68 | B71: 6888000909953 | C71: منتج 68 | D71: كرتونة | E71: 0 | T71: 0
A72: الاجمالى | E72: =SUM(E4:E71) -> 12473 | F72: =SUM(F4:F71) -> 0 | G72: 0 | H72: 0 | I72: 0 | J72: 0 | K72: 0 | L72: 0 | M72: 0 | N72: 0 | O72: 0 | P72: 0 | Q72: 0 | R72: 0 | S72: 0 | T72: 0

Sheet المنصورة
A1: رصيد توكيل ( المنصوره ) عن يوم ( 8\2\2025 )
A2: م | B2: الكود | C2: الصنف | D2: الوحدة | E2: الرصيد الدفترى بالكرتونة | F2: تاريخ الانتاج | T2: الرصيد الفعلى بالكرتونة
F3: 2024-01-01 | G3: 2024-02-01 | H3: 2024-03-01 | I3: 2024-04-01 | J3: 2024-05-01 | K3: 2024-06-01 | L3: 2024-07-01 | M3: 2024-08-01 | N3: 2024-09-01 | O3: 2024-10-01 | P3: 2024-11-01 | Q3: 2024-12-01 | R3: 2025-01-01 | S3: 2025-02-01
A4: 1 | B4: 6222000901529 | C4: منتج 1 | D4: كرتونة | E4: 35 | T4: =SUM(F4:S4) -> 0
A5: 2 | B5: 6222000901536 | C5: منتج 2 | D5: كرتونة | E5: 105 | T5: =SUM(F5:S5) -> 0
A6: 3 | B6: 6222000911733 | C6: منتج 3 | D6: كرتونة | E6: 0 | T6: 0
A7: 4 | B7: 6222000911764 | C7: منتج 4 | D7: كرتونة | E7: 0 | T7: 0
A8: 5 | B8: 00743 | C8: منتج 5 | D8: كرتونة | E8: 0 | T8: 0
A9: 6 | B9: 6222000901758 | C9: منتج 6 | D9: كرتونة | E9: 758 | T9: 0
A10: 7 | B10: 6222000912020 | C10: منتج 7 | D10: كرتونة | E10: 67 | T10: 0
A11: 8 | B11: 6222000909815 | C11: منتج 8 | D11: كرتونة | E11: 0 | T11: 0
A12: 9 | B12: 6222000908610 | C12: منتج 9 | D12: كرتونة | E12: 0 | T12: 0
A13: 10 | B13: 6222000909891 | C13: منتج 10 | D13: كرتونة | E13: 0 | T13: 0
A14: 11 | B14: 6222000911757 | C14: منتج 11 | D14: كرتونة | E14: 0 | T14: 0
A15: 12 | B15: 00744 | C15: منتج 12 | D15: كرتونة | E15: 66 | T15: 0
A16: 13 | B16: 6222000901642 | C16: منتج 13 | D16: كرتونة | E16: 631 | T16: 0
A17: 14 | B17: 6222000912037 | C17: منتج 14 | D17: كرتونة | E17: 89 | T17: 0
A18: 15 | B18: 6222000909808 | C18: منتج 15 | D18: كرتونة | E18: 0 | T18: 0
A19: 16 | B19: 6222000905268 | C19: منتج 16 | D19: كرتونة | E19: 0 | T19: 0
A20: 17 | B20: 6222000907583 | C20: منتج 17 | D20: كرتونة | E20: 0 | T20: 0
A21: 18 | B21: 6222000909884 | C21: منتج 18 | D21: كرتونة | E21: 0 | T21: 0
A22: 19 | B22: 002770 | C22: منتج 19 | D22: كرتونة | E22: 0 | T22: 0
A23: 20 | B23: 6222000912525 | C23: منتج 20 | D23: كرتونة | E23: 15 | T23: 0
A24: 21 | B24: 6222000912518 | C24: منتج 21 | D24: كرتونة | E24: 15 | T24: 0
A25: 22 | B25: 6222000908566 | C25: منتج 22 | D25: كرتونة | E25: 0 | T25: 0
A26: 23 | B26: 6222000908573 | C26: منتج 23 | D26: كرتونة | E26: 247 | T26: 0
A27: 24 | B27: 6222000912501 | C27: منتج 24 | D27: كرتونة | E27: 30 | T27: 0
A28: 25 | B28: 6222000912457 | C28: منتج 25 | D28: كرتونة | E28: 33 | T28: 0
A29: 26 | B29: 6222000901611 | C29: منتج 26 | D29: كرتونة | E29: 1250 | T29: 0
A30: 27 | B30: 6222000909907 | C30: منتج 27 | D30: كرتونة | E30: 0 | T30: 0
A31: 28 | B31: 6222000911498 | C31: منتج 28 | D31: كرتونة | E31: 50 | T31: 0
A32: 29 | B32: 002771 | C32: منتج 29 | D32: كرتونة | E32: 0 | T32: 0
A33: 30 | B33: 6222000912778 | C33: منتج 30 | D33: كرتونة | E33: 55 | T33: 0
A34: 31 | B34: 6222000912822 | C34: منتج 31 | D34: كرتونة | E34: 0 | T34: 0
A35: 32 | B35: 6222000912532 | C35: منتج 32 | D35: كرتونة | E35: 45 | T35: 0
A36: 33 | B36: 6222000901697 | C36: منتج 33 | D36: كرتونة | E36: 195 | T36: 0
A37: 34 | B37: 6222000911481 | C37: منتج 34 | D37: كرتونة | E37: 0 | T37: 0
A38: 35 | B38: 6222000908276 | C38: منتج 35 | D38: كرتونة | E38: 0 | T38: 0
A39: 36 | B39: 6222000909921 | C39: منتج 36 | D39: كرتونة | E39: 0 | T39: 0
A40: 37 | B40: 6222000909839 | C40: منتج 37 | D40: كرتونة | E40: 29 | T40: 0
A41: 38 | B41: 6222000908825 | C41: منتج 38 | D41: كرتونة | E41: 40 | T41: 0
A42: 39 | B42: 6222000907637 | C42: منتج 39 | D42: كرتونة | E42: 10 | T42: 0
A43: 40 | B43: 6222000903295 | C43: منتج 40 | D43: كرتونة | E43: 0 | T43: 0
A44: 41 | B44: 6222000912006 | C44: منتج 41 | D44: كرتونة | E44: 305 | T44: 0
A45: 42 | B45: 6222000911993 | C45: منتج 42 | D45: كرتونة | E45: 200 | T45: 0
A46: 43 | B46: 6222000912013 | C46: منتج 43 | D46: كرتونة | E46: 100 | T46: 0
A47: 44 | B47: 6222000964197 | C47: منتج 44 | D47: كرتونة | E47: 0 | T47: 0
A48: 45 | B48: 6222000906630 | C48: منتج 45 | D48: كرتونة | E48: 107 | T48: 0
A49: 46 | B49: 6222000902519 | C49: منتج 46 | D49: كرتونة | E49: 0 | T49: 0
A50: 47 | B50: 6222000902557 | C50: منتج 47 | D50: كرتونة | E50: 60 | T50: 0
A51: 48 | B51: 6222000902564 | C51: منتج 48 | D51: كرتونة | E51: 110 | T51: 0
A52: 49 | B52: 6222000910033 | C52: منتج 49 | D52: كرتونة | E52: 0 | T52: 0
A53: 50 | B53: 6222000910026 | C53: منتج 50 | D53: كرتونة | E53: 0 | T53: 0
A54: 51 | B54: 6222000909945 | C54: منتج 51 | D54: كرتونة | E54: 0 | T54: 0
A55: 52 | B55: 6222000910200 | C55: منتج 52 | D55: كرتونة | E55: 399 | T55: 0
A56: 53 | B56: 6222000910514 | C56: منتج 53 | D56: كرتونة | E56: 750 | T56: 0
A57: 54 | B57: 6222000909976 | C57: منتج 54 | D57: كرتونة | E57: 1965 | T57: 0
A58: 55 | B58: 6222000909983 | C58: منتج 55 | D58: كرتونة | E58: 0 | T58: 0
A59: 56 | B59: 6222000909969 | C59: منتج 56 | D59: كرتونة | E59: 1539 | T59: 0
A60: 57 | B60: 622200097116 | C60: منتج 57 | D60: كرتونة | E60: 0 | T60: 0
A61: 58 | B61: 6222000912372 | C61: منتج 58 | D61: كرتونة | E61: 900 | T61: 0
A62: 59 | B62: 6222000912488 | C62: منتج 59 | D62: كرتونة | E62: 270 | T62: 0
A63: 60 | B63: 6222000914383 | C63: منتج 60 | D63: كرتونة | E63: 0 | T63: 0
A64: 61 | B64: 6222000914369 | C64: منتج 61 | D64: كرتونة | E64: 0 | T64: 0
A65: 62 | B65: 6222000914376 | C65: منتج 62 | D65: كرتونة | E65: 0 | T65: 0
A66: 63 | B66: 6222000912365 | C66: منتج 63 | D66: كرتونة | E66: 0 | T66: 0
A67: 64 | B67: 6222000902083 | C67: منتج 64 | D67: كرتونة | E67: 0 | T67: 0
A68: 65 | B68: 6222000913904 | C68: منتج 65 | D68: كرتونة | E68: 0 | T68: 0
A69: 66 | B69: EG-670026743-2453 | C69: منتج 66 | D69: كرتونة | E69: 0 | T69: =SUM(F69:S69) -> 0
A70: 67 | B70: 6222000915243 | C70: منتج 67 | D70: كرتونة | E70: 50 | T70: 0
A71: 68 | B71: 6888000909953 | C71: منتج 68 | D71: كرتونة | E71: 590 | T71: 0
A72: الاجمالى | E72: =SUM(E4:E71) -> 11110 | F72: =SUM(F4:F71) -> 0 | G72: 0 | H72: 0 | I72: 0 | J72: 0 | K72: 0 | L72: 0 | M72: 0 | N72: 0 | O72: 0 | P72: 0 | Q72: 0 | R72: 0 | S72: 0 | T72: 0

Sheet دكرنس
A1: رصيد توكيل (دكرنس ) عن يوم ( 8/02/2025 )
A2: م | B2: الكود | C2: الصنف | D2: الوحدة | E2: الرصيد الدفترى بالكرتونة | F2: تاريخ الانتاج | T2: الرصيد الفعلى بالكرتونة
F3: 2024-01-01 | G3: 2024-02-01 | H3: 2024-03-01 | I3: 2024-04-01 | J3: 2024-05-01 | K3: 2024-06-01 | L3: 2024-07-01 | M3: 2024-08-01 | N3: 2024-09-01 | O3: 2024-10-01 | P3: 2024-11-01 | Q3: 2024-12-01 | R3: 2025-01-25 | S3: 2025-02-25
A4: 1 | B4: 6222000901529 | C4: منتج 1 | D4: كرتونة | E4: 0 | T4: =SUM(F4:S4) -> 0
A5: 2 | B5: 6222000901536 | C5: منتج 2 | D5: كرتونة | E5: 22.5 | T5: =SUM(F5:S5) -> 0
A6: 3 | B6: 6222000911733 | C6: منتج 3 | D6: كرتونة | E6: 121 | T6: 0
A7: 4 | B7: 6222000911764 | C7: منتج 4 | D7: كرتونة | E7: 30 | T7: 0
A8: 5 | B8: 00743 | C8: منتج 5 | D8: كرتونة | E8: 0 | T8: 0
A9: 6 | B9: 6222000901758 | C9: منتج 6 | D9: كرتونة | E9: 613 | T9: 0
A10: 7 | B10: 6222000912020 | C10: منتج 7 | D10: كرتونة | E10: 64 | T10: 0
A11: 8 | B11: 6222000909815 | C11: منتج 8 | D11: كرتونة | E11: 8 | T11: 0
A12: 9 | B12: 6222000908610 | C12: منتج 9 | D12: كرتونة | E12: 129 | T12: 0
A13: 10 | B13: 6222000909891 | C13: منتج 10 | D13: كرتونة | E13: 0 | T13: 0
A14: 11 | B14: 6222000911757 | C14: منتج 11 | D14: كرتونة | E14: 0 | T14: 0
A15: 12 | B15: 00744 | C15: منتج 12 | D15: كرتونة | E15: 9 | T15: 0
A16: 13 | B16: 6222000901642 | C16: منتج 13 | D16: كرتونة | E16: 506 | T16: 0
A17: 14 | B17: 6222000912037 | C17: منتج 14 | D17: كرتونة | E17: 85 | T17: 0
A18: 15 | B18: 6222000909808 | C18: منتج 15 | D18: كرتونة | E18: 0 | T18: 0
A19: 16 | B19: 6222000905268 | C19: منتج 16 | D19: كرتونة | E19: 0 | T19: 0
A20: 17 | B20: 6222000907583 | C20: منتج 17 | D20: كرتونة | E20: 15 | T20: 0
A21: 18 | B21: 6222000909884 | C21: منتج 18 | D21: كرتونة | E21: 0 | T21: 0
A22: 19 | B22: 002770 | C22: منتج 19 | D22: كرتونة | E22: 0 | T22: 0
A23: 20 | B23: 6222000912525 | C23: منتج 20 | D23: كرتونة | E23: 0 | T23: 0
A24: 21 | B24: 6222000912518 | C24: منتج 21 | D24: كرتونة | E24: 51 | T24: 0
A25: 22 | B25: 6222000908566 | C25: منتج 22 | D25: كرتونة | E25: 0 | T25: 0
A26: 23 | B26: 6222000908573 | C26: منتج 23 | D26: كرتونة | E26: 16 | T26: 0
A27: 24 | B27: 6222000912501 | C27: منتج 24 | D27: كرتونة | E27: 3 | T27: 0
A28: 25 | B28: 6222000912457 | C28: منتج 25 | D28: كرتونة | E28: 34 | T28: 0
A29: 26 | B29: 6222000901611 | C29: منتج 26 | D29: كرتونة | E29: 518 | T29: 0
A30: 27 | B30: 6222000909907 | C30: منتج 27 | D30: كرتونة | E30: 0 | T30: 0
A31: 28 | B31: 6222000911498 | C31: منتج 28 | D31: كرتونة | E31: 63 | T31: 0
A32: 29 | B32: 002771 | C32: منتج 29 | D32: كرتونة | E32: 0 | T32: 0
A33: 30 | B33: 6222000912778 | C33: منتج 30 | D33: كرتونة | E33: 93 | T33: 0
A34: 31 | B34: 6222000912822 | C34: منتج 31 | D34: كرتونة | E34: 10 | T34: 0
A35: 32 | B35: 6222000912532 | C35: منتج 32 | D35: كرتونة | E35: 4 | T35: 0
A36: 33 | B36: 6222000901697 | C36: منتج 33 | D36: كرتونة | E36: 24 | T36: 0
A37: 34 | B37: 6222000911481 | C37: منتج 34 | D37: كرتونة | E37: 0 | T37: 0
A38: 35 | B38: 6222000908276 | C38: منتج 35 | D38: كرتونة | E38: 108 | T38: 0
A39: 36 | B39: 6222000909921 | C39: منتج 36 | D39: كرتونة | E39: 19 | T39: 0
A40: 37 | B40: 6222000909839 | C40: منتج 37 | D40: كرتونة | E40: 76 | T40: 0
A41: 38 | B41: 6222000908825 | C41: منتج 38 | D41: كرتونة | E41: 0 | T41: 0
A42: 39 | B42: 6222000907637 | C42: منتج 39 | D42: كرتونة | E42: 16 | T42: 0
A43: 40 | B43: 6222000903295 | C43: منتج 40 | D43: كرتونة | E43: 12 | T43: 0
A44: 41 | B44: 6222000912006 | C44: منتج 41 | D44: كرتونة | E44: 66 | T44: 0
A45: 42 | B45: 6222000911993 | C45: منتج 42 | D45: كرتونة | E45: 104 | T45: 0
A46: 43 | B46: 6222000912013 | C46: منتج 43 | D46: كرتونة | E46: 171 | T46: 0
A47: 44 | B47: 6222000964197 | C47: منتج 44 | D47: كرتونة | E47: 0 | T47: 0
A48: 45 | B48: 6222000906630 | C48: منتج 45 | D48: كرتونة | E48: 0 | T48: 0
A49: 46 | B49: 6222000902519 | C49: منتج 46 | D49: كرتونة | E49: 60 | T49: 0
A50: 47 | B50: 6222000902557 | C50: منتج 47 | D50: كرتونة | E50: 44 | T50: 0
A51: 48 | B51: 6222000902564 | C51: منتج 48 | D51: كرتونة | E51: 105 | T51: 0
A52: 49 | B52: 6222000910033 | C52: منتج 49 | D52: كرتونة | E52: 0 | T52: 0
A53: 50 | B53: 6222000910026 | C53: منتج 50 | D53: كرتونة | E53: 0 | T53: 0
A54: 51 | B54: 6222000909945 | C54: منتج 51 | D54: كرتونة | E54: 0 | T54: 0
A55: 52 | B55: 6222000910200 | C55: منتج 52 | D55: كرتونة | E55: 312 | T55: 0
A56: 53 | B56: 6222000910514 | C56: منتج 53 | D56: كرتونة | E56: 604 | T56: 0
A57: 54 | B57: 6222000909976 | C57: منتج 54 | D57: كرتونة | E57: 453 | T57: 0
A58: 55 | B58: 6222000909983 | C58: منتج 55 | D58: كرتونة | E58: 794 | T58: 0
A59: 56 | B59: 6222000909969 | C59: منتج 56 | D59: كرتونة | E59: 540 | T59: 0
A60: 57 | B60: 622200097116 | C60: منتج 57 | D60: كرتونة | E60: 0 | T60: 0
A61: 58 | B61: 6222000912372 | C61: منتج 58 | D61: كرتونة | E61: 96 | T61: 0
A62: 59 | B62: 6222000912488 | C62: منتج 59 | D62: كرتونة | E62: 127 | T62: 0
A63: 60 | B63: 6222000914383 | C63: منتج 60 | D63: كرتونة | E63: 0 | T63: 0
A64: 61 | B64: 6222000914369 | C64: منتج 61 | D64: كرتونة | E64: 0 | T64: 0
A65: 62 | B65: 6222000914376 | C65: منتج 62 | D65: كرتونة | E65: 0 | T65: 0
A66: 63 | B66: 6222000912365 | C66: منتج 63 | D66: كرتونة | E66: 0 | T66: 0
A67: 64 | B67: 6222000902083 | C67: منتج 64 | D67: كرتونة | E67: 0 | T67: 0
A68: 65 | B68: 6222000913904 | C68: منتج 65 | D68: كرتونة | E68: 0 | T68: 0
A69: 66 | B69: EG-670026743-2453 | C69: منتج 66 | D69: كرتونة | E69: 0 | T69: =SUM(F69:S69) -> 0
A70: 67 | B70: 6222000915243 | C70: منتج 67 | D70: كرتونة | E70: 0 | T70: 0
A71: 68 | B71: 6888000909953 | C71: منتج 68 | D71: كرتونة | E71: 21 | T71: 0
A72: الاجمالى | E72: =SUM(E4:E71) -> 6146.5 | F72: =SUM(F4:F71) -> 0 | G72: 0 | H72: 0 | I72: 0 | J72: 0 | K72: 0 | L72: 0 | M72: 0 | N72: 0 | O72: 0 | P72: 0 | Q72: 0 | R72: 0 | S72: 0 | T72: 0

Sheet دمياط
A1: رصيد توكيل ( دمياط ) عن يوم ( 8/2/2025 )
A2: م | B2: الكود | C2: الصنف | D2: الوحدة | E2: الرصيد الدفترى بالكرتونة | F2: تاريخ الانتاج | T2: الرصيد الفعلى بالكرتونة
F3: 2024-01-01 | G3: 2024-02-01 | H3: 2024-03-01 | I3: 2024-04-01 | J3: 2024-05-01 | K3: 2024-06-01 | L3: 2024-07-01 | M3: 2024-08-01 | N3: 2024-09-01 | O3: 2024-10-01 | P3: 2024-11-01 | Q3: 2024-12-01 | R3: 2025-01-01 | S3: 2025-02-01
A4: 1 | B4: 6222000901529 | C4: منتج 1 | D4: كرتونة | E4: 375 | T4: =SUM(F4:S4) -> 0
A5: 2 | B5: 6222000901536 | C5: منتج 2 | D5: كرتونة | E5: 117 | T5: =SUM(F5:S5) -> 0
A6: 3 | B6: 6222000911733 | C6: منتج 3 | D6: كرتونة | E6: 44 | T6: 0
A7: 4 | B7: 6222000911764 | C7: منتج 4 | D7: كرتونة | E7: 69 | T7: 0
A8: 5 | B8: 00743 | C8: منتج 5 | D8: كرتونة | E8: 3 | T8: 0
A9: 6 | B9: 6222000901758 | C9: منتج 6 | D9: كرتونة | E9: 906 | T9: 0
A10: 7 | B10: 6222000912020 | C10: منتج 7 | D10: كرتونة | E10: 106 | T10: 0
A11: 8 | B11: 6222000909815 | C11: منتج 8 | D11: كرتونة | E11: 127 | T11: 0
A12: 9 | B12: 6222000908610 | C12: منتج 9 | D12: كرتونة | E12: 0 | T12: 0
A13: 10 | B13: 6222000909891 | C13: منتج 10 | D13: كرتونة | E13: 0 | T13: 0
A14: 11 | B14: 6222000911757 | C14: منتج 11 | D14: كرتونة | E14: 0 | T14: 0
A15: 12 | B15: 00744 | C15: منتج 12 | D15: كرتونة | E15: 12 | T15: 0
A16: 13 | B16: 6222000901642 | C16: منتج 13 | D16: كرتونة | E16: 722 | T16: 0
A17: 14 | B17: 6222000912037 | C17: منتج 14 | D17: كرتونة | E17: 37 | T17: 0
A18: 15 | B18: 6222000909808 | C18: منتج 15 | D18: كرتونة | E18: 90 | T18: 0
A19: 16 | B19: 6222000905268 | C19: منتج 16 | D19: كرتونة | E19: 0 | T19: 0
A20: 17 | B20: 6222000907583 | C20: منتج 17 | D20: كرتونة | E20: 0 | T20: 0
A21: 18 | B21: 6222000909884 | C21: منتج 18 | D21: كرتونة | E21: 75 | T21: 0
A22: 19 | B22: 002770 | C22: منتج 19 | D22: كرتونة | E22: 0 | T22: 0
A23: 20 | B23: 6222000912525 | C23: منتج 20 | D23: كرتونة | E23: 0 | T23: 0
A24: 21 | B24: 6222000912518 | C24: منتج 21 | D24: كرتونة | E24: 67 | T24: 0
A25: 22 | B25: 6222000908566 | C25: منتج 22 | D25: كرتونة | E25: 29 | T25: 0
A26: 23 | B26: 6222000908573 | C26: منتج 23 | D26: كرتونة | E26: 17 | T26: 0
A27: 24 | B27: 6222000912501 | C27: منتج 24 | D27: كرتونة | E27: 0 | T27: 0
A28: 25 | B28: 6222000912457 | C28: منتج 25 | D28: كرتونة | E28: 36 | T28: 0
A29: 26 | B29: 6222000901611 | C29: منتج 26 | D29: كرتونة | E29: 55 | T29: 0
A30: 27 | B30: 6222000909907 | C30: منتج 27 | D30: كرتونة | E30: 21 | T30: 0
A31: 28 | B31: 6222000911498 | C31: منتج 28 | D31: كرتونة | E31: 84 | T31: 0
A32: 29 | B32: 002771 | C32: منتج 29 | D32: كرتونة | E32: 0 | T32: 0
A33: 30 | B33: 6222000912778 | C33: منتج 30 | D33: كرتونة | E33: 37 | T33: 0
A34: 31 | B34: 6222000912822 | C34: منتج 31 | D34: كرتونة | E34: 15 | T34: 0
A35: 32 | B35: 6222000912532 | C35: منتج 32 | D35: كرتونة | E35: 74 | T35: 0
A36: 33 | B36: 6222000901697 | C36: منتج 33 | D36: كرتونة | E36: 330 | T36: 0
A37: 34 | B37: 6222000911481 | C37: منتج 34 | D37: كرتونة | E37: 0 | T37: 0
A38: 35 | B38: 6222000908276 | C38: منتج 35 | D38: كرتونة | E38: 40 | T38: 0
A39: 36 | B39: 6222000909921 | C39: منتج 36 | D39: كرتونة | E39: 0 | T39: 0
A40: 37 | B40: 6222000909839 | C40: منتج 37 | D40: كرتونة | E40: 157 | T40: 0
A41: 38 | B41: 6222000908825 | C41: منتج 38 | D41: كرتونة | E41: 0 | T41: 0
A42: 39 | B42: 6222000907637 | C42: منتج 39 | D42: كرتونة | E42: 0 | T42: 0
A43: 40 | B43: 6222000903295 | C43: منتج 40 | D43: كرتونة | E43: 0 | T43: 0
A44: 41 | B44: 6222000912006 | C44: منتج 41 | D44: كرتونة | E44: 62 | T44: 0
A45: 42 | B45: 6222000911993 | C45: منتج 42 | D45: كرتونة | E45: 58 | T45: 0
A46: 43 | B46: 6222000912013 | C46: منتج 43 | D46: كرتونة | E46: 188 | T46: 0
A47: 44 | B47: 6222000964197 | C47: منتج 44 | D47: كرتونة | E47: 0 | T47: 0
A48: 45 | B48: 6222000906630 | C48: منتج 45 | D48: كرتونة | E48: 48 | T48: 0
A49: 46 | B49: 6222000902519 | C49: منتج 46 | D49: كرتونة | E49: 71 | T49: 0
A50: 47 | B50: 6222000902557 | C50: منتج 47 | D50: كرتونة | E50: 87 | T50: 0
A51: 48 | B51: 6222000902564 | C51: منتج 48 | D51: كرتونة | E51: 57 | T51: 0
A52: 49 | B52: 6222000910033 | C52: منتج 49 | D52: كرتونة | E52: 0 | T52: 0
A53: 50 | B53: 6222000910026 | C53: منتج 50 | D53: كرتونة | E53: 0 | T53: 0
A54: 51 | B54: 6222000909945 | C54: منتج 51 | D54: كرتونة | E54: 0 | T54: 0
A55: 52 | B55: 6222000910200 | C55: منتج 52 | D55: كرتونة | E55: 844 | T55: 0
A56: 53 | B56: 6222000910514 | C56: منتج 53 | D56: كرتونة | E56: 273 | T56: 0
A57: 54 | B57: 6222000909976 | C57: منتج 54 | D57: كرتونة | E57: 307 | T57: 0
A58: 55 | B58: 6222000909983 | C58: منتج 55 | D58: كرتونة | E58: 228 | T58: 0
A59: 56 | B59: 6222000909969 | C59: منتج 56 | D59: كرتونة | E59: 422 | T59: 0
A60: 57 | B60: 622200097116 | C60: منتج 57 | D60: كرتونة | E60: 0 | T60: 0
A61: 58 | B61: 6222000912372 | C61: منتج 58 | D61: كرتونة | E61: 63 | T61: 0
A62: 59 | B62: 6222000912488 | C62: منتج 59 | D62: كرتونة | E62: 437 | T62: 0
A63: 60 | B63: 6222000914383 | C63: منتج 60 | D63: كرتونة | E63: 0 | T63: 0
A64: 61 | B64: 6222000914369 | C64: منتج 61 | D64: كرتونة | E64: 0 | T64: 0
A65: 62 | B65: 6222000914376 | C65: منتج 62 | D65: كرتونة | E65: 0 | T65: 0
A66: 63 | B66: 6222000912365 | C66: منتج 63 | D66: كرتونة | E66: 0 | T66: 0
A67: 64 | B67: 6222000902083 | C67: منتج 64 | D67: كرتونة | E67: 73 | T67: 0
A68: 65 | B68: 6222000913904 | C68: منتج 65 | D68: كرتونة | E68: 0 | T68: 0
A69: 66 | B69: EG-670026743-2453 | C69: منتج 66 | D69: كرتونة | E69: 0 | T69: =SUM(F69:S69) -> 0
A70: 67 | B70: 6222000915243 | C70: منتج 67 | D70: كرتونة | E70: 50 | T70: 0
A71: 68 | B71: 6888000909953 | C71: منتج 68 | D71: كرتونة | E71: 204 | T71: 0
A72: الاجمالى | E72: =SUM(E4:E71) -> 7117 | F72: =SUM(F4:F71) -> 0 | G72: 0 | H72: 0 | I72: 0 | J72: 0 | K72: 0 | L72: 0 | M72: 0 | N72: 0 | O72: 0 | P72: 0 | Q72: 0 | R72: 0 | S72: 0 | T72: 0

Sheet المنوفية
A1: رصيد توكيل ( المنوفية ) عن يوم ( 8-2-2025 )
A2: م | B2: الكود | C2: الصنف | D2: الوحدة | E2: الرصيد الدفترى بالكرتونة | F2: تاريخ الانتاج | T2: الرصيد الفعلى بالكرتونة
F3: 2024-01-01 | G3: 2024-02-01 | H3: 2024-03-01 | I3: 2024-04-01 | J3: 2024-05-01 | K3: 2024-06-01 | L3: 2024-07-01 | M3: 2024-08-01 | N3: 2024-09-01 | O3: 2024-10-01 | P3: 2024-11-01 | Q3: 2024-12-01 | R3: 2025-01-01 | S3: 2025-02-01
A4: 1 | B4: 6222000901529 | C4: منتج 1 | D4: كرتونة | E4: 431 | T4: =SUM(F4:S4) -> 0
A5: 2 | B5: 6222000901536 | C5: منتج 2 | D5: كرتونة | E5: 124 | T5: =SUM(F5:S5) -> 0
A6: 3 | B6: 6222000911733 | C6: منتج 3 | D6: كرتونة | E6: 230 | T6: 0
A7: 4 | B7: 6222000911764 | C7: منتج 4 | D7: كرتونة | E7: 166 | T7: 0
A8: 5 | B8: 00743 | C8: منتج 5 | D8: كرتونة | E8: 67 | T8: 0
A9: 6 | B9: 6222000901758 | C9: منتج 6 | D9: كرتونة | E9: 496 | T9: 0
A10: 7 | B10: 6222000912020 | C10: منتج 7 | D10: كرتونة | E10: 21 | T10: 0
A11: 8 | B11: 6222000909815 | C11: منتج 8 | D11: كرتونة | E11: 944 | T11: 0
A12: 9 | B12: 6222000908610 | C12: منتج 9 | D12: كرتونة | E12: 90 | T12: 0
A13: 10 | B13: 6222000909891 | C13: منتج 10 | D13: كرتونة | E13: 320 | T13: 0
A14: 11 | B14: 6222000911757 | C14: منتج 11 | D14: كرتونة | E14: 0 | T14: 0
A15: 12 | B15: 00744 | C15: منتج 12 | D15: كرتونة | E15: 174 | T15: 0
A16: 13 | B16: 6222000901642 | C16: منتج 13 | D16: كرتونة | E16: 379 | T16: 0
A17: 14 | B17: 6222000912037 | C17: منتج 14 | D17: كرتونة | E17: 34 | T17: 0
A18: 15 | B18: 6222000909808 | C18: منتج 15 | D18: كرتونة | E18: 0 | T18: 0
A19: 16 | B19: 6222000905268 | C19: منتج 16 | D19: كرتونة | E19: 0 | T19: 0
A20: 17 | B20: 6222000907583 | C20: منتج 17 | D20: كرتونة | E20: 0 | T20: 0
A21: 18 | B21: 6222000909884 | C21: منتج 18 | D21: كرتونة | E21: 66 | T21: 0
A22: 19 | B22: 002770 | C22: منتج 19 | D22: كرتونة | E22: 100 | T22: 0
A23: 20 | B23: 6222000912525 | C23: منتج 20 | D23: كرتونة | E23: 5 | T23: 0
A24: 21 | B24: 6222000912518 | C24: منتج 21 | D24: كرتونة | E24: 88 | T24: 0
A25: 22 | B25: 6222000908566 | C25: منتج 22 | D25: كرتونة | E25: 30.5 | T25: 0
A26: 23 | B26: 6222000908573 | C26: منتج 23 | D26: كرتونة | E26: 97 | T26: 0
A27: 24 | B27: 6222000912501 | C27: منتج 24 | D27: كرتونة | E27: 15 | T27: 0
A28: 25 | B28: 6222000912457 | C28: منتج 25 | D28: كرتونة | T28: 0
A29: 26 | B29: 6222000901611 | C29: منتج 26 | D29: كرتونة | E29: 929 | T29: 0
A30: 27 | B30: 6222000909907 | C30: منتج 27 | D30: كرتونة | E30: 72 | T30: 0
A31: 28 | B31: 6222000911498 | C31: منتج 28 | D31: كرتونة | E31: 0 | T31: 0
A32: 29 | B32: 002771 | C32: منتج 29 | D32: كرتونة | E32: 0 | T32: 0
A33: 30 | B33: 6222000912778 | C33: منتج 30 | D33: كرتونة | E33: 603 | T33: 0
A34: 31 | B34: 6222000912822 | C34: منتج 31 | D34: كرتونة | E34: 0 | T34: 0
A35: 32 | B35: 6222000912532 | C35: منتج 32 | D35: كرتونة | E35: 22 | T35: 0
A36: 33 | B36: 6222000901697 | C36: منتج 33 | D36: كرتونة | E36: 236 | T36: 0
A37: 34 | B37: 6222000911481 | C37: منتج 34 | D37: كرتونة | E37: 0 | T37: 0
A38: 35 | B38: 6222000908276 | C38: منتج 35 | D38: كرتونة | E38: 306 | T38: 0
A39: 36 | B39: 6222000909921 | C39: منتج 36 | D39: كرتونة | E39: 0 | T39: 0
A40: 37 | B40: 6222000909839 | C40: منتج 37 | D40: كرتونة | E40: 238 | T40: 0
A41: 38 | B41: 6222000908825 | C41: منتج 38 | D41: كرتونة | E41: 63 | T41: 0
A42: 39 | B42: 6222000907637 | C42: منتج 39 | D42: كرتونة | E42: 4 | T42: 0
A43: 40 | B43: 6222000903295 | C43: منتج 40 | D43: كرتونة | E43: 30 | T43: 0
A44: 41 | B44: 6222000912006 | C44: منتج 41 | D44: كرتونة | E44: 77 | T44: 0
A45: 42 | B45: 6222000911993 | C45: منتج 42 | D45: كرتونة | E45: 146 | T45: 0
A46: 43 | B46: 6222000912013 | C46: منتج 43 | D46: كرتونة | E46: 17 | T46: 0
A47: 44 | B47: 6222000964197 | C47: منتج 44 | D47: كرتونة | E47: 0 | T47: 0
A48: 45 | B48: 6222000906630 | C48: منتج 45 | D48: كرتونة | E48: 47 | T48: 0
A49: 46 | B49: 6222000902519 | C49: منتج 46 | D49: كرتونة | E49: 74 | T49: 0
A50: 47 | B50: 6222000902557 | C50: منتج 47 | D50: كرتونة | E50: 87 | T50: 0
A51: 48 | B51: 6222000902564 | C51: منتج 48 | D51: كرتونة | E51: 56 | T51: 0
A52: 49 | B52: 6222000910033 | C52: منتج 49 | D52: كرتونة | E52: 0 | T52: 0
A53: 50 | B53: 6222000910026 | C53: منتج 50 | D53: كرتونة | E53: 0 | T53: 0
A54: 51 | B54: 6222000909945 | C54: منتج 51 | D54: كرتونة | E54: 0 | T54: 0
A55: 52 | B55: 6222000910200 | C55: منتج 52 | D55: كرتونة | E55: 535 | T55: 0
A56: 53 | B56: 6222000910514 | C56: منتج 53 | D56: كرتونة | E56: 337 | T56: 0
A57: 54 | B57: 6222000909976 | C57: منتج 54 | D57: كرتونة | E57: 997 | T57: 0
A58: 55 | B58: 6222000909983 | C58: منتج 55 | D58: كرتونة | E58: 1108 | T58: 0
A59: 56 | B59: 6222000909969 | C59: منتج 56 | D59: كرتونة | E59: 428 | T59: 0
A60: 57 | B60: 622200097116 | C60: منتج 57 | D60: كرتونة | E60: 387 | T60: 0
A61: 58 | B61: 6222000912372 | C61: منتج 58 | D61: كرتونة | E61: 1515 | T61: 0
A62: 59 | B62: 6222000912488 | C62: منتج 59 | D62: كرتونة | E62: 541 | T62: 0
A63: 60 | B63: 6222000914383 | C63: منتج 60 | D63: كرتونة | E63: 0 | T63: 0
A64: 61 | B64: 6222000914369 | C64: منتج 61 | D64: كرتونة | E64: 0 | T64: 0
A65: 62 | B65: 6222000914376 | C65: منتج 62 | D65: كرتونة | E65: 0 | T65: 0
A66: 63 | B66: 6222000912365 | C66: منتج 63 | D66: كرتونة | E66: 0 | T66: 0
A67: 64 | B67: 6222000902083 | C67: منتج 64 | D67: كرتونة | E67: 0 | T67: 0
A68: 65 | B68: 6222000913904 | C68: منتج 65 | D68: كرتونة | E68: 0 | T68: 0
A69: 66 | B69: EG-670026743-2453 | C69: منتج 66 | D69: كرتونة | E69: 0 | T69: =SUM(F69:S69) -> 0
A70: 67 | B70: 6222000915243 | C70: منتج 67 | D70: كرتونة | E70: 44 | T70: 0
A71: 68 | B71: 6888000909953 | C71: منتج 68 | D71: كرتونة | E71: 778 | T71: 0
A72: الاجمالى | E72: =SUM(E4:E71) -> 13554.5 | F72: =SUM(F4:F71) -> 0 | G72: 0 | H72: 0 | I72: 0 | J72: 0 | K72: 0 | L72: 0 | M72: 0 | N72: 0 | O72: 0 | P72: 0 | Q72: 0 | R72: 0 | S72: 0 | T72: 0

Sheet الشرقية
A1: رصيد توكيل ( الشرقية ) عن يوم ( 8-2-2025 )
A2: م | B2: الكود | C2: الصنف | D2: الوحدة | E2: الرصيد الدفترى بالكرتونة | F2: تاريخ الانتاج | T2: الرصيد الفعلى بالكرتونة
F3: 2024-01-01 | G3: 2024-02-01 | H3: 2024-03-01 | I3: 2024-04-01 | J3: 2024-05-01 | K3: 2024-06-01 | L3: 2024-07-01 | M3: 2024-08-01 | N3: 2024-09-01 | O3: 2024-10-01 | P3: 2024-11-01 | Q3: 2024-12-01 | R3: 2025-01-01 | S3: 2025-02-01
A4: 1 | B4: 6222000901529 | C4: منتج 1 | D4: كرتونة | E4: 109 | T4: =SUM(F4:S4) -> 0
A5: 2 | B5: 6222000901536 | C5: منتج 2 | D5: كرتونة | E5: 140 | T5: =SUM(F5:S5) -> 0
A6: 3 | B6: 6222000911733 | C6: منتج 3 | D6: كرتونة | E6: 329 | T6: 0
A7: 4 | B7: 6222000911764 | C7: منتج 4 | D7: كرتونة | E7: 391 | T7: 0
A8: 5 | B8: 00743 | C8: منتج 5 | D8: كرتونة | E8: 30 | T8: 0
A9: 6 | B9: 6222000901758 | C9: منتج 6 | D9: كرتونة | E9: 269 | T9: 0
A10: 7 | B10: 6222000912020 | C10: منتج 7 | D10: كرتونة | E10: 1 | T10: 0
A11: 8 | B11: 6222000909815 | C11: منتج 8 | D11: كرتونة | E11: 16 | T11: 0
A12: 9 | B12: 6222000908610 | C12: منتج 9 | D12: كرتونة | E12: 48 | T12: 0
A13: 10 | B13: 6222000909891 | C13: منتج 10 | D13: كرتونة | E13: 64 | T13: 0
A14: 11 | B14: 6222000911757 | C14: منتج 11 | D14: كرتونة | E14: 0 | T14: 0
A15: 12 | B15: 00744 | C15: منتج 12 | D15: كرتونة | E15: 30 | T15: 0
A16: 13 | B16: 6222000901642 | C16: منتج 13 | D16: كرتونة | E16: 51 | T16: 0
A17: 14 | B17: 6222000912037 | C17: منتج 14 | D17: كرتونة | E17: 21 | T17: 0
A18: 15 | B18: 6222000909808 | C18: منتج 15 | D18: كرتونة | E18: 1 | T18: 0
A19: 16 | B19: 6222000905268 | C19: منتج 16 | D19: كرتونة | E19: 0 | T19: 0
A20: 17 | B20: 6222000907583 | C20: منتج 17 | D20: كرتونة | E20: 3 | T20: 0
A21: 18 | B21: 6222000909884 | C21: منتج 18 | D21: كرتونة | E21: 29 | T21: 0
A22: 19 | B22: 002770 | C22: منتج 19 | D22: كرتونة | E22: 0 | T22: 0
A23: 20 | B23: 6222000912525 | C23: منتج 20 | D23: كرتونة | E23: 16 | T23: 0
A24: 21 | B24: 6222000912518 | C24: منتج 21 | D24: كرتونة | E24: 95 | T24: 0
A25: 22 | B25: 6222000908566 | C25: منتج 22 | D25: كرتونة | E25: 15 | T25: 0
A26: 23 | B26: 6222000908573 | C26: منتج 23 | D26: كرتونة | E26: 113 | T26: 0
A27: 24 | B27: 6222000912501 | C27: منتج 24 | D27: كرتونة | E27: 0 | T27: 0
A28: 25 | B28: 6222000912457 | C28: منتج 25 | D28: كرتونة | E28: 55 | T28: 0
A29: 26 | B29: 6222000901611 | C29: منتج 26 | D29: كرتونة | E29: 8 | T29: 0
A30: 27 | B30: 6222000909907 | C30: منتج 27 | D30: كرتونة | E30: 87 | T30: 0
A31: 28 | B31: 6222000911498 | C31: منتج 28 | D31: كرتونة | E31: 0 | T31: 0
A32: 29 | B32: 002771 | C32: منتج 29 | D32: كرتونة | E32: 0 | T32: 0
A33: 30 | B33: 6222000912778 | C33: منتج 30 | D33: كرتونة | E33: 84 | T33: 0
A34: 31 | B34: 6222000912822 | C34: منتج 31 | D34: كرتونة | E34: 26 | T34: 0
A35: 32 | B35: 6222000912532 | C35: منتج 32 | D35: كرتونة | E35: 0 | T35: 0
A36: 33 | B36: 6222000901697 | C36: منتج 33 | D36: كرتونة | E36: 51 | T36: 0
A37: 34 | B37: 6222000911481 | C37: منتج 34 | D37: كرتونة | E37: 0 | T37: 0
A38: 35 | B38: 6222000908276 | C38: منتج 35 | D38: كرتونة | E38: 68 | T38: 0
A39: 36 | B39: 6222000909921 | C39: منتج 36 | D39: كرتونة | E39: 0 | T39: 0
A40: 37 | B40: 6222000909839 | C40: منتج 37 | D40: كرتونة | E40: 12 | T40: 0
A41: 38 | B41: 6222000908825 | C41: منتج 38 | D41: كرتونة | E41: 67 | T41: 0
A42: 39 | B42: 6222000907637 | C42: منتج 39 | D42: كرتونة | E42: 69 | T42: 0
A43: 40 | B43: 6222000903295 | C43: منتج 40 | D43: كرتونة | E43: 0 | T43: 0
A44: 41 | B44: 6222000912006 | C44: منتج 41 | D44: كرتونة | E44: 1 | T44: 0
A45: 42 | B45: 6222000911993 | C45: منتج 42 | D45: كرتونة | E45: 4 | T45: 0
A46: 43 | B46: 6222000912013 | C46: منتج 43 | D46: كرتونة | E46: 0 | T46: 0
A47: 44 | B47: 6222000964197 | C47: منتج 44 | D47: كرتونة | E47: 90 | T47: 0
A48: 45 | B48: 6222000906630 | C48: منتج 45 | D48: كرتونة | E48: 11 | T48: 0
A49: 46 | B49: 6222000902519 | C49: منتج 46 | D49: كرتونة | E49: 74 | T49: 0
A50: 47 | B50: 6222000902557 | C50: منتج 47 | D50: كرتونة | E50: 148 | T50: 0
A51: 48 | B51: 6222000902564 | C51: منتج 48 | D51: كرتونة | E51: 142 | T51: 0
A52: 49 | B52: 6222000910033 | C52: منتج 49 | D52: كرتونة | E52: 23 | T52: 0
A53: 50 | B53: 6222000910026 | C53: منتج 50 | D53: كرتونة | E53: 0 | T53: 0
A54: 51 | B54: 6222000909945 | C54: منتج 51 | D54: كرتونة | E54: 0 | T54: 0
A55: 52 | B55: 6222000910200 | C55: منتج 52 | D55: كرتونة | E55: 205 | T55: 0
A56: 53 | B56: 6222000910514 | C56: منتج 53 | D56: كرتونة | E56: 328 | T56: 0
A57: 54 | B57: 6222000909976 | C57: منتج 54 | D57: كرتونة | E57: 636 | T57: 0
A58: 55 | B58: 6222000909983 | C58: منتج 55 | D58: كرتونة | E58: 710 | T58: 0
A59: 56 | B59: 6222000909969 | C59: منتج 56 | D59: كرتونة | E59: 0 | T59: 0
A60: 57 | B60: 622200097116 | C60: منتج 57 | D60: كرتونة | E60: 18 | T60: 0
A61: 58 | B61: 6222000912372 | C61: منتج 58 | D61: كرتونة | E61: 0 | T61: 0
A62: 59 | B62: 6222000912488 | C62: منتج 59 | D62: كرتونة | E62: 381 | T62: 0
A63: 60 | B63: 6222000914383 | C63: منتج 60 | D63: كرتونة | E63: 0 | T63: 0
A64: 61 | B64: 6222000914369 | C64: منتج 61 | D64: كرتونة | E64: 0 | T64: 0
A65: 62 | B65: 6222000914376 | C65: منتج 62 | D65: كرتونة | E65: 0 | T65: 0
A66: 63 | B66: 6222000912365 | C66: منتج 63 | D66: كرتونة | E66: 0 | T66: 0
A67: 64 | B67: 6222000902083 | C67: منتج 64 | D67: كرتونة | E67: 75 | T67: 0
A68: 65 | B68: 6222000913904 | C68: منتج 65 | D68: كرتونة | E68: 58 | T68: 0
A69: 66 | B69: EG-670026743-2453 | C69: منتج 66 | D69: كرتونة | E69: 0 | T69: =SUM(F69:S69) -> 0
A70: 67 | B70: 6222000915243 | C70: منتج 67 | D70: كرتونة | E70: 0 | T70: 0
A71: 68 | B71: 6888000909953 | C71: منتج 68 | D71: كرتونة | E71: 100 | T71: 0
A72: الاجمالى | E72: =SUM(E4:E71) -> 5302 | F72: =SUM(F4:F71) -> 0 | G72: 0 | H72: 0 | I72: 0 | J72: 0 | K72: 0 | L72: 0 | M72: 0 | N72: 0 | O72: 0 | P72: 0 | Q72: 0 | R72: 0 | S72: 0 | T72: 0

Sheet الاسماعيلية
A1: رصيد توكيل ( الاسماعيلية ) عن يوم ( 8-2-2025 )
A2: م | B2: الكود | C2: الصنف | D2: الوحدة | E2: الرصيد الدفترى بالكرتونة | F2: تاريخ الانتاج | T2: الرصيد الفعلى بالكرتونة
F3: 2024-01-01 | G3: 2024-02-01 | H3: 2024-03-01 | I3: 2024-04-01 | J3: 2024-05-01 | K3: 2024-06-01 | L3: 2024-07-01 | M3: 2024-08-01 | N3: 2024-09-01 | O3: 2024-10-01 | P3: 2024-11-01 | Q3: 2024-12-01 | R3: 2025-01-01 | S3: 2025-02-01
A4: 1 | B4: 6222000901529 | C4: منتج 1 | D4: كرتونة | E4: 92 | T4: =SUM(F4:S4) -> 0
A5: 2 | B5: 6222000901536 | C5: منتج 2 | D5: كرتونة | E5: 29 | T5: =SUM(F5:S5) -> 0
A6: 3 | B6: 6222000911733 | C6: منتج 3 | D6: كرتونة | E6: 36 | T6: 0
A7: 4 | B7: 6222000911764 | C7: منتج 4 | D7: كرتونة | E7: 8 | T7: 0
A8: 5 | B8: 00743 | C8: منتج 5 | D8: كرتونة | E8: 32 | T8: 0
A9: 6 | B9: 6222000901758 | C9: منتج 6 | D9: كرتونة | E9: 11 | T9: 0
A10: 7 | B10: 6222000912020 | C10: منتج 7 | D10: كرتونة | E10: 8 | T10: 0
A11: 8 | B11: 6222000909815 | C11: منتج 8 | D11: كرتونة | E11: 7 | T11: 0
A12: 9 | B12: 6222000908610 | C12: منتج 9 | D12: كرتونة | E12: 0 | T12: 0
A13: 10 | B13: 6222000909891 | C13: منتج 10 | D13: كرتونة | E13: 59 | T13: 0
A14: 11 | B14: 6222000911757 | C14: منتج 11 | D14: كرتونة | E14: 0 | T14: 0
A15: 12 | B15: 00744 | C15: منتج 12 | D15: كرتونة | E15: 123 | T15: 0
A16: 13 | B16: 6222000901642 | C16: منتج 13 | D16: كرتونة | E16: 1 | T16: 0
A17: 14 | B17: 6222000912037 | C17: منتج 14 | D17: كرتونة | E17: 15 | T17: 0
A18: 15 | B18: 6222000909808 | C18: منتج 15 | D18: كرتونة | E18: 0 | T18: 0
A19: 16 | B19: 6222000905268 | C19: منتج 16 | D19: كرتونة | E19: 0 | T19: 0
A20: 17 | B20: 6222000907583 | C20: منتج 17 | D20: كرتونة | E20: 85 | T20: 0
A21: 18 | B21: 6222000909884 | C21: منتج 18 | D21: كرتونة | E21: 218 | T21: 0
A22: 19 | B22: 002770 | C22: منتج 19 | D22: كرتونة | E22: 0 | T22: 0
A23: 20 | B23: 6222000912525 | C23: منتج 20 | D23: كرتونة | E23: 18 | T23: 0
A24: 21 | B24: 6222000912518 | C24: منتج 21 | D24: كرتونة | E24: 24 | T24: 0
A25: 22 | B25: 6222000908566 | C25: منتج 22 | D25: كرتونة | E25: 50 | T25: 0
A26: 23 | B26: 6222000908573 | C26: منتج 23 | D26: كرتونة | E26: 10 | T26: 0
A27: 24 | B27: 6222000912501 | C27: منتج 24 | D27: كرتونة | E27: 29 | T27: 0
A28: 25 | B28: 6222000912457 | C28: منتج 25 | D28: كرتونة | E28: 50 | T28: 0
A29: 26 | B29: 6222000901611 | C29: منتج 26 | D29: كرتونة | E29: 137 | T29: 0
A30: 27 | B30: 6222000909907 | C30: منتج 27 | D30: كرتونة | E30: 215 | T30: 0
A31: 28 | B31: 6222000911498 | C31: منتج 28 | D31: كرتونة | E31: 27 | T31: 0
A32: 29 | B32: 002771 | C32: منتج 29 | D32: كرتونة | E32: 0 | T32: 0
A33: 30 | B33: 6222000912778 | C33: منتج 30 | D33: كرتونة | E33: 17 | T33: 0
A34: 31 | B34: 6222000912822 | C34: منتج 31 | D34: كرتونة | E34: 0 | T34: 0
A35: 32 | B35: 6222000912532 | C35: منتج 32 | D35: كرتونة | E35: 0 | T35: 0
A36: 33 | B36: 6222000901697 | C36: منتج 33 | D36: كرتونة | E36: 71 | T36: 0
A37: 34 | B37: 6222000911481 | C37: منتج 34 | D37: كرتونة | E37: 0 | T37: 0
A38: 35 | B38: 6222000908276 | C38: منتج 35 | D38: كرتونة | E38: 80 | T38: 0
A39: 36 | B39: 6222000909921 | C39: منتج 36 | D39: كرتونة | E39: 11 | T39: 0
A40: 37 | B40: 6222000909839 | C40: منتج 37 | D40: كرتونة | E40: 151 | T40: 0
A41: 38 | B41: 6222000908825 | C41: منتج 38 | D41: كرتونة | E41: 39 | T41: 0
A42: 39 | B42: 6222000907637 | C42: منتج 39 | D42: كرتونة | E42: 12 | T42: 0
A43: 40 | B43: 6222000903295 | C43: منتج 40 | D43: كرتونة | E43: 0 | T43: 0
A44: 41 | B44: 6222000912006 | C44: منتج 41 | D44: كرتونة | E44: 42 | T44: 0
A45: 42 | B45: 6222000911993 | C45: منتج 42 | D45: كرتونة | E45: 39 | T45: 0
A46: 43 | B46: 6222000912013 | C46: منتج 43 | D46: كرتونة | E46: 44 | T46: 0
A47: 44 | B47: 6222000964197 | C47: منتج 44 | D47: كرتونة | E47: 0 | T47: 0
A48: 45 | B48: 6222000906630 | C48: منتج 45 | D48: كرتونة | E48: 0 | T48: 0
A49: 46 | B49: 6222000902519 | C49: منتج 46 | D49: كرتونة | E49: 13 | T49: 0
A50: 47 | B50: 6222000902557 | C50: منتج 47 | D50: كرتونة | E50: 52 | T50: 0
A51: 48 | B51: 6222000902564 | C51: منتج 48 | D51: كرتونة | E51: 76 | T51: 0
A52: 49 | B52: 6222000910033 | C52: منتج 49 | D52: كرتونة | E52: 18 | T52: 0
A53: 50 | B53: 6222000910026 | C53: منتج 50 | D53: كرتونة | E53: 0 | T53: 0
A54: 51 | B54: 6222000909945 | C54: منتج 51 | D54: كرتونة | E54: 0 | T54: 0
A55: 52 | B55: 6222000910200 | C55: منتج 52 | D55: كرتونة | E55: 665 | T55: 0
A56: 53 | B56: 6222000910514 | C56: منتج 53 | D56: كرتونة | E56: 128 | T56: 0
A57: 54 | B57: 6222000909976 | C57: منتج 54 | D57: كرتونة | E57: 105 | T57: 0
A58: 55 | B58: 6222000909983 | C58: منتج 55 | D58: كرتونة | E58: 124 | T58: 0
A59: 56 | B59: 6222000909969 | C59: منتج 56 | D59: كرتونة | E59: 61 | T59: 0
A60: 57 | B60: 622200097116 | C60: منتج 57 | D60: كرتونة | E60: 953 | T60: 0
A61: 58 | B61: 6222000912372 | C61: منتج 58 | D61: كرتونة | E61: 158 | T61: 0
A62: 59 | B62: 6222000912488 | C62: منتج 59 | D62: كرتونة | E62: 71 | T62: 0
A63: 60 | B63: 6222000914383 | C63: منتج 60 | D63: كرتونة | E63: 0 | T63: 0
A64: 61 | B64: 6222000914369 | C64: منتج 61 | D64: كرتونة | E64: 0 | T64: 0
A65: 62 | B65: 6222000914376 | C65: منتج 62 | D65: كرتونة | E65: 0 | T65: 0
A66: 63 | B66: 6222000912365 | C66: منتج 63 | D66: كرتونة | E66: 0 | T66: 0
A67: 64 | B67: 6222000902083 | C67: منتج 64 | D67: كرتونة | E67: 71 | T67: 0
A68: 65 | B68: 6222000913904 | C68: منتج 65 | D68: كرتونة | E68: 31 | T68: 0
A69: 66 | B69: EG-670026743-2453 | C69: منتج 66 | D69: كرتونة | E69: 4 | T69: =SUM(F69:S69) -> 0
A70: 67 | B70: 6222000915243 | C70: منتج 67 | D70: كرتونة | E70: 0 | T70: 0
A71: 68 | B71: 6888000909953 | C71: منتج 68 | D71: كرتونة | E71: 98 | T71: 0
A72: الاجمالى | E72: =SUM(E4:E71) -> 4418 | F72: =SUM(F4:F71) -> 0 | G72: 0 | H72: 0 | I72: 0 | J72: 0 | K72: 0 | L72: 0 | M72: 0 | N72: 0 | O72: 0 | P72: 0 | Q72: 0 | R72: 0 | S72: 0 | T72: 0

Sheet بور سعيد
A1: رصيد توكيل ( بورسعيد ) عن يوم ( 8-2-2025 )
A2: م | B2: الكود | C2: الصنف | D2: الوحدة | E2: الرصيد الدفترى بالكرتونة | H2: تاريخ الانتاج | T2: الرصيد الفعلى بالكرتونة
F3: 2024-01-01 | G3: 2024-02-01 | H3: 2024-03-01 | I3: 2024-04-01 | J3: 2024-05-01 | K3: 2024-06-01 | L3: 2024-07-01 | M3: 2024-08-01 | N3: 2024-09-01 | O3: 2024-10-01 | P3: 2024-11-01 | Q3: 2024-12-01 | R3: 2025-01-01 | S3: 2025-02-01
A4: 1 | B4: 6222000901529 | C4: منتج 1 | D4: كرتونة | E4: 12 | T4: =SUM(F4:S4) -> 0
A5: 2 | B5: 6222000901536 | C5: منتج 2 | D5: كرتونة | E5: 15.5 | T5: =SUM(F5:S5) -> 0
A6: 3 | B6: 6222000911733 | C6: منتج 3 | D6: كرتونة | E6: 128 | T6: 0
A7: 4 | B7: 6222000911764 | C7: منتج 4 | D7: كرتونة | E7: 25 | T7: 0
A8: 5 | B8: 00743 | C8: منتج 5 | D8: كرتونة | E8: 21 | T8: 0
A9: 6 | B9: 6222000901758 | C9: منتج 6 | D9: كرتونة | E9: 126 | T9: 0
A10: 7 | B10: 6222000912020 | C10: منتج 7 | D10: كرتونة | E10: 18 | T10: 0
A11: 8 | B11: 6222000909815 | C11: منتج 8 | D11: كرتونة | E11: 37 | T11: 0
A12: 9 | B12: 6222000908610 | C12: منتج 9 | D12: كرتونة | E12: 22 | T12: 0
A13: 10 | B13: 6222000909891 | C13: منتج 10 | D13: كرتونة | E13: 0 | T13: 0
A14: 11 | B14: 6222000911757 | C14: منتج 11 | D14: كرتونة | E14: 0 | T14: 0
A15: 12 | B15: 00744 | C15: منتج 12 | D15: كرتونة | E15: 8 | T15: 0
A16: 13 | B16: 6222000901642 | C16: منتج 13 | D16: كرتونة | E16: 83.5 | T16: 0
A17: 14 | B17: 6222000912037 | C17: منتج 14 | D17: كرتونة | E17: 22 | T17: 0
A18: 15 | B18: 6222000909808 | C18: منتج 15 | D18: كرتونة | E18: 33 | T18: 0
A19: 16 | B19: 6222000905268 | C19: منتج 16 | D19: كرتونة | E19: 0 | T19: 0
A20: 17 | B20: 6222000907583 | C20: منتج 17 | D20: كرتونة | E20: 127 | T20: 0
A21: 18 | B21: 6222000909884 | C21: منتج 18 | D21: كرتونة | E21: 156 | T21: 0
A22: 19 | B22: 002770 | C22: منتج 19 | D22: كرتونة | E22: 0 | T22: 0
A23: 20 | B23: 6222000912525 | C23: منتج 20 | D23: كرتونة | E23: 7 | T23: 0
A24: 21 | B24: 6222000912518 | C24: منتج 21 | D24: كرتونة | E24: 14 | T24: 0
A25: 22 | B25: 6222000908566 | C25: منتج 22 | D25: كرتونة | E25: 34 | T25: 0
A26: 23 | B26: 6222000908573 | C26: منتج 23 | D26: كرتونة | E26: 12 | T26: 0
A27: 24 | B27: 6222000912501 | C27: منتج 24 | D27: كرتونة | E27: 0 | T27: 0
A28: 25 | B28: 6222000912457 | C28: منتج 25 | D28: كرتونة | E28: 43 | T28: 0
A29: 26 | B29: 6222000901611 | C29: منتج 26 | D29: كرتونة | E29: 73 | T29: 0
A30: 27 | B30: 6222000909907 | C30: منتج 27 | D30: كرتونة | E30: 178 | T30: 0
A31: 28 | B31: 6222000911498 | C31: منتج 28 | D31: كرتونة | E31: 93 | T31: 0
A32: 29 | B32: 002771 | C32: منتج 29 | D32: كرتونة | E32: 0 | T32: 0
A33: 30 | B33: 6222000912778 | C33: منتج 30 | D33: كرتونة | E33: 4 | T33: 0
A34: 31 | B34: 6222000912822 | C34: منتج 31 | D34: كرتونة | E34: 85 | T34: 0
A35: 32 | B35: 6222000912532 | C35: منتج 32 | D35: كرتونة | E35: 25 | T35: 0
A36: 33 | B36: 6222000901697 | C36: منتج 33 | D36: كرتونة | E36: 25 | T36: 0
A37: 34 | B37: 6222000911481 | C37: منتج 34 | D37: كرتونة | E37: 0 | T37: 0
A38: 35 | B38: 6222000908276 | C38: منتج 35 | D38: كرتونة | E38: 89 | T38: 0
A39: 36 | B39: 6222000909921 | C39: منتج 36 | D39: كرتونة | E39: 0 | T39: 0
A40: 37 | B40: 6222000909839 | C40: منتج 37 | D40: كرتونة | E40: 52 | T40: 0
A41: 38 | B41: 6222000908825 | C41: منتج 38 | D41: كرتونة | E41: 97 | T41: 0
A42: 39 | B42: 6222000907637 | C42: منتج 39 | D42: كرتونة | E42: 13 | T42: 0
A43: 40 | B43: 6222000903295 | C43: منتج 40 | D43: كرتونة | E43: 0 | T43: 0
A44: 41 | B44: 6222000912006 | C44: منتج 41 | D44: كرتونة | E44: 0 | T44: 0
A45: 42 | B45: 6222000911993 | C45: منتج 42 | D45: كرتونة | E45: 0 | T45: 0
A46: 43 | B46: 6222000912013 | C46: منتج 43 | D46: كرتونة | E46: 0 | T46: 0
A47: 44 | B47: 6222000964197 | C47: منتج 44 | D47: كرتونة | E47: 0 | T47: 0
A48: 45 | B48: 6222000906630 | C48: منتج 45 | D48: كرتونة | E48: 49 | T48: 0
A49: 46 | B49: 6222000902519 | C49: منتج 46 | D49: كرتونة | E49: 2 | T49: 0
A50: 47 | B50: 6222000902557 | C50: منتج 47 | D50: كرتونة | E50: 88 | T50: 0
A51: 48 | B51: 6222000902564 | C51: منتج 48 | D51: كرتونة | E51: 39 | T51: 0
A52: 49 | B52: 6222000910033 | C52: منتج 49 | D52: كرتونة | E52: 0 | T52: 0
A53: 50 | B53: 6222000910026 | C53: منتج 50 | D53: كرتونة | E53: 0 | T53: 0
A54: 51 | B54: 6222000909945 | C54: منتج 51 | D54: كرتونة | E54: 0 | T54: 0
A55: 52 | B55: 6222000910200 | C55: منتج 52 | D55: كرتونة | E55: 452 | T55: 0
A56: 53 | B56: 6222000910514 | C56: منتج 53 | D56: كرتونة | E56: 365 | T56: 0
A57: 54 | B57: 6222000909976 | C57: منتج 54 | D57: كرتونة | E57: 134 | T57: 0
A58: 55 | B58: 6222000909983 | C58: منتج 55 | D58: كرتونة | E58: 260 | T58: 0
A59: 56 | B59: 6222000909969 | C59: منتج 56 | D59: كرتونة | E59: 31 | T59: 0
A60: 57 | B60: 622200097116 | C60: منتج 57 | D60: كرتونة | E60: 0 | T60: 0
A61: 58 | B61: 6222000912372 | C61: منتج 58 | D61: كرتونة | E61: 22 | T61: 0
A62: 59 | B62: 6222000912488 | C62: منتج 59 | D62: كرتونة | E62: 183 | T62: 0
A63: 60 | B63: 6222000914383 | C63: منتج 60 | D63: كرتونة | E63: 0 | T63: 0
A64: 61 | B64: 6222000914369 | C64: منتج 61 | D64: كرتونة | E64: 0 | T64: 0
A65: 62 | B65: 6222000914376 | C65: منتج 62 | D65: كرتونة | E65: 0 | T65: 0
A66: 63 | B66: 6222000912365 | C66: منتج 63 | D66: كرتونة | E66: 0 | T66: 0
A67: 64 | B67: 6222000902083 | C67: منتج 64 | D67: كرتونة | E67: 26 | T67: 0
A68: 65 | B68: 6222000913904 | C68: منتج 65 | D68: كرتونة | E68: 34 | T68: 0
A69: 66 | B69: EG-670026743-2453 | C69: منتج 66 | D69: كرتونة | E69: 7 | T69: =SUM(F69:S69) -> 0
A70: 67 | B70: 6222000915243 | C70: منتج 67 | D70: كرتونة | E70: 18 | T70: 0
A71: 68 | B71: 6888000909953 | C71: منتج 68 | E71: 0 | T71: 0
A72: الاجمالى | E72: =SUM(E4:E71) -> 3388 | F72: =SUM(F4:F71) -> 0 | G72: 0 | H72: 0 | I72: 0 | J72: 0 | K72: 0 | L72: 0 | M72: 0 | N72: 0 | O72: 0 | P72: 0 | Q72: 0 | R72: 0 | S72: 0 | T72: 0

Sheet السويس
A1: رصيد توكيل ( السويس ) عن يوم ( 8-2-2025 )
A2: م | B2: الكود | C2: الصنف | D2: الوحدة | E2: الرصيد الدفترى بالكرتونة | F2: تاريخ الانتاج | T2: الرصيد الفعلى بالكرتونة
F3: 2024-01-01 | G3: 2024-02-01 | H3: 2024-03-01 | I3: 2024-04-01 | J3: 2024-05-01 | K3: 2024-06-01 | L3: 2024-07-01 | M3: 2024-08-01 | N3: 2024-09-01 | O3: 2024-10-01 | P3: 2024-11-01 | Q3: 2024-12-01 | R3: 2025-01-01 | S3: 2025-02-01
A4: 1 | B4: 6222000901529 | C4: منتج 1 | D4: كرتونة | E4: 75 | T4: =SUM(F4:S4) -> 0
A5: 2 | B5: 6222000901536 | C5: منتج 2 | D5: كرتونة | E5: 32 | T5: =SUM(F5:S5) -> 0
A6: 3 | B6: 6222000911733 | C6: منتج 3 | D6: كرتونة | E6: 24 | T6: 0
A7: 4 | B7: 6222000911764 | C7: منتج 4 | D7: كرتونة | E7: 20 | T7: 0
A8: 5 | B8: 00743 | C8: منتج 5 | D8: كرتونة | E8: 45 | T8: 0
A9: 6 | B9: 6222000901758 | C9: منتج 6 | D9: كرتونة | E9: 67 | T9: 0
A10: 7 | B10: 6222000912020 | C10: منتج 7 | D10: كرتونة | E10: 20 | T10: 0
A11: 8 | B11: 6222000909815 | C11: منتج 8 | D11: كرتونة | E11: 41 | T11: 0
A12: 9 | B12: 6222000908610 | C12: منتج 9 | D12: كرتونة | E12: 0 | T12: 0
A13: 10 | B13: 6222000909891 | C13: منتج 10 | D13: كرتونة | E13: 58 | T13: 0
A14: 11 | B14: 6222000911757 | C14: منتج 11 | D14: كرتونة | E14: 0 | T14: 0
A15: 12 | B15: 00744 | C15: منتج 12 | D15: كرتونة | E15: 10 | T15: 0
A16: 13 | B16: 6222000901642 | C16: منتج 13 | D16: كرتونة | E16: 20 | T16: 0
A17: 14 | B17: 6222000912037 | C17: منتج 14 | D17: كرتونة | E17: 10 | T17: 0
A18: 15 | B18: 6222000909808 | C18: منتج 15 | D18: كرتونة | E18: 35 | T18: 0
A19: 16 | B19: 6222000905268 | C19: منتج 16 | D19: كرتونة | E19: 0 | T19: 0
A20: 17 | B20: 6222000907583 | C20: منتج 17 | D20: كرتونة | E20: 86 | T20: 0
A21: 18 | B21: 6222000909884 | C21: منتج 18 | D21: كرتونة | E21: 13 | T21: 0
A22: 19 | B22: 002770 | C22: منتج 19 | D22: كرتونة | E22: 5 | T22: 0
A23: 20 | B23: 6222000912525 | C23: منتج 20 | D23: كرتونة | E23: 12 | T23: 0
A24: 21 | B24: 6222000912518 | C24: منتج 21 | D24: كرتونة | E24: 21 | T24: 0
A25: 22 | B25: 6222000908566 | C25: منتج 22 | D25: كرتونة | E25: 35 | T25: 0
A26: 23 | B26: 6222000908573 | C26: منتج 23 | D26: كرتونة | E26: 0 | T26: 0
A27: 24 | B27: 6222000912501 | C27: منتج 24 | D27: كرتونة | E27: 0 | T27: 0
A28: 25 | B28: 6222000912457 | C28: منتج 25 | D28: كرتونة | E28: 0 | T28: 0
A29: 26 | B29: 6222000901611 | C29: منتج 26 | D29: كرتونة | E29: 38 | T29: 0
A30: 27 | B30: 6222000909907 | C30: منتج 27 | D30: كرتونة | E30: 0 | T30: 0
A31: 28 | B31: 6222000911498 | C31: منتج 28 | D31: كرتونة | E31: 34 | T31: 0
A32: 29 | B32: 002771 | C32: منتج 29 | D32: كرتونة | E32: 0 | T32: 0
A33: 30 | B33: 6222000912778 | C33: منتج 30 | D33: كرتونة | E33: 0 | T33: 0
A34: 31 | B34: 6222000912822 | C34: منتج 31 | D34: كرتونة | E34: 0 | T34: 0
A35: 32 | B35: 6222000912532 | C35: منتج 32 | D35: كرتونة | E35: 17 | T35: 0
A36: 33 | B36: 6222000901697 | C36: منتج 33 | D36: كرتونة | E36: 40 | T36: 0
A37: 34 | B37: 6222000911481 | C37: منتج 34 | D37: كرتونة | E37: 0 | T37: 0
A38: 35 | B38: 6222000908276 | C38: منتج 35 | D38: كرتونة | E38: 0 | T38: 0
A39: 36 | B39: 6222000909921 | C39: منتج 36 | D39: كرتونة | E39: 64 | T39: 0
A40: 37 | B40: 6222000909839 | C40: منتج 37 | D40: كرتونة | E40: 0 | T40: 0
A41: 38 | B41: 6222000908825 | C41: منتج 38 | D41: كرتونة | E41: 0 | T41: 0
A42: 39 | B42: 6222000907637 | C42: منتج 39 | D42: كرتونة | E42: 0 | T42: 0
A43: 40 | B43: 6222000903295 | C43: منتج 40 | D43: كرتونة | E43: 0 | T43: 0
A44: 41 | B44: 6222000912006 | C44: منتج 41 | D44: كرتونة | E44: 0 | T44: 0
A45: 42 | B45: 6222000911993 | C45: منتج 42 | D45: كرتونة | E45: 0 | T45: 0
A46: 43 | B46: 6222000912013 | C46: منتج 43 | D46: كرتونة | E46: 0 | T46: 0
A47: 44 | B47: 6222000964197 | C47: منتج 44 | D47: كرتونة | E47: 0 | T47: 0
A48: 45 | B48: 6222000906630 | C48: منتج 45 | D48: كرتونة | E48: 0 | T48: 0
A49: 46 | B49: 6222000902519 | C49: منتج 46 | D49: كرتونة | E49: 22 | T49: 0
A50: 47 | B50: 6222000902557 | C50: منتج 47 | D50: كرتونة | E50: 43 | T50: 0
A51: 48 | B51: 6222000902564 | C51: منتج 48 | D51: كرتونة | E51: 78 | T51: 0
A52: 49 | B52: 6222000910033 | C52: منتج 49 | D52: كرتونة | E52: 0 | T52: 0
A53: 50 | B53: 6222000910026 | C53: منتج 50 | D53: كرتونة | E53: 0 | T53: 0
A54: 51 | B54: 6222000909945 | C54: منتج 51 | D54: كرتونة | E54: 0 | T54: 0
A55: 52 | B55: 6222000910200 | C55: منتج 52 | D55: كرتونة | E55: 228 | T55: 0
A56: 53 | B56: 6222000910514 | C56: منتج 53 | D56: كرتونة | E56: 190 | T56: 0
A57: 54 | B57: 6222000909976 | C57: منتج 54 | D57: كرتونة | E57: 94 | T57: 0
A58: 55 | B58: 6222000909983 | C58: منتج 55 | D58: كرتونة | E58: 141 | T58: 0
A59: 56 | B59: 6222000909969 | C59: منتج 56 | D59: كرتونة | E59: 32 | T59: 0
A60: 57 | B60: 622200097116 | C60: منتج 57 | D60: كرتونة | E60: 87 | T60: 0
A61: 58 | B61: 6222000912372 | C61: منتج 58 | D61: كرتونة | E61: 0 | T61: 0
A62: 59 | B62: 6222000912488 | C62: منتج 59 | D62: كرتونة | E62: 127 | T62: 0
A63: 60 | B63: 6222000914383 | C63: منتج 60 | D63: كرتونة | E63: 0 | T63: 0
A64: 61 | B64: 6222000914369 | C64: منتج 61 | D64: كرتونة | E64: 0 | T64: 0
A65: 62 | B65: 6222000914376 | C65: منتج 62 | D65: كرتونة | E65: 0 | T65: 0
A66: 63 | B66: 6222000912365 | C66: منتج 63 | D66: كرتونة | E66: 0 | T66: 0
A67: 64 | B67: 6222000902083 | C67: منتج 64 | D67: كرتونة | E67: 0 | T67: 0
A68: 65 | B68: 6222000913904 | C68: منتج 65 | D68: كرتونة | E68: 0 | T68: 0
A69: 66 | B69: EG-670026743-2453 | C69: منتج 66 | D69: كرتونة | E69: 0 | T69: =SUM(F69:S69) -> 0
A70: 67 | B70: 6222000915243 | C70: منتج 67 | D70: كرتونة | E70: 0 | T70: 0
A71: 68 | B71: 6888000909953 | C71: منتج 68 | D71: كرتونة | E71: 0 | T71: 0
A72: الاجمالى | E72: =SUM(E4:E71) -> 1864 | F72: =SUM(F4:F71) -> 0 | G72: 0 | H72: 0 | I72: 0 | J72: 0 | K72: 0 | L72: 0 | M72: 0 | N72: 0 | O72: 0 | P72: 0 | Q72: 0 | R72: 0 | S72: 0 | T72: 0

Sheet المقطم
A1: رصيد توكيل ( المقطم ) عن يوم ( 8-2-2025 )
A2: م | B2: الكود | C2: الصنف | D2: الوحدة | E2: الرصيد الدفترى بالكرتونة | F2: تاريخ الانتاج | T2: الرصيد الفعلى بالكرتونة
F3: 2024-01-01 | G3: 2024-02-01 | H3: 2024-03-01 | I3: 2024-04-01 | J3: 2024-05-01 | K3: 2024-06-01 | L3: 2024-07-01 | M3: 2024-08-01 | N3: 2024-09-01 | O3: 2024-10-01 | P3: 2024-11-01 | Q3: 2024-12-01 | R3: 2025-01-01 | S3: 2025-02-01
A4: 1 | B4: 6222000901529 | C4: منتج 1 | D4: كرتونة | E4: 117 | T4: =SUM(F4:S4) -> 0
A5: 2 | B5: 6222000901536 | C5: منتج 2 | D5: كرتونة | E5: 513 | T5: =SUM(F5:S5) -> 0
A6: 3 | B6: 6222000911733 | C6: منتج 3 | D6: كرتونة | E6: 250 | T6: 0
A7: 4 | B7: 6222000911764 | C7: منتج 4 | D7: كرتونة | E7: 5 | T7: 0
A8: 5 | B8: 00743 | C8: منتج 5 | D8: كرتونة | E8: 0 | T8: 0
A9: 6 | B9: 6222000901758 | C9: منتج 6 | D9: كرتونة | E9: 476 | T9: 0
A10: 7 | B10: 6222000912020 | C10: منتج 7 | D10: كرتونة | E10: 20 | T10: 0
A11: 8 | B11: 6222000909815 | C11: منتج 8 | D11: كرتونة | E11: 107 | T11: 0
A12: 9 | B12: 6222000908610 | C12: منتج 9 | D12: كرتونة | E12: 0 | T12: 0
A13: 10 | B13: 6222000909891 | C13: منتج 10 | D13: كرتونة | E13: 0 | T13: 0
A14: 11 | B14: 6222000911757 | C14: منتج 11 | D14: كرتونة | E14: 0 | T14: 0
A15: 12 | B15: 00744 | C15: منتج 12 | D15: كرتونة | E15: 0 | T15: 0
A16: 13 | B16: 6222000901642 | C16: منتج 13 | D16: كرتونة | E16: 577 | T16: 0
A17: 14 | B17: 6222000912037 | C17: منتج 14 | D17: كرتونة | E17: 0 | T17: 0
A18: 15 | B18: 6222000909808 | C18: منتج 15 | D18: كرتونة | E18: 0 | T18: 0
A19: 16 | B19: 6222000905268 | C19: منتج 16 | D19: كرتونة | E19: 3 | T19: 0
A20: 17 | B20: 6222000907583 | C20: منتج 17 | D20: كرتونة | E20: 0 | T20: 0
A21: 18 | B21: 6222000909884 | C21: منتج 18 | D21: كرتونة | E21: 195 | T21: 0
A22: 19 | B22: 002770 | C22: منتج 19 | D22: كرتونة | E22: 0 | T22: 0
A23: 20 | B23: 6222000912525 | C23: منتج 20 | D23: كرتونة | E23: 100 | T23: 0
A24: 21 | B24: 6222000912518 | C24: منتج 21 | D24: كرتونة | E24: 60 | T24: 0
A25: 22 | B25: 6222000908566 | C25: منتج 22 | D25: كرتونة | E25: 70 | T25: 0
A26: 23 | B26: 6222000908573 | C26: منتج 23 | D26: كرتونة | E26: 37 | T26: 0
A27: 24 | B27: 6222000912501 | C27: منتج 24 | D27: كرتونة | E27: 90 | T27: 0
A28: 25 | B28: 6222000912457 | C28: منتج 25 | D28: كرتونة | E28: 0 | T28: 0
A29: 26 | B29: 6222000901611 | C29: منتج 26 | D29: كرتونة | E29: 365 | T29: 0
A30: 27 | B30: 6222000909907 | C30: منتج 27 | D30: كرتونة | E30: 0 | T30: 0
A31: 28 | B31: 6222000911498 | C31: منتج 28 | D31: كرتونة | E31: 179 | T31: 0
A32: 29 | B32: 002771 | C32: منتج 29 | D32: كرتونة | E32: 0 | T32: 0
A33: 30 | B33: 6222000912778 | C33: منتج 30 | D33: كرتونة | E33: 485 | T33: 0
A34: 31 | B34: 6222000912822 | C34: منتج 31 | D34: كرتونة | E34: 0 | T34: 0
A35: 32 | B35: 6222000912532 | C35: منتج 32 | D35: كرتونة | E35: 96 | T35: 0
A36: 33 | B36: 6222000901697 | C36: منتج 33 | D36: كرتونة | E36: 235 | T36: 0
A37: 34 | B37: 6222000911481 | C37: منتج 34 | D37: كرتونة | E37: 0 | T37: 0
A38: 35 | B38: 6222000908276 | C38: منتج 35 | D38: كرتونة | E38: 20 | T38: 0
A39: 36 | B39: 6222000909921 | C39: منتج 36 | D39: كرتونة | E39: 0 | T39: 0
A40: 37 | B40: 6222000909839 | C40: منتج 37 | D40: كرتونة | E40: 325 | T40: 0
A41: 38 | B41: 6222000908825 | C41: منتج 38 | D41: كرتونة | E41: 75 | T41: 0
A42: 39 | B42: 6222000907637 | C42: منتج 39 | D42: كرتونة | E42: 8 | T42: 0
A43: 40 | B43: 6222000903295 | C43: منتج 40 | D43: كرتونة | E43: 0 | T43: 0
A44: 41 | B44: 6222000912006 | C44: منتج 41 | D44: كرتونة | E44: 26 | T44: 0
A45: 42 | B45: 6222000911993 | C45: منتج 42 | D45: كرتونة | E45: 36 | T45: 0
A46: 43 | B46: 6222000912013 | C46: منتج 43 | D46: كرتونة | E46: 0 | T46: 0
A47: 44 | B47: 6222000964197 | C47: منتج 44 | D47: كرتونة | E47: 0 | T47: 0
A48: 45 | B48: 6222000906630 | C48: منتج 45 | D48: كرتونة | E48: 0 | T48: 0
A49: 46 | B49: 6222000902519 | C49: منتج 46 | D49: كرتونة | E49: 50 | T49: 0
A50: 47 | B50: 6222000902557 | C50: منتج 47 | D50: كرتونة | E50: 15 | T50: 0
A51: 48 | B51: 6222000902564 | C51: منتج 48 | D51: كرتونة | E51: 35 | T51: 0
A52: 49 | B52: 6222000910033 | C52: منتج 49 | D52: كرتونة | E52: 0 | T52: 0
A53: 50 | B53: 6222000910026 | C53: منتج 50 | D53: كرتونة | E53: 0 | T53: 0
A54: 51 | B54: 6222000909945 | C54: منتج 51 | D54: كرتونة | E54: 0 | T54: 0
A55: 52 | B55: 6222000910200 | C55: منتج 52 | D55: كرتونة | E55: 608 | T55: 0
A56: 53 | B56: 6222000910514 | C56: منتج 53 | D56: كرتونة | E56: 271 | T56: 0
A57: 54 | B57: 6222000909976 | C57: منتج 54 | D57: كرتونة | E57: 460 | T57: 0
A58: 55 | B58: 6222000909983 | C58: منتج 55 | D58: كرتونة | E58: 335 | T58: 0
A59: 56 | B59: 6222000909969 | C59: منتج 56 | D59: كرتونة | E59: 25 | T59: 0
A60: 57 | B60: 622200097116 | C60: منتج 57 | D60: كرتونة | E60: 83 | T60: 0
A61: 58 | B61: 6222000912372 | C61: منتج 58 | D61: كرتونة | E61: 23 | T61: 0
A62: 59 | B62: 6222000912488 | C62: منتج 59 | D62: كرتونة | E62: 155 | T62: 0
A63: 60 | B63: 6222000914383 | C63: منتج 60 | D63: كرتونة | E63: 0 | T63: 0
A64: 61 | B64: 6222000914369 | C64: منتج 61 | D64: كرتونة | E64: 0 | T64: 0
A65: 62 | B65: 6222000914376 | C65: منتج 62 | D65: كرتونة | E65: 0 | T65: 0
A66: 63 | B66: 6222000912365 | C66: منتج 63 | D66: كرتونة | E66: 0 | T66: 0
A67: 64 | B67: 6222000902083 | C67: منتج 64 | D67: كرتونة | E67: 15 | T67: 0
A68: 65 | B68: 6222000913904 | C68: منتج 65 | D68: كرتونة | E68: 40 | T68: 0
A69: 66 | B69: EG-670026743-2453 | C69: منتج 66 | D69: كرتونة | E69: 0 | T69: =SUM(F69:S69) -> 0
A70: 67 | B70: 6222000915243 | C70: منتج 67 | D70: كرتونة | E70: 15 | T70: 0
A71: 68 | B71: 6888000909953 | C71: منتج 68 | D71: كرتونة | E71: 0 | T71: 0
A72: الاجمالى | E72: =SUM(E4:E71) -> 6600 | F72: 0 | G72: 0 | H72: 0 | I72: 0 | J72: 0 | K72: 0 | L72: 0 | M72: 0 | N72: 0 | O72: 0 | P72: 0 | Q72: 0 | R72: 0 | S72: 0 | T72: 0

Sheet مؤسسة الزكاة
A1: رصيد توكيل ( مؤسسة الزكاة ) عن يوم ( 8/2/2025 )
A2: م | B2: الكود | C2: الصنف | D2: الوحدة | E2: الرصيد الدفترى بالكرتونة | F2: تاريخ الانتاج | T2: الرصيد الفعلى بالكرتونة
F3: 2024-01-01 | G3: 2024-02-01 | H3: 2024-03-01 | I3: 2024-04-01 | J3: 2024-05-01 | K3: 2024-06-01 | L3: 2024-07-01 | M3: 2024-08-01 | N3: 2024-09-01 | O3: 2024-10-01 | P3: 2024-11-01 | Q3: 2024-12-01 | R3: 2025-01-01 | S3: 2025-02-01
A4: 1 | B4: 6222000901529 | C4: منتج 1 | D4: كرتونة | E4: 17 | T4: =SUM(F4:S4) -> 0
A5: 2 | B5: 6222000901536 | C5: منتج 2 | D5: كرتونة | E5: 96 | T5: =SUM(F5:S5) -> 0
A6: 3 | B6: 6222000911733 | C6: منتج 3 | D6: كرتونة | E6: 139 | T6: 0
A7: 4 | B7: 6222000911764 | C7: منتج 4 | D7: كرتونة | E7: 265 | T7: 0
A8: 5 | B8: 00743 | C8: منتج 5 | D8: كرتونة | E8: 0 | T8: 0
A9: 6 | B9: 6222000901758 | C9: منتج 6 | D9: كرتونة | E9: 273 | T9: 0
A10: 7 | B10: 6222000912020 | C10: منتج 7 | D10: كرتونة | E10: 108 | T10: 0
A11: 8 | B11: 6222000909815 | C11: منتج 8 | D11: كرتونة | E11: 0 | T11: 0
A12: 9 | B12: 6222000908610 | C12: منتج 9 | D12: كرتونة | E12: 19 | T12: 0
A13: 10 | B13: 6222000909891 | C13: منتج 10 | D13: كرتونة | E13: 19 | T13: 0
A14: 11 | B14: 6222000911757 | C14: منتج 11 | D14: كرتونة | E14: 0 | T14: 0
A15: 12 | B15: 00744 | C15: منتج 12 | D15: كرتونة | E15: 0 | T15: 0
A16: 13 | B16: 6222000901642 | C16: منتج 13 | D16: كرتونة | E16: 374 | T16: 0
A17: 14 | B17: 6222000912037 | C17: منتج 14 | D17: كرتونة | E17: 185 | T17: 0
A18: 15 | B18: 6222000909808 | C18: منتج 15 | D18: كرتونة | E18: 0 | T18: 0
A19: 16 | B19: 6222000905268 | C19: منتج 16 | D19: كرتونة | E19: 0 | T19: 0
A20: 17 | B20: 6222000907583 | C20: منتج 17 | D20: كرتونة | E20: 17 | T20: 0
A21: 18 | B21: 6222000909884 | C21: منتج 18 | D21: كرتونة | E21: 30 | T21: 0
A22: 19 | B22: 002770 | C22: منتج 19 | D22: كرتونة | E22: 132 | T22: 0
A23: 20 | B23: 6222000912525 | C23: منتج 20 | D23: كرتونة | E23: 16 | T23: 0
A24: 21 | B24: 6222000912518 | C24: منتج 21 | D24: كرتونة | E24: 2 | T24: 0
A25: 22 | B25: 6222000908566 | C25: منتج 22 | D25: كرتونة | E25: 44 | T25: 0
A26: 23 | B26: 6222000908573 | C26: منتج 23 | D26: كرتونة | E26: 37 | T26: 0
A27: 24 | B27: 6222000912501 | C27: منتج 24 | D27: كرتونة | E27: 42 | T27: 0
A28: 25 | B28: 6222000912457 | C28: منتج 25 | D28: كرتونة | E28: 0 | T28: 0
A29: 26 | B29: 6222000901611 | C29: منتج 26 | D29: كرتونة | E29: 129 | T29: 0
A30: 27 | B30: 6222000909907 | C30: منتج 27 | D30: كرتونة | E30: 157 | T30: 0
A31: 28 | B31: 6222000911498 | C31: منتج 28 | D31: كرتونة | E31: 471 | T31: 0
A32: 29 | B32: 002771 | C32: منتج 29 | D32: كرتونة | E32: 0 | T32: 0
A33: 30 | B33: 6222000912778 | C33: منتج 30 | D33: كرتونة | E33: 251 | T33: 0
A34: 31 | B34: 6222000912822 | C34: منتج 31 | D34: كرتونة | E34: 61 | T34: 0
A35: 32 | B35: 6222000912532 | C35: منتج 32 | D35: كرتونة | E35: 18 | T35: 0
A36: 33 | B36: 6222000901697 | C36: منتج 33 | D36: كرتونة | E36: 357 | T36: 0
A37: 34 | B37: 6222000911481 | C37: منتج 34 | D37: كرتونة | E37: 0 | T37: 0
A38: 35 | B38: 6222000908276 | C38: منتج 35 | D38: كرتونة | E38: 0 | T38: 0
A39: 36 | B39: 6222000909921 | C39: منتج 36 | D39: كرتونة | E39: 0 | T39: 0
A40: 37 | B40: 6222000909839 | C40: منتج 37 | D40: كرتونة | E40: 306 | T40: 0
A41: 38 | B41: 6222000908825 | C41: منتج 38 | D41: كرتونة | E41: 119 | T41: 0
A42: 39 | B42: 6222000907637 | C42: منتج 39 | D42: كرتونة | E42: 24 | T42: 0
A43: 40 | B43: 6222000903295 | C43: منتج 40 | D43: كرتونة | E43: 0 | T43: 0
A44: 41 | B44: 6222000912006 | C44: منتج 41 | D44: كرتونة | E44: 10 | T44: 0
A45: 42 | B45: 6222000911993 | C45: منتج 42 | D45: كرتونة | E45: 0 | T45: 0
A46: 43 | B46: 6222000912013 | C46: منتج 43 | D46: كرتونة | E46: 0 | T46: 0
A47: 44 | B47: 6222000964197 | C47: منتج 44 | D47: كرتونة | E47: 28 | T47: 0
A48: 45 | B48: 6222000906630 | C48: منتج 45 | D48: كرتونة | E48: 0 | T48: 0
A49: 46 | B49: 6222000902519 | C49: منتج 46 | D49: كرتونة | E49: 29 | T49: 0
A50: 47 | B50: 6222000902557 | C50: منتج 47 | D50: كرتونة | E50: 58 | T50: 0
A51: 48 | B51: 6222000902564 | C51: منتج 48 | D51: كرتونة | E51: 137 | T51: 0
A52: 49 | B52: 6222000910033 | C52: منتج 49 | D52: كرتونة | E52: 0 | T52: 0
A53: 50 | B53: 6222000910026 | C53: منتج 50 | D53: كرتونة | E53: 0 | T53: 0
A54: 51 | B54: 6222000909945 | C54: منتج 51 | D54: كرتونة | E54: 0 | T54: 0
A55: 52 | B55: 6222000910200 | C55: منتج 52 | D55: كرتونة | E55: 797 | T55: 0
A56: 53 | B56: 6222000910514 | C56: منتج 53 | D56: كرتونة | E56: 237 | T56: 0
A57: 54 | B57: 6222000909976 | C57: منتج 54 | D57: كرتونة | E57: 455 | T57: 0
A58: 55 | B58: 6222000909983 | C58: منتج 55 | D58: كرتونة | E58: 284 | T58: 0
A59: 56 | B59: 6222000909969 | C59: منتج 56 | D59: كرتونة | E59: 21 | T59: 0
A60: 57 | B60: 622200097116 | C60: منتج 57 | D60: كرتونة | E60: 17 | T60: 0
A61: 58 | B61: 6222000912372 | C61: منتج 58 | D61: كرتونة | E61: 476 | T61: 0
A62: 59 | B62: 6222000912488 | C62: منتج 59 | D62: كرتونة | E62: 515 | T62: 0
A63: 60 | B63: 6222000914383 | C63: منتج 60 | D63: كرتونة | E63: 213 | T63: 0
A64: 61 | B64: 6222000914369 | C64: منتج 61 | D64: كرتونة | E64: 0 | T64: 0
A65: 62 | B65: 6222000914376 | C65: منتج 62 | D65: كرتونة | E65: 0 | T65: 0
A66: 63 | B66: 6222000912365 | C66: منتج 63 | D66: كرتونة | E66: 0 | T66: 0
A67: 64 | B67: 6222000902083 | C67: منتج 64 | D67: كرتونة | E67: 54 | T67: 0
A68: 65 | B68: 6222000913904 | C68: منتج 65 | D68: كرتونة | E68: 50 | T68: 0
A69: 66 | B69: EG-670026743-2453 | C69: منتج 66 | D69: كرتونة | E69: 0 | T69: =SUM(F69:S69) -> 0
A70: 67 | B70: 6222000915243 | C70: منتج 67 | D70: كرتونة | E70: 0 | T70: 0
A71: 68 | B71: 6888000909953 | C71: منتج 68 | D71: كرتونة | E71: 0 | T71: 0
A72: الاجمالى | E72: =SUM(E4:E71) -> 7089 | F72: =SUM(F4:F71) -> 0 | G72: 0 | H72: 0 | I72: 0 | J72: 0 | K72: 0 | L72: 0 | M72: 0 | N72: 0 | O72: 0 | P72: 0 | Q72: 0 | R72: 0 | S72: 0 | T72: 0

Sheet الجيزة
A1: رصيد توكيل ( الجيزة ) عن يوم ( 8-2-2025 )
A2: م | B2: الكود | C2: الصنف | D2: الوحدة | E2: الرصيد الدفترى بالكرتونة | F2: تاريخ الانتاج | T2: الرصيد الفعلى بالكرتونة
F3: 2024-01-01 | G3: 2024-02-01 | H3: 2024-03-01 | I3: 2024-04-01 | J3: 2024-05-01 | K3: 2024-06-01 | L3: 2024-07-01 | M3: 2024-08-01 | N3: 2024-09-01 | O3: 2024-10-01 | P3: 2024-11-01 | Q3: 2024-12-01 | R3: 2025-01-01 | S3: 2025-02-01
A4: 1 | B4: 6222000901529 | C4: منتج 1 | D4: كرتونة | E4: 93 | T4: =SUM(F4:S4) -> 0
A5: 2 | B5: 6222000901536 | C5: منتج 2 | D5: كرتونة | E5: 71 | T5: =SUM(F5:S5) -> 0
A6: 3 | B6: 6222000911733 | C6: منتج 3 | D6: كرتونة | E6: 252 | T6: 0
A7: 4 | B7: 6222000911764 | C7: منتج 4 | D7: كرتونة | E7: 27 | T7: 0
A8: 5 | B8: 00743 | C8: منتج 5 | D8: كرتونة | E8: 4 | T8: 0
A9: 6 | B9: 6222000901758 | C9: منتج 6 | D9: كرتونة | E9: 452 | T9: 0
A10: 7 | B10: 6222000912020 | C10: منتج 7 | D10: كرتونة | E10: 0 | T10: 0
A11: 8 | B11: 6222000909815 | C11: منتج 8 | D11: كرتونة | E11: 71 | T11: 0
A12: 9 | B12: 6222000908610 | C12: منتج 9 | D12: كرتونة | E12: 0 | T12: 0
A13: 10 | B13: 6222000909891 | C13: منتج 10 | D13: كرتونة | E13: 0 | T13: 0
A14: 11 | B14: 6222000911757 | C14: منتج 11 | D14: كرتونة | E14: 0 | T14: 0
A15: 12 | B15: 00744 | C15: منتج 12 | D15: كرتونة | E15: 1 | T15: 0
A16: 13 | B16: 6222000901642 | C16: منتج 13 | D16: كرتونة | E16: 253 | T16: 0
A17: 14 | B17: 6222000912037 | C17: منتج 14 | D17: كرتونة | E17: 75 | T17: 0
A18: 15 | B18: 6222000909808 | C18: منتج 15 | D18: كرتونة | E18: 69 | T18: 0
A19: 16 | B19: 6222000905268 | C19: منتج 16 | D19: كرتونة | E19: 49 | T19: 0
A20: 17 | B20: 6222000907583 | C20: منتج 17 | D20: كرتونة | E20: 0 | T20: 0
A21: 18 | B21: 6222000909884 | C21: منتج 18 | D21: كرتونة | E21: 313 | T21: 0
A22: 19 | B22: 002770 | C22: منتج 19 | D22: كرتونة | E22: 97 | T22: 0
A23: 20 | B23: 6222000912525 | C23: منتج 20 | D23: كرتونة | E23: 103 | T23: 0
A24: 21 | B24: 6222000912518 | C24: منتج 21 | D24: كرتونة | E24: 13 | T24: 0
A25: 22 | B25: 6222000908566 | C25: منتج 22 | D25: كرتونة | E25: 42 | T25: 0
A26: 23 | B26: 6222000908573 | C26: منتج 23 | D26: كرتونة | E26: 37 | T26: 0
A27: 24 | B27: 6222000912501 | C27: منتج 24 | D27: كرتونة | E27: 0 | T27: 0
A28: 25 | B28: 6222000912457 | C28: منتج 25 | D28: كرتونة | E28: 0 | T28: 0
A29: 26 | B29: 6222000901611 | C29: منتج 26 | D29: كرتونة | E29: 433 | T29: 0
A30: 27 | B30: 6222000909907 | C30: منتج 27 | D30: كرتونة | E30: 0 | T30: 0
A31: 28 | B31: 6222000911498 | C31: منتج 28 | D31: كرتونة | E31: 357 | T31: 0
A32: 29 | B32: 002771 | C32: منتج 29 | D32: كرتونة | E32: 0 | T32: 0
A33: 30 | B33: 6222000912778 | C33: منتج 30 | D33: كرتونة | E33: 0 | T33: 0
A34: 31 | B34: 6222000912822 | C34: منتج 31 | D34: كرتونة | E34: 0 | T34: 0
A35: 32 | B35: 6222000912532 | C35: منتج 32 | D35: كرتونة | E35: 179 | T35: 0
A36: 33 | B36: 6222000901697 | C36: منتج 33 | D36: كرتونة | E36: 477 | T36: 0
A37: 34 | B37: 6222000911481 | C37: منتج 34 | D37: كرتونة | E37: 0 | T37: 0
A38: 35 | B38: 6222000908276 | C38: منتج 35 | D38: كرتونة | E38: 84 | T38: 0
A39: 36 | B39: 6222000909921 | C39: منتج 36 | D39: كرتونة | E39: 0 | T39: 0
A40: 37 | B40: 6222000909839 | C40: منتج 37 | D40: كرتونة | E40: 300 | T40: 0
A41: 38 | B41: 6222000908825 | C41: منتج 38 | D41: كرتونة | E41: 103 | T41: 0
A42: 39 | B42: 6222000907637 | C42: منتج 39 | D42: كرتونة | E42: 26 | T42: 0
A43: 40 | B43: 6222000903295 | C43: منتج 40 | D43: كرتونة | E43: 0 | T43: 0
A44: 41 | B44: 6222000912006 | C44: منتج 41 | D44: كرتونة | E44: 29 | T44: 0
A45: 42 | B45: 6222000911993 | C45: منتج 42 | D45: كرتونة | E45: 48 | T45: 0
A46: 43 | B46: 6222000912013 | C46: منتج 43 | D46: كرتونة | E46: 47 | T46: 0
A47: 44 | B47: 6222000964197 | C47: منتج 44 | D47: كرتونة | E47: 0 | T47: 0
A48: 45 | B48: 6222000906630 | C48: منتج 45 | D48: كرتونة | E48: 146 | T48: 0
A49: 46 | B49: 6222000902519 | C49: منتج 46 | D49: كرتونة | E49: 3 | T49: 0
A50: 47 | B50: 6222000902557 | C50: منتج 47 | D50: كرتونة | E50: 18 | T50: 0
A51: 48 | B51: 6222000902564 | C51: منتج 48 | D51: كرتونة | E51: 319 | T51: 0
A52: 49 | B52: 6222000910033 | C52: منتج 49 | D52: كرتونة | E52: 0 | T52: 0
A53: 50 | B53: 6222000910026 | C53: منتج 50 | D53: كرتونة | E53: 0 | T53: 0
A54: 51 | B54: 6222000909945 | C54: منتج 51 | D54: كرتونة | E54: 0 | T54: 0
A55: 52 | B55: 6222000910200 | C55: منتج 52 | D55: كرتونة | E55: 1179 | T55: 0
A56: 53 | B56: 6222000910514 | C56: منتج 53 | D56: كرتونة | E56: 639 | T56: 0
A57: 54 | B57: 6222000909976 | C57: منتج 54 | D57: كرتونة | E57: 732 | T57: 0
A58: 55 | B58: 6222000909983 | C58: منتج 55 | D58: كرتونة | E58: 965 | T58: 0
A59: 56 | B59: 6222000909969 | C59: منتج 56 | D59: كرتونة | E59: 203 | T59: 0
A60: 57 | B60: 622200097116 | C60: منتج 57 | D60: كرتونة | E60: 202 | T60: 0
A61: 58 | B61: 6222000912372 | C61: منتج 58 | D61: كرتونة | E61: 180 | T61: 0
A62: 59 | B62: 6222000912488 | C62: منتج 59 | D62: كرتونة | E62: 436 | T62: 0
A63: 60 | B63: 6222000914383 | C63: منتج 60 | D63: كرتونة | E63: 0 | T63: 0
A64: 61 | B64: 6222000914369 | C64: منتج 61 | D64: كرتونة | E64: 0 | T64: 0
A65: 62 | B65: 6222000914376 | C65: منتج 62 | D65: كرتونة | E65: 0 | T65: 0
A66: 63 | B66: 6222000912365 | C66: منتج 63 | D66: كرتونة | E66: 0 | T66: 0
A67: 64 | B67: 6222000902083 | C67: منتج 64 | D67: كرتونة | E67: 0 | T67: 0
A68: 65 | B68: 6222000913904 | C68: منتج 65 | D68: كرتونة | E68: 5 | T68: 0
A69: 66 | B69: EG-670026743-2453 | C69: منتج 66 | D69: كرتونة | E69: 0 | T69: =SUM(F69:S69) -> 0
A70: 67 | B70: 6222000915243 | C70: منتج 67 | D70: كرتونة | E70: 0 | T70: 0
A71: 68 | B71: 6888000909953 | C71: منتج 68 | D71: كرتونة | E71: 435 | T71: 0
A72: الاجمالى | E72: =SUM(E4:E71) -> 9567 | F72: =SUM(F4:F71) -> 0 | G72: 0 | H72: 0 | I72: 0 | J72: 0 | K72: 0 | L72: 0 | M72: 0 | N72: 0 | O72: 0 | P72: 0 | Q72: 0 | R72: 0 | S72: 0 | T72: 0

Sheet القليوبية
A1: رصيد توكيل ( القليوبية ) عن يوم ( 2025/2/8 )
A2: م | B2: الكود | C2: الصنف | D2: الوحدة | E2: الرصيد الدفترى بالكرتونة | F2: تاريخ الانتاج | T2: الرصيد الفعلى بالكرتونة
F3: 2024-01-01 | G3: 2024-02-01 | H3: 2024-03-01 | I3: 2024-04-01 | J3: 2024-05-01 | K3: 2024-06-01 | L3: 2024-07-01 | M3: 2024-08-01 | N3: 2024-09-01 | O3: 2024-10-01 | P3: 2024-11-01 | Q3: 2024-12-01 | R3: 2025-01-01 | S3: 2025-02-01
A4: 1 | B4: 6222000901529 | C4: منتج 1 | D4: كرتونة | E4: 209 | T4: =SUM(F4:S4) -> 0
A5: 2 | B5: 6222000901536 | C5: منتج 2 | D5: كرتونة | E5: 0 | T5: =SUM(F5:S5) -> 0
A6: 3 | B6: 6222000911733 | C6: منتج 3 | D6: كرتونة | E6: 130 | T6: 0
A7: 4 | B7: 6222000911764 | C7: منتج 4 | D7: كرتونة | E7: 43 | T7: 0
A8: 5 | B8: 00743 | C8: منتج 5 | D8: كرتونة | E8: 2 | T8: 0
A9: 6 | B9: 6222000901758 | C9: منتج 6 | D9: كرتونة | E9: 414 | T9: 0
A10: 7 | B10: 6222000912020 | C10: منتج 7 | D10: كرتونة | E10: 102 | T10: 0
A11: 8 | B11: 6222000909815 | C11: منتج 8 | D11: كرتونة | E11: 496 | T11: 0
A12: 9 | B12: 6222000908610 | C12: منتج 9 | D12: كرتونة | E12: 0 | T12: 0
A13: 10 | B13: 6222000909891 | C13: منتج 10 | D13: كرتونة | E13: 668 | T13: 0
A14: 11 | B14: 6222000911757 | C14: منتج 11 | D14: كرتونة | E14: 0 | T14: 0
A15: 12 | B15: 00744 | C15: منتج 12 | D15: كرتونة | E15: 40 | T15: 0
A16: 13 | B16: 6222000901642 | C16: منتج 13 | D16: كرتونة | E16: 5 | T16: 0
A17: 14 | B17: 6222000912037 | C17: منتج 14 | D17: كرتونة | E17: 103 | T17: 0
A18: 15 | B18: 6222000909808 | C18: منتج 15 | D18: كرتونة | E18: 182 | T18: 0
A19: 16 | B19: 6222000905268 | C19: منتج 16 | D19: كرتونة | E19: 0 | T19: 0
A20: 17 | B20: 6222000907583 | C20: منتج 17 | D20: كرتونة | E20: 0 | T20: 0
A21: 18 | B21: 6222000909884 | C21: منتج 18 | D21: كرتونة | E21: 650 | T21: 0
A22: 19 | B22: 002770 | C22: منتج 19 | D22: كرتونة | E22: 0 | T22: 0
A23: 20 | B23: 6222000912525 | C23: منتج 20 | D23: كرتونة | E23: 239 | T23: 0
A24: 21 | B24: 6222000912518 | C24: منتج 21 | D24: كرتونة | E24: 0 | T24: 0
A25: 22 | B25: 6222000908566 | C25: منتج 22 | D25: كرتونة | E25: 59 | T25: 0
A26: 23 | B26: 6222000908573 | C26: منتج 23 | D26: كرتونة | E26: 15 | T26: 0
A27: 24 | B27: 6222000912501 | C27: منتج 24 | D27: كرتونة | E27: 49 | T27: 0
A28: 25 | B28: 6222000912457 | C28: منتج 25 | D28: كرتونة | E28: 40 | T28: 0
A29: 26 | B29: 6222000901611 | C29: منتج 26 | D29: كرتونة | E29: 150 | T29: 0
A30: 27 | B30: 6222000909907 | C30: منتج 27 | D30: كرتونة | E30: 315 | T30: 0
A31: 28 | B31: 6222000911498 | C31: منتج 28 | D31: كرتونة | E31: 147 | T31: 0
A32: 29 | B32: 002771 | C32: منتج 29 | D32: كرتونة | E32: 0 | T32: 0
A33: 30 | B33: 6222000912778 | C33: منتج 30 | D33: كرتونة | E33: 743 | T33: 0
A34: 31 | B34: 6222000912822 | C34: منتج 31 | D34: كرتونة | E34: 0 | T34: 0
A35: 32 | B35: 6222000912532 | C35: منتج 32 | D35: كرتونة | E35: 46 | T35: 0
A36: 33 | B36: 6222000901697 | C36: منتج 33 | D36: كرتونة | E36: 356 | T36: 0
A37: 34 | B37: 6222000911481 | C37: منتج 34 | D37: كرتونة | E37: 0 | T37: 0
A38: 35 | B38: 6222000908276 | C38: منتج 35 | D38: كرتونة | E38: 94 | T38: 0
A39: 36 | B39: 6222000909921 | C39: منتج 36 | D39: كرتونة | E39: 0 | T39: 0
A40: 37 | B40: 6222000909839 | C40: منتج 37 | D40: كرتونة | E40: 197 | T40: 0
A41: 38 | B41: 6222000908825 | C41: منتج 38 | D41: كرتونة | E41: 0 | T41: 0
A42: 39 | B42: 6222000907637 | C42: منتج 39 | D42: كرتونة | E42: 6 | T42: 0
A43: 40 | B43: 6222000903295 | C43: منتج 40 | D43: كرتونة | E43: 9 | T43: 0
A44: 41 | B44: 6222000912006 | C44: منتج 41 | D44: كرتونة | E44: 0 | T44: 0
A45: 42 | B45: 6222000911993 | C45: منتج 42 | D45: كرتونة | E45: 0 | T45: 0
A46: 43 | B46: 6222000912013 | C46: منتج 43 | D46: كرتونة | E46: 0 | T46: 0
A47: 44 | B47: 6222000964197 | C47: منتج 44 | D47: كرتونة | E47: 0 | T47: 0
A48: 45 | B48: 6222000906630 | C48: منتج 45 | D48: كرتونة | E48: 50 | T48: 0
A49: 46 | B49: 6222000902519 | C49: منتج 46 | D49: كرتونة | E49: 70 | T49: 0
A50: 47 | B50: 6222000902557 | C50: منتج 47 | D50: كرتونة | E50: 135 | T50: 0
A51: 48 | B51: 6222000902564 | C51: منتج 48 | D51: كرتونة | E51: 40 | T51: 0
A52: 49 | B52: 6222000910033 | C52: منتج 49 | D52: كرتونة | E52: 21 | T52: 0
A53: 50 | B53: 6222000910026 | C53: منتج 50 | D53: كرتونة | E53: 0 | T53: 0
A54: 51 | B54: 6222000909945 | C54: منتج 51 | D54: كرتونة | E54: 46 | T54: 0
A55: 52 | B55: 6222000910200 | C55: منتج 52 | D55: كرتونة | E55: 586 | T55: 0
A56: 53 | B56: 6222000910514 | C56: منتج 53 | D56: كرتونة | E56: 342 | T56: 0
A57: 54 | B57: 6222000909976 | C57: منتج 54 | D57: كرتونة | E57: 1266 | T57: 0
A58: 55 | B58: 6222000909983 | C58: منتج 55 | D58: كرتونة | E58: 579 | T58: 0
A59: 56 | B59: 6222000909969 | C59: منتج 56 | D59: كرتونة | E59: 440 | T59: 0
A60: 57 | B60: 622200097116 | C60: منتج 57 | D60: كرتونة | E60: 387 | T60: 0
A61: 58 | B61: 6222000912372 | C61: منتج 58 | D61: كرتونة | E61: 676 | T61: 0
A62: 59 | B62: 6222000912488 | C62: منتج 59 | D62: كرتونة | E62: 417 | T62: 0
A63: 60 | B63: 6222000914383 | C63: منتج 60 | D63: كرتونة | E63: 0 | T63: 0
A64: 61 | B64: 6222000914369 | C64: منتج 61 | D64: كرتونة | E64: 0 | T64: 0
A65: 62 | B65: 6222000914376 | C65: منتج 62 | D65: كرتونة | E65: 0 | T65: 0
A66: 63 | B66: 6222000912365 | C66: منتج 63 | D66: كرتونة | E66: 0 | T66: 0
A67: 64 | B67: 6222000902083 | C67: منتج 64 | D67: كرتونة | E67: 13 | T67: 0
A68: 65 | B68: 6222000913904 | C68: منتج 65 | D68: كرتونة | E68: 0 | T68: 0
A69: 66 | B69: EG-670026743-2453 | C69: منتج 66 | D69: كرتونة | E69: 0 | T69: =SUM(F69:S69) -> 0
A70: 67 | B70: 6222000915243 | C70: منتج 67 | D70: كرتونة | E70: 0 | T70: 0
A71: 68 | B71: 6888000909953 | C71: منتج 68 | D71: كرتونة | E71: 445 | T71: 0
A72: الاجمالى | E72: =SUM(E4:E71) -> 11022 | F72: =SUM(F4:F71) -> 0 | G72: 0 | H72: 0 | I72: 0 | J72: 0 | K72: 0 | L72: 0 | M72: 0 | N72: 0 | O72: 0 | P72: 0 | Q72: 0 | R72: 0 | S72: 0 | T72: 0

Sheet الفيوم
A1: رصيد توكيل ( الفيوم ) عن يوم ( 8-2-2025 )
A2: م | B2: الكود | C2: الصنف | D2: الوحدة | E2: الرصيد الدفترى بالكرتونة | T2: الرصيد الفعلى بالكرتونة
F3: 2024-01-01 | G3: 2024-02-01 | H3: 2024-03-01 | I3: 2024-04-01 | J3: 2024-05-01 | K3: 2024-06-01 | L3: 2024-07-01 | M3: 2024-08-01 | N3: 2024-09-01 | O3: 2024-10-01 | P3: 2024-11-01 | Q3: 2024-12-01 | R3: 2025-01-01 | S3: 2025-02-01
A4: 1 | B4: 6222000901529 | C4: منتج 1 | D4: كرتونة | E4: 82 | T4: =SUM(F4:S4) -> 0
A5: 2 | B5: 6222000901536 | C5: منتج 2 | D5: كرتونة | E5: 83 | T5: =SUM(F5:S5) -> 0
A6: 3 | B6: 6222000911733 | C6: منتج 3 | D6: كرتونة | E6: 129 | T6: 0
A7: 4 | B7: 6222000911764 | C7: منتج 4 | D7: كرتونة | E7: 40 | T7: 0
A8: 5 | B8: 00743 | C8: منتج 5 | D8: كرتونة | E8: 94 | T8: 0
A9: 6 | B9: 6222000901758 | C9: منتج 6 | D9: كرتونة | E9: 15 | T9: 0
A10: 7 | B10: 6222000912020 | C10: منتج 7 | D10: كرتونة | E10: 25 | T10: 0
A11: 8 | B11: 6222000909815 | C11: منتج 8 | D11: كرتونة | E11: 21 | T11: 0
A12: 9 | B12: 6222000908610 | C12: منتج 9 | D12: كرتونة | E12: 0 | T12: 0
A13: 10 | B13: 6222000909891 | C13: منتج 10 | D13: كرتونة | E13: 0 | T13: 0
A14: 11 | B14: 6222000911757 | C14: منتج 11 | D14: كرتونة | E14: 0 | T14: 0
A15: 12 | B15: 00744 | C15: منتج 12 | D15: كرتونة | E15: 101 | T15: 0
A16: 13 | B16: 6222000901642 | C16: منتج 13 | D16: كرتونة | E16: 12 | T16: 0
A17: 14 | B17: 6222000912037 | C17: منتج 14 | D17: كرتونة | E17: 0 | T17: 0
A18: 15 | B18: 6222000909808 | C18: منتج 15 | D18: كرتونة | E18: 35 | T18: 0
A19: 16 | B19: 6222000905268 | C19: منتج 16 | D19: كرتونة | E19: 0 | T19: 0
A20: 17 | B20: 6222000907583 | C20: منتج 17 | D20: كرتونة | E20: 0 | T20: 0
A21: 18 | B21: 6222000909884 | C21: منتج 18 | D21: كرتونة | E21: 13 | T21: 0
A22: 19 | B22: 002770 | C22: منتج 19 | D22: كرتونة | E22: 0 | T22: 0
A23: 20 | B23: 6222000912525 | C23: منتج 20 | D23: كرتونة | E23: 0 | T23: 0
A24: 21 | B24: 6222000912518 | C24: منتج 21 | D24: كرتونة | E24: 150 | T24: 0
A25: 22 | B25: 6222000908566 | C25: منتج 22 | D25: كرتونة | E25: 0 | T25: 0
A26: 23 | B26: 6222000908573 | C26: منتج 23 | D26: كرتونة | E26: 20 | T26: 0
A27: 24 | B27: 6222000912501 | C27: منتج 24 | D27: كرتونة | E27: 0 | T27: 0
A28: 25 | B28: 6222000912457 | C28: منتج 25 | D28: كرتونة | E28: 0 | T28: 0
A29: 26 | B29: 6222000901611 | C29: منتج 26 | D29: كرتونة | E29: 69.5 | T29: 0
A30: 27 | B30: 6222000909907 | C30: منتج 27 | D30: كرتونة | E30: 0 | T30: 0
A31: 28 | B31: 6222000911498 | C31: منتج 28 | D31: كرتونة | E31: 44 | T31: 0
A32: 29 | B32: 002771 | C32: منتج 29 | D32: كرتونة | E32: 0 | T32: 0
A33: 30 | B33: 6222000912778 | C33: منتج 30 | D33: كرتونة | E33: 0 | T33: 0
A34: 31 | B34: 6222000912822 | C34: منتج 31 | D34: كرتونة | E34: 32 | T34: 0
A35: 32 | B35: 6222000912532 | C35: منتج 32 | D35: كرتونة | E35: 0 | T35: 0
A36: 33 | B36: 6222000901697 | C36: منتج 33 | D36: كرتونة | E36: 32 | T36: 0
A37: 34 | B37: 6222000911481 | C37: منتج 34 | D37: كرتونة | E37: 0 | T37: 0
A38: 35 | B38: 6222000908276 | C38: منتج 35 | D38: كرتونة | E38: 3 | T38: 0
A39: 36 | B39: 6222000909921 | C39: منتج 36 | D39: كرتونة | E39: 0 | T39: 0
A40: 37 | B40: 6222000909839 | C40: منتج 37 | D40: كرتونة | E40: 99 | T40: 0
A41: 38 | B41: 6222000908825 | C41: منتج 38 | D41: كرتونة | E41: 72 | T41: 0
A42: 39 | B42: 6222000907637 | C42: منتج 39 | D42: كرتونة | E42: 0 | T42: 0
A43: 40 | B43: 6222000903295 | C43: منتج 40 | D43: كرتونة | E43: 0 | T43: 0
A44: 41 | B44: 6222000912006 | C44: منتج 41 | D44: كرتونة | E44: 0 | T44: 0
A45: 42 | B45: 6222000911993 | C45: منتج 42 | D45: كرتونة | E45: 0 | T45: 0
A46: 43 | B46: 6222000912013 | C46: منتج 43 | D46: كرتونة | E46: 0 | T46: 0
A47: 44 | B47: 6222000964197 | C47: منتج 44 | D47: كرتونة | E47: 0 | T47: 0
A48: 45 | B48: 6222000906630 | C48: منتج 45 | D48: كرتونة | E48: 0 | T48: 0
A49: 46 | B49: 6222000902519 | C49: منتج 46 | D49: كرتونة | E49: 84 | T49: 0
A50: 47 | B50: 6222000902557 | C50: منتج 47 | D50: كرتونة | E50: 73 | T50: 0
A51: 48 | B51: 6222000902564 | C51: منتج 48 | D51: كرتونة | E51: 43 | T51: 0
A52: 49 | B52: 6222000910033 | C52: منتج 49 | D52: كرتونة | E52: 0 | T52: 0
A53: 50 | B53: 6222000910026 | C53: منتج 50 | D53: كرتونة | E53: 0 | T53: 0
A54: 51 | B54: 6222000909945 | C54: منتج 51 | D54: كرتونة | E54: 0 | T54: 0
A55: 52 | B55: 6222000910200 | C55: منتج 52 | D55: كرتونة | E55: 531 | T55: 0
A56: 53 | B56: 6222000910514 | C56: منتج 53 | D56: كرتونة | E56: 264 | T56: 0
A57: 54 | B57: 6222000909976 | C57: منتج 54 | D57: كرتونة | E57: 0 | T57: 0
A58: 55 | B58: 6222000909983 | C58: منتج 55 | D58: كرتونة | E58: 0 | T58: 0
A59: 56 | B59: 6222000909969 | C59: منتج 56 | D59: كرتونة | E59: 0 | T59: 0
A60: 57 | B60: 622200097116 | C60: منتج 57 | D60: كرتونة | E60: 306 | T60: 0
A61: 58 | B61: 6222000912372 | C61: منتج 58 | D61: كرتونة | E61: 0 | T61: 0
A62: 59 | B62: 6222000912488 | C62: منتج 59 | D62: كرتونة | E62: 181 | T62: 0
A63: 60 | B63: 6222000914383 | C63: منتج 60 | D63: كرتونة | E63: 0 | T63: 0
A64: 61 | B64: 6222000914369 | C64: منتج 61 | D64: كرتونة | E64: 0 | T64: 0
A65: 62 | B65: 6222000914376 | C65: منتج 62 | D65: كرتونة | E65: 0 | T65: 0
A66: 63 | B66: 6222000912365 | C66: منتج 63 | D66: كرتونة | E66: 35 | T66: 0
A67: 64 | B67: 6222000902083 | C67: منتج 64 | D67: كرتونة | E67: 0 | T67: 0
A68: 65 | B68: 6222000913904 | C68: منتج 65 | D68: كرتونة | E68: 9 | T68: 0
A69: 66 | B69: EG-670026743-2453 | C69: منتج 66 | D69: كرتونة | E69: 0 | T69: =SUM(F69:S69) -> 0
A70: 67 | B70: 6222000915243 | C70: منتج 67 | D70: كرتونة | E70: 0 | T70: 0
A71: 68 | B71: 6888000909953 | C71: منتج 68 | D71: كرتونة | E71: 0 | T71: 0
A72: الاجمالى | E72: =SUM(E4:E71) -> 2697.5 | F72: =SUM(F4:F71) -> 0 | G72: 0 | H72: 0 | I72: 0 | J72: 0 | K72: 0 | L72: 0 | M72: 0 | N72: 0 | O72: 0 | P72: 0 | Q72: 0 | R72: 0 | S72: 0 | T72: 0

Sheet بنى سويف
A1: رصيد توكيل ( بنى سويف ) عن يوم ( 8-2-2025 )
A2: م | B2: الكود | C2: الصنف | D2: الوحدة | E2: الرصيد الدفترى بالكرتونة | F2: تاريخ الانتاج | T2: الرصيد الفعلى بالكرتونة
F3: 2024-01-01 | G3: 2024-02-01 | H3: 2024-03-01 | I3: 2024-04-01 | J3: 2024-05-01 | K3: 2024-06-01 | L3: 2024-07-01 | M3: 2024-08-01 | N3: 2024-09-01 | O3: 2024-10-01 | P3: 2024-11-01 | Q3: 2024-12-01 | R3: 2025-01-01 | S3: 2025-02-01
A4: 1 | B4: 6222000901529 | C4: منتج 1 | D4: كرتونة | E4: 190 | T4: =SUM(F4:S4) -> 0
A5: 2 | B5: 6222000901536 | C5: منتج 2 | D5: كرتونة | E5: 50 | T5: =SUM(F5:S5) -> 0
A6: 3 | B6: 6222000911733 | C6: منتج 3 | D6: كرتونة | E6: 33 | T6: 0
A7: 4 | B7: 6222000911764 | C7: منتج 4 | D7: كرتونة | E7: 0 | T7: 0
A8: 5 | B8: 00743 | C8: منتج 5 | D8: كرتونة | E8: 17 | T8: 0
A9: 6 | B9: 6222000901758 | C9: منتج 6 | D9: كرتونة | E9: 3 | T9: 0
A10: 7 | B10: 6222000912020 | C10: منتج 7 | D10: كرتونة | E10: 30 | T10: 0
A11: 8 | B11: 6222000909815 | C11: منتج 8 | D11: كرتونة | E11: 29 | T11: 0
A12: 9 | B12: 6222000908610 | C12: منتج 9 | D12: كرتونة | E12: 27 | T12: 0
A13: 10 | B13: 6222000909891 | C13: منتج 10 | D13: كرتونة | E13: 220 | T13: 0
A14: 11 | B14: 6222000911757 | C14: منتج 11 | D14: كرتونة | E14: 0 | T14: 0
A15: 12 | B15: 00744 | C15: منتج 12 | D15: كرتونة | E15: 153 | T15: 0
A16: 13 | B16: 6222000901642 | C16: منتج 13 | D16: كرتونة | E16: 5 | T16: 0
A17: 14 | B17: 6222000912037 | C17: منتج 14 | D17: كرتونة | E17: 60 | T17: 0
A18: 15 | B18: 6222000909808 | C18: منتج 15 | D18: كرتونة | E18: 14 | T18: 0
A19: 16 | B19: 6222000905268 | C19: منتج 16 | D19: كرتونة | E19: 0 | T19: 0
A20: 17 | B20: 6222000907583 | C20: منتج 17 | D20: كرتونة | E20: 20 | T20: 0
A21: 18 | B21: 6222000909884 | C21: منتج 18 | D21: كرتونة | E21: 12 | T21: 0
A22: 19 | B22: 002770 | C22: منتج 19 | D22: كرتونة | E22: 0 | T22: 0
A23: 20 | B23: 6222000912525 | C23: منتج 20 | D23: كرتونة | E23: 159 | T23: 0
A24: 21 | B24: 6222000912518 | C24: منتج 21 | D24: كرتونة | E24: 63 | T24: 0
A25: 22 | B25: 6222000908566 | C25: منتج 22 | D25: كرتونة | E25: 10 | T25: 0
A26: 23 | B26: 6222000908573 | C26: منتج 23 | D26: كرتونة | E26: 29 | T26: 0
A27: 24 | B27: 6222000912501 | C27: منتج 24 | D27: كرتونة | E27: 0 | T27: 0
A28: 25 | B28: 6222000912457 | C28: منتج 25 | D28: كرتونة | E28: 117 | T28: 0
A29: 26 | B29: 6222000901611 | C29: منتج 26 | D29: كرتونة | E29: 0 | T29: 0
A30: 27 | B30: 6222000909907 | C30: منتج 27 | D30: كرتونة | E30: 0 | T30: 0
A31: 28 | B31: 6222000911498 | C31: منتج 28 | D31: كرتونة | E31: 22 | T31: 0
A32: 29 | B32: 002771 | C32: منتج 29 | D32: كرتونة | E32: 0 | T32: 0
A33: 30 | B33: 6222000912778 | C33: منتج 30 | D33: كرتونة | E33: 33 | T33: 0
A34: 31 | B34: 6222000912822 | C34: منتج 31 | D34: كرتونة | E34: 0 | T34: 0
A35: 32 | B35: 6222000912532 | C35: منتج 32 | D35: كرتونة | E35: 92 | T35: 0
A36: 33 | B36: 6222000901697 | C36: منتج 33 | D36: كرتونة | E36: 311 | T36: 0
A37: 34 | B37: 6222000911481 | C37: منتج 34 | D37: كرتونة | E37: 0 | T37: 0
A38: 35 | B38: 6222000908276 | C38: منتج 35 | D38: كرتونة | E38: 152 | T38: 0
A39: 36 | B39: 6222000909921 | C39: منتج 36 | D39: كرتونة | E39: 0 | T39: 0
A40: 37 | B40: 6222000909839 | C40: منتج 37 | D40: كرتونة | E40: 188 | T40: 0
A41: 38 | B41: 6222000908825 | C41: منتج 38 | D41: كرتونة | E41: 0 | T41: 0
A42: 39 | B42: 6222000907637 | C42: منتج 39 | D42: كرتونة | E42: 20 | T42: 0
A43: 40 | B43: 6222000903295 | C43: منتج 40 | D43: كرتونة | E43: 0 | T43: 0
A44: 41 | B44: 6222000912006 | C44: منتج 41 | D44: كرتونة | E44: 0 | T44: 0
A45: 42 | B45: 6222000911993 | C45: منتج 42 | D45: كرتونة | E45: 0 | T45: 0
A46: 43 | B46: 6222000912013 | C46: منتج 43 | D46: كرتونة | E46: 0 | T46: 0
A47: 44 | B47: 6222000964197 | C47: منتج 44 | D47: كرتونة | E47: 0 | T47: 0
A48: 45 | B48: 6222000906630 | C48: منتج 45 | D48: كرتونة | E48: 65 | T48: 0
A49: 46 | B49: 6222000902519 | C49: منتج 46 | D49: كرتونة | E49: 14 | T49: 0
A50: 47 | B50: 6222000902557 | C50: منتج 47 | D50: كرتونة | E50: 77 | T50: 0
A51: 48 | B51: 6222000902564 | C51: منتج 48 | D51: كرتونة | E51: 113 | T51: 0
A52: 49 | B52: 6222000910033 | C52: منتج 49 | D52: كرتونة | E52: 0 | T52: 0
A53: 50 | B53: 6222000910026 | C53: منتج 50 | D53: كرتونة | E53: 0 | T53: 0
A54: 51 | B54: 6222000909945 | C54: منتج 51 | D54: كرتونة | E54: 0 | T54: 0
A55: 52 | B55: 6222000910200 | C55: منتج 52 | D55: كرتونة | E55: 596 | T55: 0
A56: 53 | B56: 6222000910514 | C56: منتج 53 | D56: كرتونة | E56: 737 | T56: 0
A57: 54 | B57: 6222000909976 | C57: منتج 54 | D57: كرتونة | E57: 0 | T57: 0
A58: 55 | B58: 6222000909983 | C58: منتج 55 | D58: كرتونة | E58: 1 | T58: 0
A59: 56 | B59: 6222000909969 | C59: منتج 56 | D59: كرتونة | E59: 137 | T59: 0
A60: 57 | B60: 622200097116 | C60: منتج 57 | D60: كرتونة | E60: 24 | T60: 0
A61: 58 | B61: 6222000912372 | C61: منتج 58 | D61: كرتونة | E61: 0 | T61: 0
A62: 59 | B62: 6222000912488 | C62: منتج 59 | D62: كرتونة | E62: 175 | T62: 0
A63: 60 | B63: 6222000914383 | C63: منتج 60 | D63: كرتونة | E63: 0 | T63: 0
A64: 61 | B64: 6222000914369 | C64: منتج 61 | D64: كرتونة | E64: 0 | T64: 0
A65: 62 | B65: 6222000914376 | C65: منتج 62 | D65: كرتونة | E65: 0 | T65: 0
A66: 63 | B66: 6222000912365 | C66: منتج 63 | D66: كرتونة | E66: 143 | T66: 0
A67: 64 | B67: 6222000902083 | C67: منتج 64 | D67: كرتونة | E67: 0 | T67: 0
A68: 65 | B68: 6222000913904 | C68: منتج 65 | D68: كرتونة | E68: 0 | T68: 0
A69: 66 | B69: EG-670026743-2453 | C69: منتج 66 | D69: كرتونة | E69: 0 | T69: =SUM(F69:S69) -> 0
A70: 67 | B70: 6222000915243 | C70: منتج 67 | D70: كرتونة | E70: 0 | T70: 0
A71: 68 | B71: 6888000909953 | C71: منتج 68 | D71: كرتونة | E71: 188 | T71: 0
A72: الاجمالى | E72: =SUM(E4:E71) -> 4329 | F72: =SUM(F4:F71) -> 0 | G72: 0 | H72: 0 | I72: 0 | J72: 0 | K72: 0 | L72: 0 | M72: 0 | N72: 0 | O72: 0 | P72: 0 | Q72: 0 | R72: 0 | S72: 0 | T72: 0

Sheet المنيا
A1: رصيد توكيل ( المنيا ) عن يوم ( 8-2-2025 )
A2: م | B2: الكود | C2: الصنف | D2: الوحدة | E2: الرصيد الدفترى بالكرتونة | F2: تاريخ الانتاج | T2: الرصيد الفعلى بالكرتونة
F3: 2024-01-01 | G3: 2024-02-01 | H3: 2024-03-01 | I3: 2024-04-01 | J3: 2024-05-01 | K3: 2024-06-01 | L3: 2024-07-01 | M3: 2024-08-01 | N3: 2024-09-01 | O3: 2024-10-01 | P3: 2024-11-01 | Q3: 2024-12-01 | R3: 2025-01-01 | S3: 2025-02-01
A4: 1 | B4: 6222000901529 | C4: منتج 1 | D4: كرتونة | E4: 138 | T4: =SUM(F4:S4) -> 0
A5: 2 | B5: 6222000901536 | C5: منتج 2 | D5: كرتونة | E5: 50 | T5: =SUM(F5:S5) -> 0
A6: 3 | B6: 6222000911733 | C6: منتج 3 | D6: كرتونة | E6: 234 | T6: 0
A7: 4 | B7: 6222000911764 | C7: منتج 4 | D7: كرتونة | E7: 251 | T7: 0
A8: 5 | B8: 00743 | C8: منتج 5 | D8: كرتونة | E8: 38 | T8: 0
A9: 6 | B9: 6222000901758 | C9: منتج 6 | D9: كرتونة | E9: 61 | T9: 0
A10: 7 | B10: 6222000912020 | C10: منتج 7 | D10: كرتونة | E10: 5 | T10: 0
A11: 8 | B11: 6222000909815 | C11: منتج 8 | D11: كرتونة | E11: 54 | T11: 0
A12: 9 | B12: 6222000908610 | C12: منتج 9 | D12: كرتونة | E12: 10 | T12: 0
A13: 10 | B13: 6222000909891 | C13: منتج 10 | D13: كرتونة | E13: 73 | T13: 0
A14: 11 | B14: 6222000911757 | C14: منتج 11 | D14: كرتونة | E14: 0 | T14: 0
A15: 12 | B15: 00744 | C15: منتج 12 | D15: كرتونة | E15: 102 | T15: 0
A16: 13 | B16: 6222000901642 | C16: منتج 13 | D16: كرتونة | E16: 0 | T16: 0
A17: 14 | B17: 6222000912037 | C17: منتج 14 | D17: كرتونة | E17: 0 | T17: 0
A18: 15 | B18: 6222000909808 | C18: منتج 15 | D18: كرتونة | E18: 0 | T18: 0
A19: 16 | B19: 6222000905268 | C19: منتج 16 | D19: كرتونة | E19: 0 | T19: 0
A20: 17 | B20: 6222000907583 | C20: منتج 17 | D20: كرتونة | E20: 11 | T20: 0
A21: 18 | B21: 6222000909884 | C21: منتج 18 | D21: كرتونة | E21: 58 | T21: 0
A22: 19 | B22: 002770 | C22: منتج 19 | D22: كرتونة | E22: 0 | T22: 0
A23: 20 | B23: 6222000912525 | C23: منتج 20 | D23: كرتونة | E23: 45 | T23: 0
A24: 21 | B24: 6222000912518 | C24: منتج 21 | D24: كرتونة | E24: 283 | T24: 0
A25: 22 | B25: 6222000908566 | C25: منتج 22 | D25: كرتونة | E25: 10 | T25: 0
A26: 23 | B26: 6222000908573 | C26: منتج 23 | D26: كرتونة | E26: 5 | T26: 0
A27: 24 | B27: 6222000912501 | C27: منتج 24 | D27: كرتونة | E27: 0 | T27: 0
A28: 25 | B28: 6222000912457 | C28: منتج 25 | D28: كرتونة | E28: 0 | T28: 0
A29: 26 | B29: 6222000901611 | C29: منتج 26 | D29: كرتونة | E29: 83 | T29: 0
A30: 27 | B30: 6222000909907 | C30: منتج 27 | D30: كرتونة | E30: 0 | T30: 0
A31: 28 | B31: 6222000911498 | C31: منتج 28 | D31: كرتونة | E31: 45 | T31: 0
A32: 29 | B32: 002771 | C32: منتج 29 | D32: كرتونة | E32: 0 | T32: 0
A33: 30 | B33: 6222000912778 | C33: منتج 30 | D33: كرتونة | E33: 33 | T33: 0
A34: 31 | B34: 6222000912822 | C34: منتج 31 | D34: كرتونة | E34: 0 | T34: 0
A35: 32 | B35: 6222000912532 | C35: منتج 32 | D35: كرتونة | E35: 31 | T35: 0
A36: 33 | B36: 6222000901697 | C36: منتج 33 | D36: كرتونة | E36: 806 | T36: 0
A37: 34 | B37: 6222000911481 | C37: منتج 34 | D37: كرتونة | E37: 0 | T37: 0
A38: 35 | B38: 6222000908276 | C38: منتج 35 | D38: كرتونة | E38: 205 | T38: 0
A39: 36 | B39: 6222000909921 | C39: منتج 36 | D39: كرتونة | E39: 0 | T39: 0
A40: 37 | B40: 6222000909839 | C40: منتج 37 | D40: كرتونة | E40: 56 | T40: 0
A41: 38 | B41: 6222000908825 | C41: منتج 38 | D41: كرتونة | E41: 0 | T41: 0
A42: 39 | B42: 6222000907637 | C42: منتج 39 | D42: كرتونة | E42: 0 | T42: 0
A43: 40 | B43: 6222000903295 | C43: منتج 40 | D43: كرتونة | E43: 5 | T43: 0
A44: 41 | B44: 6222000912006 | C44: منتج 41 | D44: كرتونة | E44: 204 | T44: 0
A45: 42 | B45: 6222000911993 | C45: منتج 42 | D45: كرتونة | E45: 183 | T45: 0
A46: 43 | B46: 6222000912013 | C46: منتج 43 | D46: كرتونة | E46: 209 | T46: 0
A47: 44 | B47: 6222000964197 | C47: منتج 44 | D47: كرتونة | E47: 0 | T47: 0
A48: 45 | B48: 6222000906630 | C48: منتج 45 | D48: كرتونة | E48: 75 | T48: 0
A49: 46 | B49: 6222000902519 | C49: منتج 46 | D49: كرتونة | E49: 67 | T49: 0
A50: 47 | B50: 6222000902557 | C50: منتج 47 | D50: كرتونة | E50: 81 | T50: 0
A51: 48 | B51: 6222000902564 | C51: منتج 48 | D51: كرتونة | E51: 111 | T51: 0
A52: 49 | B52: 6222000910033 | C52: منتج 49 | D52: كرتونة | E52: 0 | T52: 0
A53: 50 | B53: 6222000910026 | C53: منتج 50 | D53: كرتونة | E53: 0 | T53: 0
A54: 51 | B54: 6222000909945 | C54: منتج 51 | D54: كرتونة | E54: 0 | T54: 0
A55: 52 | B55: 6222000910200 | C55: منتج 52 | D55: كرتونة | E55: 753 | T55: 0
A56: 53 | B56: 6222000910514 | C56: منتج 53 | D56: كرتونة | E56: 661 | T56: 0
A57: 54 | B57: 6222000909976 | C57: منتج 54 | D57: كرتونة | E57: 0 | T57: 0
A58: 55 | B58: 6222000909983 | C58: منتج 55 | D58: كرتونة | E58: 234 | T58: 0
A59: 56 | B59: 6222000909969 | C59: منتج 56 | D59: كرتونة | E59: 0 | T59: 0
A60: 57 | B60: 622200097116 | C60: منتج 57 | D60: كرتونة | E60: 2556 | T60: 0
A61: 58 | B61: 6222000912372 | C61: منتج 58 | D61: كرتونة | E61: 178 | T61: 0
A62: 59 | B62: 6222000912488 | C62: منتج 59 | D62: كرتونة | E62: 316 | T62: 0
A63: 60 | B63: 6222000914383 | C63: منتج 60 | D63: كرتونة | E63: 0 | T63: 0
A64: 61 | B64: 6222000914369 | C64: منتج 61 | D64: كرتونة | E64: 0 | T64: 0
A65: 62 | B65: 6222000914376 | C65: منتج 62 | D65: كرتونة | E65: 0 | T65: 0
A66: 63 | B66: 6222000912365 | C66: منتج 63 | D66: كرتونة | E66: 72 | T66: 0
A67: 64 | B67: 6222000902083 | C67: منتج 64 | D67: كرتونة | E67: 0 | T67: 0
A68: 65 | B68: 6222000913904 | C68: منتج 65 | D68: كرتونة | E68: 0 | T68: 0
A69: 66 | B69: EG-670026743-2453 | C69: منتج 66 | D69: كرتونة | E69: 0 | T69: =SUM(F69:S69) -> 0
A70: 67 | B70: 6222000915243 | C70: منتج 67 | D70: كرتونه | E70: 20 | T70: 0
A71: 68 | B71: 6888000909953 | C71: منتج 68 | D71: كرتونه | E71: 36 | T71: 0
A72: الاجمالى | E72: =SUM(E4:E71) -> 8448 | F72: 0 | G72: 0 | H72: 0 | I72: 0 | J72: 0 | K72: 0 | L72: 0 | M72: 0 | N72: 0 | O72: 0 | P72: 0 | Q72: 0 | R72: 0 | S72: 0 | T72: 0

Sheet اسيوط
A1: توكيل اسيوط ( 8/2/2025 )
A2: م | B2: الكود | C2: الصنف | D2: الوحدة | E2: الرصيد الدفترى بالكرتونة | F2: تاريخ الانتاج | T2: الرصيد الفعلى بالكرتونة
F3: 2024-01-01 | G3: 2024-02-01 | H3: 2024-03-01 | I3: 2024-04-01 | J3: 2024-05-01 | K3: 2024-06-01 | L3: 2024-07-01 | M3: 2024-08-01 | N3: 2024-09-01 | O3: 2024-10-01 | P3: 2024-11-01 | Q3: 2024-12-01 | R3: 2025-01-01 | S3: 2025-02-01
A4: 1 | B4: 6222000901529 | C4: منتج 1 | D4: كرتونة | E4: 285 | T4: =SUM(F4:S4) -> 0
A5: 2 | B5: 6222000901536 | C5: منتج 2 | D5: كرتونة | E5: 332 | T5: =SUM(F5:S5) -> 0
A6: 3 | B6: 6222000911733 | C6: منتج 3 | D6: كرتونة | E6: 74 | T6: 0
A7: 4 | B7: 6222000911764 | C7: منتج 4 | D7: كرتونة | E7: 9 | T7: 0
A8: 5 | B8: 00743 | C8: منتج 5 | D8: كرتونة | E8: 21 | T8: 0
A9: 6 | B9: 6222000901758 | C9: منتج 6 | D9: كرتونة | E9: 191 | T9: 0
A10: 7 | B10: 6222000912020 | C10: منتج 7 | D10: كرتونة | E10: 15 | T10: 0
A11: 8 | B11: 6222000909815 | C11: منتج 8 | D11: كرتونة | E11: 21 | T11: 0
A12: 9 | B12: 6222000908610 | C12: منتج 9 | D12: كرتونة | E12: 106 | T12: 0
A13: 10 | B13: 6222000909891 | C13: منتج 10 | D13: كرتونة | E13: 0 | T13: 0
A14: 11 | B14: 6222000911757 | C14: منتج 11 | D14: كرتونة | E14: 0 | T14: 0
A15: 12 | B15: 00744 | C15: منتج 12 | D15: كرتونة | E15: 94 | T15: 0
A16: 13 | B16: 6222000901642 | C16: منتج 13 | D16: كرتونة | E16: 71 | T16: 0
A17: 14 | B17: 6222000912037 | C17: منتج 14 | D17: كرتونة | E17: 0 | T17: 0
A18: 15 | B18: 6222000909808 | C18: منتج 15 | D18: كرتونة | E18: 55 | T18: 0
A19: 16 | B19: 6222000905268 | C19: منتج 16 | D19: كرتونة | E19: 0 | T19: 0
A20: 17 | B20: 6222000907583 | C20: منتج 17 | D20: كرتونة | E20: 0 | T20: 0
A21: 18 | B21: 6222000909884 | C21: منتج 18 | D21: كرتونة | E21: 0 | T21: 0
A22: 19 | B22: 002770 | C22: منتج 19 | D22: كرتونة | E22: 0 | T22: 0
A23: 20 | B23: 6222000912525 | C23: منتج 20 | D23: كرتونة | E23: 25 | T23: 0
A24: 21 | B24: 6222000912518 | C24: منتج 21 | D24: كرتونة | E24: 153 | T24: 0
A25: 22 | B25: 6222000908566 | C25: منتج 22 | D25: كرتونة | E25: 22 | T25: 0
A26: 23 | B26: 6222000908573 | C26: منتج 23 | D26: كرتونة | E26: 13 | T26: 0
A27: 24 | B27: 6222000912501 | C27: منتج 24 | D27: كرتونة | E27: 0 | T27: 0
A28: 25 | B28: 6222000912457 | C28: منتج 25 | D28: كرتونة | E28: 0 | T28: 0
A29: 26 | B29: 6222000901611 | C29: منتج 26 | D29: كرتونة | E29: 334 | T29: 0
A30: 27 | B30: 6222000909907 | C30: منتج 27 | D30: كرتونة | E30: 0 | T30: 0
A31: 28 | B31: 6222000911498 | C31: منتج 28 | D31: كرتونة | E31: 21 | T31: 0
A32: 29 | B32: 002771 | C32: منتج 29 | D32: كرتونة | E32: 0 | T32: 0
A33: 30 | B33: 6222000912778 | C33: منتج 30 | D33: كرتونة | E33: 47 | T33: 0
A34: 31 | B34: 6222000912822 | C34: منتج 31 | D34: كرتونة | E34: 0 | T34: 0
A35: 32 | B35: 6222000912532 | C35: منتج 32 | D35: كرتونة | E35: 0 | T35: 0
A36: 33 | B36: 6222000901697 | C36: منتج 33 | D36: كرتونة | E36: 1351 | T36: 0
A37: 34 | B37: 6222000911481 | C37: منتج 34 | D37: كرتونة | E37: 0 | T37: 0
A38: 35 | B38: 6222000908276 | C38: منتج 35 | D38: كرتونة | E38: 61 | T38: 0
A39: 36 | B39: 6222000909921 | C39: منتج 36 | D39: كرتونة | E39: 0 | T39: 0
A40: 37 | B40: 6222000909839 | C40: منتج 37 | D40: كرتونة | E40: 77 | T40: 0
A41: 38 | B41: 6222000908825 | C41: منتج 38 | D41: كرتونة | E41: 73 | T41: 0
A42: 39 | B42: 6222000907637 | C42: منتج 39 | D42: كرتونة | E42: 0 | T42: 0
A43: 40 | B43: 6222000903295 | C43: منتج 40 | D43: كرتونة | E43: 62 | T43: 0
A44: 41 | B44: 6222000912006 | C44: منتج 41 | D44: كرتونة | E44: 62 | T44: 0
A45: 42 | B45: 6222000911993 | C45: منتج 42 | D45: كرتونة | E45: 66 | T45: 0
A46: 43 | B46: 6222000912013 | C46: منتج 43 | D46: كرتونة | E46: 69 | T46: 0
A47: 44 | B47: 6222000964197 | C47: منتج 44 | D47: كرتونة | E47: 0 | T47: 0
A48: 45 | B48: 6222000906630 | C48: منتج 45 | D48: كرتونة | E48: 79 | T48: 0
A49: 46 | B49: 6222000902519 | C49: منتج 46 | D49: كرتونة | E49: 35 | T49: 0
A50: 47 | B50: 6222000902557 | C50: منتج 47 | D50: كرتونة | E50: 227 | T50: 0
A51: 48 | B51: 6222000902564 | C51: منتج 48 | D51: كرتونة | E51: 108 | T51: 0
A52: 49 | B52: 6222000910033 | C52: منتج 49 | D52: كرتونة | E52: 0 | T52: 0
A53: 50 | B53: 6222000910026 | C53: منتج 50 | D53: كرتونة | E53: 0 | T53: 0
A54: 51 | B54: 6222000909945 | C54: منتج 51 | D54: كرتونة | E54: 0 | T54: 0
A55: 52 | B55: 6222000910200 | C55: منتج 52 | D55: كرتونة | E55: 1037 | T55: 0
A56: 53 | B56: 6222000910514 | C56: منتج 53 | D56: كرتونة | E56: 592 | T56: 0
A57: 54 | B57: 6222000909976 | C57: منتج 54 | D57: كرتونة | E57: 430 | T57: 0
A58: 55 | B58: 6222000909983 | C58: منتج 55 | D58: كرتونة | E58: 526 | T58: 0
A59: 56 | B59: 6222000909969 | C59: منتج 56 | D59: كرتونة | E59: 113 | T59: 0
A60: 57 | B60: 622200097116 | C60: منتج 57 | D60: كرتونة | E60: 856 | T60: 0
A61: 58 | B61: 6222000912372 | C61: منتج 58 | D61: كرتونة | E61: 300 | T61: 0
A62: 59 | B62: 6222000912488 | C62: منتج 59 | D62: كرتونة | E62: 634 | T62: 0
A63: 60 | B63: 6222000914383 | C63: منتج 60 | D63: كرتونة | E63: 338 | T63: 0
A64: 61 | B64: 6222000914369 | C64: منتج 61 | D64: كرتونة | E64: 0 | T64: 0
A65: 62 | B65: 6222000914376 | C65: منتج 62 | D65: كرتونة | E65: 0 | T65: 0
A66: 63 | B66: 6222000912365 | C66: منتج 63 | D66: كرتونة | E66: 91 | T66: 0
A67: 64 | B67: 6222000902083 | C67: منتج 64 | D67: كرتونة | E67: 0 | T67: 0
A68: 65 | B68: 6222000913904 | C68: منتج 65 | D68: كرتونة | E68: 0 | T68: 0
A69: 66 | B69: EG-670026743-2453 | C69: منتج 66 | D69: كرتونة | E69: 17 | T69: =SUM(F69:S69) -> 0
A70: 67 | B70: 6222000915243 | C70: منتج 67 | D70: كرتونة | E70: 28 | T70: 0
A71: 68 | B71: 6888000909953 | C71: منتج 68 | D71: كرتونة | E71: 0 | T71: 0
A72: الاجمالى | E72: =SUM(E4:E71) -> 9121 | F72: =SUM(F4:F71) -> 0 | G72: 0 | H72: 0 | I72: 0 | J72: 0 | K72: 0 | L72: 0 | M72: 0 | N72: 0 | O72: 0 | P72: 0 | Q72: 0 | R72: 0 | S72: 0 | T72: 0

Sheet سوهاج
A1: رصيد توكيل ( الافرايم سوهاج ) عن يوم ( 8-2-2025 )
A2: م | B2: الكود | C2: الصنف | D2: الوحدة | E2: الرصيد الدفترى بالكرتونة | F2: تاريخ الانتاج | T2: الرصيد الفعلى بالكرتونة
F3: 2024-01-01 | G3: 2024-02-01 | H3: 2024-03-01 | I3: 2024-04-01 | J3: 2024-05-01 | K3: 2024-06-01 | L3: 2024-07-01 | M3: 2024-08-01 | N3: 2024-09-01 | O3: 2024-10-01 | P3: 2024-11-01 | Q3: 2024-12-01 | R3: 2025-01-01 | S3: 2025-02-01
A4: 1 | B4: 6222000901529 | C4: منتج 1 | D4: كرتونة | E4: 324 | T4: =SUM(F4:S4) -> 0
A5: 2 | B5: 6222000901536 | C5: منتج 2 | D5: كرتونة | E5: 44 | T5: =SUM(F5:S5) -> 0
A6: 3 | B6: 6222000911733 | C6: منتج 3 | D6: كرتونة | E6: 99 | T6: 0
A7: 4 | B7: 6222000911764 | C7: منتج 4 | D7: كرتونة | E7: 198 | T7: 0
A8: 5 | B8: 00743 | C8: منتج 5 | D8: كرتونة | E8: 33 | T8: 0
A9: 6 | B9: 6222000901758 | C9: منتج 6 | D9: كرتونة | E9: 32 | T9: 0
A10: 7 | B10: 6222000912020 | C10: منتج 7 | D10: كرتونة | E10: 2 | T10: 0
A11: 8 | B11: 6222000909815 | C11: منتج 8 | D11: كرتونة | E11: 3 | T11: 0
A12: 9 | B12: 6222000908610 | C12: منتج 9 | D12: كرتونة | E12: 54 | T12: 0
A13: 10 | B13: 6222000909891 | C13: منتج 10 | D13: كرتونة | E13: 150 | T13: 0
A14: 11 | B14: 6222000911757 | C14: منتج 11 | D14: كرتونة | E14: 0 | T14: 0
A15: 12 | B15: 00744 | C15: منتج 12 | D15: كرتونة | E15: 71 | T15: 0
A16: 13 | B16: 6222000901642 | C16: منتج 13 | D16: كرتونة | E16: 31 | T16: 0
A17: 14 | B17: 6222000912037 | C17: منتج 14 | D17: كرتونة | E17: 10 | T17: 0
A18: 15 | B18: 6222000909808 | C18: منتج 15 | D18: كرتونة | E18: 44 | T18: 0
A19: 16 | B19: 6222000905268 | C19: منتج 16 | D19: كرتونة | E19: 0 | T19: 0
A20: 17 | B20: 6222000907583 | C20: منتج 17 | D20: كرتونة | E20: 21 | T20: 0
A21: 18 | B21: 6222000909884 | C21: منتج 18 | D21: كرتونة | E21: 49 | T21: 0
A22: 19 | B22: 002770 | C22: منتج 19 | D22: كرتونة | E22: 0 | T22: 0
A23: 20 | B23: 6222000912525 | C23: منتج 20 | D23: كرتونة | E23: 11 | T23: 0
A24: 21 | B24: 6222000912518 | C24: منتج 21 | D24: كرتونة | E24: 5 | T24: 0
A25: 22 | B25: 6222000908566 | C25: منتج 22 | D25: كرتونة | E25: 4 | T25: 0
A26: 23 | B26: 6222000908573 | C26: منتج 23 | D26: كرتونة | E26: 0 | T26: 0
A27: 24 | B27: 6222000912501 | C27: منتج 24 | D27: كرتونة | E27: 0 | T27: 0
A28: 25 | B28: 6222000912457 | C28: منتج 25 | D28: كرتونة | E28: 0 | T28: 0
A29: 26 | B29: 6222000901611 | C29: منتج 26 | D29: كرتونة | E29: 102 | T29: 0
A30: 27 | B30: 6222000909907 | C30: منتج 27 | D30: كرتونة | E30: 123 | T30: 0
A31: 28 | B31: 6222000911498 | C31: منتج 28 | D31: كرتونة | E31: 34 | T31: 0
A32: 29 | B32: 002771 | C32: منتج 29 | D32: كرتونة | E32: 0 | T32: 0
A33: 30 | B33: 6222000912778 | C33: منتج 30 | D33: كرتونة | E33: 67 | T33: 0
A34: 31 | B34: 6222000912822 | C34: منتج 31 | D34: كرتونة | E34: 32 | T34: 0
A35: 32 | B35: 6222000912532 | C35: منتج 32 | D35: كرتونة | E35: 17 | T35: 0
A36: 33 | B36: 6222000901697 | C36: منتج 33 | D36: كرتونة | E36: 498 | T36: 0
A37: 34 | B37: 6222000911481 | C37: منتج 34 | D37: كرتونة | E37: 0 | T37: 0
A38: 35 | B38: 6222000908276 | C38: منتج 35 | D38: كرتونة | E38: 184 | T38: 0
A39: 36 | B39: 6222000909921 | C39: منتج 36 | D39: كرتونة | E39: 0 | T39: 0
A40: 37 | B40: 6222000909839 | C40: منتج 37 | D40: كرتونة | T40: 0
A41: 38 | B41: 6222000908825 | C41: منتج 38 | D41: كرتونة | E41: 7 | T41: 0
A42: 39 | B42: 6222000907637 | C42: منتج 39 | D42: كرتونة | E42: 13 | T42: 0
A43: 40 | B43: 6222000903295 | C43: منتج 40 | D43: كرتونة | E43: 47 | T43: 0
A44: 41 | B44: 6222000912006 | C44: منتج 41 | D44: كرتونة | E44: 9 | T44: 0
A45: 42 | B45: 6222000911993 | C45: منتج 42 | D45: كرتونة | E45: 10 | T45: 0
A46: 43 | B46: 6222000912013 | C46: منتج 43 | D46: كرتونة | E46: 0 | T46: 0
A47: 44 | B47: 6222000964197 | C47: منتج 44 | D47: كرتونة | E47: 0 | T47: 0
A48: 45 | B48: 6222000906630 | C48: منتج 45 | D48: كرتونة | E48: 10 | T48: 0
A49: 46 | B49: 6222000902519 | C49: منتج 46 | D49: كرتونة | E49: 22 | T49: 0
A50: 47 | B50: 6222000902557 | C50: منتج 47 | D50: كرتونة | E50: 62 | T50: 0
A51: 48 | B51: 6222000902564 | C51: منتج 48 | D51: كرتونة | E51: 104 | T51: 0
A52: 49 | B52: 6222000910033 | C52: منتج 49 | D52: كرتونة | E52: 0 | T52: 0
A53: 50 | B53: 6222000910026 | C53: منتج 50 | D53: كرتونة | E53: 0 | T53: 0
A54: 51 | B54: 6222000909945 | C54: منتج 51 | D54: كرتونة | E54: 0 | T54: 0
A55: 52 | B55: 6222000910200 | C55: منتج 52 | D55: كرتونة | E55: 1530 | T55: 0
A56: 53 | B56: 6222000910514 | C56: منتج 53 | D56: كرتونة | E56: 909 | T56: 0
A57: 54 | B57: 6222000909976 | C57: منتج 54 | D57: كرتونة | E57: 64 | T57: 0
A58: 55 | B58: 6222000909983 | C58: منتج 55 | D58: كرتونة | E58: 459 | T58: 0
A59: 56 | B59: 6222000909969 | C59: منتج 56 | D59: كرتونة | E59: 78 | T59: 0
A60: 57 | B60: 622200097116 | C60: منتج 57 | D60: كرتونة | E60: 5 | T60: 0
A61: 58 | B61: 6222000912372 | C61: منتج 58 | D61: كرتونة | E61: 195 | T61: 0
A62: 59 | B62: 6222000912488 | C62: منتج 59 | D62: كرتونة | E62: 351 | T62: 0
A63: 60 | B63: 6222000914383 | C63: منتج 60 | D63: كرتونة | E63: 104 | T63: 0
A64: 61 | B64: 6222000914369 | C64: منتج 61 | D64: كرتونة | E64: 0 | T64: 0
A65: 62 | B65: 6222000914376 | C65: منتج 62 | D65: كرتونة | E65: 0 | T65: 0
A66: 63 | B66: 6222000912365 | C66: منتج 63 | D66: كرتونة | E66: 964 | T66: 0
A67: 64 | B67: 6222000902083 | C67: منتج 64 | D67: كرتونة | E67: 0 | T67: 0
A68: 65 | B68: 6222000913904 | C68: منتج 65 | D68: كرتونة | E68: 0 | T68: 0
A69: 66 | B69: EG-670026743-2453 | C69: منتج 66 | D69: كرتونة | E69: 0 | T69: =SUM(F69:S69) -> 0
A70: 67 | B70: 6222000915243 | C70: منتج 67 | D70: كرتونة | E70: 16 | T70: 0
A71: 68 | B71: 6888000909953 | C71: منتج 68 | D71: كرتونة | E71: 353 | T71: 0
A72: الاجمالى | E72: =SUM(E4:E71) -> 7554 | F72: =SUM(F4:F71) -> 0 | G72: 0 | H72: 0 | I72: 0 | J72: 0 | K72: 0 | L72: 0 | M72: 0 | N72: 0 | O72: 0 | P72: 0 | Q72: 0 | R72: 0 | S72: 0 | T72: 0

Sheet جرجا
A1: رصيد توكيل ( جرجا ) عن يوم ( 8-2-2025 )
A2: م | B2: الكود | C2: الصنف | D2: الوحدة | E2: الرصيد الدفترى بالكرتونة | F2: تاريخ الانتاج | T2: الرصيد الفعلى بالكرتونة
F3: 2024-01-01 | G3: 2024-02-01 | H3: 2024-03-01 | I3: 2024-04-01 | J3: 2024-05-01 | K3: 2024-06-01 | L3: 2024-07-01 | M3: 2024-08-01 | N3: 2024-09-01 | O3: 2024-10-01 | P3: 2024-11-01 | Q3: 2024-12-01 | R3: 2025-01-01 | S3: 2025-02-01
A4: 1 | B4: 6222000901529 | C4: منتج 1 | D4: كرتونة | E4: 2 | T4: =SUM(F4:S4) -> 0
A5: 2 | B5: 6222000901536 | C5: منتج 2 | D5: كرتونة | E5: 89 | T5: =SUM(F5:S5) -> 0
A6: 3 | B6: 6222000911733 | C6: منتج 3 | D6: كرتونة | E6: 25 | T6: 0
A7: 4 | B7: 6222000911764 | C7: منتج 4 | D7: كرتونة | E7: 25 | T7: 0
A8: 5 | B8: 00743 | C8: منتج 5 | D8: كرتونة | E8: 66 | T8: 0
A9: 6 | B9: 6222000901758 | C9: منتج 6 | D9: كرتونة | E9: 0 | T9: 0
A10: 7 | B10: 6222000912020 | C10: منتج 7 | D10: كرتونة | E10: 20 | T10: 0
A11: 8 | B11: 6222000909815 | C11: منتج 8 | D11: كرتونة | E11: 8 | T11: 0
A12: 9 | B12: 6222000908610 | C12: منتج 9 | D12: كرتونة | E12: 18 | T12: 0
A13: 10 | B13: 6222000909891 | C13: منتج 10 | D13: كرتونة | E13: 81 | T13: 0
A14: 11 | B14: 6222000911757 | C14: منتج 11 | D14: كرتونة | E14: 0 | T14: 0
A15: 12 | B15: 00744 | C15: منتج 12 | D15: كرتونة | E15: 54 | T15: 0
A16: 13 | B16: 6222000901642 | C16: منتج 13 | D16: كرتونة | E16: 11 | T16: 0
A17: 14 | B17: 6222000912037 | C17: منتج 14 | D17: كرتونة | E17: 20 | T17: 0
A18: 15 | B18: 6222000909808 | C18: منتج 15 | D18: كرتونة | E18: 25 | T18: 0
A19: 16 | B19: 6222000905268 | C19: منتج 16 | D19: كرتونة | E19: 0 | T19: 0
A20: 17 | B20: 6222000907583 | C20: منتج 17 | D20: كرتونة | E20: 0 | T20: 0
A21: 18 | B21: 6222000909884 | C21: منتج 18 | D21: كرتونة | E21: 31 | T21: 0
A22: 19 | B22: 002770 | C22: منتج 19 | D22: كرتونة | E22: 0 | T22: 0
A23: 20 | B23: 6222000912525 | C23: منتج 20 | D23: كرتونة | E23: 50 | T23: 0
A24: 21 | B24: 6222000912518 | C24: منتج 21 | D24: كرتونة | E24: 50 | T24: 0
A25: 22 | B25: 6222000908566 | C25: منتج 22 | D25: كرتونة | E25: 0 | T25: 0
A26: 23 | B26: 6222000908573 | C26: منتج 23 | D26: كرتونة | E26: 0 | T26: 0
A27: 24 | B27: 6222000912501 | C27: منتج 24 | D27: كرتونة | E27: 0 | T27: 0
A28: 25 | B28: 6222000912457 | C28: منتج 25 | D28: كرتونة | E28: 0 | T28: 0
A29: 26 | B29: 6222000901611 | C29: منتج 26 | D29: كرتونة | E29: 209 | T29: 0
A30: 27 | B30: 6222000909907 | C30: منتج 27 | D30: كرتونة | E30: 11 | T30: 0
A31: 28 | B31: 6222000911498 | C31: منتج 28 | D31: كرتونة | E31: 24 | T31: 0
A32: 29 | B32: 002771 | C32: منتج 29 | D32: كرتونة | E32: 0 | T32: 0
A33: 30 | B33: 6222000912778 | C33: منتج 30 | D33: كرتونة | E33: 124 | T33: 0
A34: 31 | B34: 6222000912822 | C34: منتج 31 | D34: كرتونة | E34: 11 | T34: 0
A35: 32 | B35: 6222000912532 | C35: منتج 32 | D35: كرتونة | E35: 50 | T35: 0
A36: 33 | B36: 6222000901697 | C36: منتج 33 | D36: كرتونة | E36: 761 | T36: 0
A37: 34 | B37: 6222000911481 | C37: منتج 34 | D37: كرتونة | E37: 0 | T37: 0
A38: 35 | B38: 6222000908276 | C38: منتج 35 | D38: كرتونة | E38: 0 | T38: 0
A39: 36 | B39: 6222000909921 | C39: منتج 36 | D39: كرتونة | E39: 0 | T39: 0
A40: 37 | B40: 6222000909839 | C40: منتج 37 | D40: كرتونة | E40: 0 | T40: 0
A41: 38 | B41: 6222000908825 | C41: منتج 38 | D41: كرتونة | E41: 0 | T41: 0
A42: 39 | B42: 6222000907637 | C42: منتج 39 | D42: كرتونة | E42: 0 | T42: 0
A43: 40 | B43: 6222000903295 | C43: منتج 40 | D43: كرتونة | E43: 102 | T43: 0
A44: 41 | B44: 6222000912006 | C44: منتج 41 | D44: كرتونة | E44: 13 | T44: 0
A45: 42 | B45: 6222000911993 | C45: منتج 42 | D45: كرتونة | E45: 13 | T45: 0
A46: 43 | B46: 6222000912013 | C46: منتج 43 | D46: كرتونة | E46: 8 | T46: 0
A47: 44 | B47: 6222000964197 | C47: منتج 44 | D47: كرتونة | E47: 0 | T47: 0
A48: 45 | B48: 6222000906630 | C48: منتج 45 | D48: كرتونة | E48: 153 | T48: 0
A49: 46 | B49: 6222000902519 | C49: منتج 46 | D49: كرتونة | E49: 20 | T49: 0
A50: 47 | B50: 6222000902557 | C50: منتج 47 | D50: كرتونة | E50: 0 | T50: 0
A51: 48 | B51: 6222000902564 | C51: منتج 48 | D51: كرتونة | E51: 79 | T51: 0
A52: 49 | B52: 6222000910033 | C52: منتج 49 | D52: كرتونة | E52: 0 | T52: 0
A53: 50 | B53: 6222000910026 | C53: منتج 50 | D53: كرتونة | E53: 0 | T53: 0
A54: 51 | B54: 6222000909945 | C54: منتج 51 | D54: كرتونة | E54: 0 | T54: 0
A55: 52 | B55: 6222000910200 | C55: منتج 52 | D55: كرتونة | E55: 484 | T55: 0
A56: 53 | B56: 6222000910514 | C56: منتج 53 | D56: كرتونة | E56: 506 | T56: 0
A57: 54 | B57: 6222000909976 | C57: منتج 54 | D57: كرتونة | E57: 166 | T57: 0
A58: 55 | B58: 6222000909983 | C58: منتج 55 | D58: كرتونة | E58: 138 | T58: 0
A59: 56 | B59: 6222000909969 | C59: منتج 56 | D59: كرتونة | E59: 150 | T59: 0
A60: 57 | B60: 622200097116 | C60: منتج 57 | D60: كرتونة | E60: 548 | T60: 0
A61: 58 | B61: 6222000912372 | C61: منتج 58 | D61: كرتونة | E61: 78 | T61: 0
A62: 59 | B62: 6222000912488 | C62: منتج 59 | D62: كرتونة | E62: 11 | T62: 0
A63: 60 | B63: 6222000914383 | C63: منتج 60 | D63: كرتونة | E63: 0 | T63: 0
A64: 61 | B64: 6222000914369 | C64: منتج 61 | D64: كرتونة | E64: 0 | T64: 0
A65: 62 | B65: 6222000914376 | C65: منتج 62 | D65: كرتونة | E65: 0 | T65: 0
A66: 63 | B66: 6222000912365 | C66: منتج 63 | D66: كرتونة | E66: 4 | T66: 0
A67: 64 | B67: 6222000902083 | C67: منتج 64 | D67: كرتونة | E67: 0 | T67: 0
A68: 65 | B68: 6222000913904 | C68: منتج 65 | D68: كرتونة | E68: 0 | T68: 0
A69: 66 | B69: EG-670026743-2453 | C69: منتج 66 | D69: كرتونة | E69: 0 | T69: =SUM(F69:S69) -> 0
A70: 67 | B70: 6222000915243 | C70: منتج 67 | D70: كرتونة | E70: 25 | T70: 0
A71: 68 | B71: 6888000909953 | C71: منتج 68 | D71: كرتونة | E71: 0 | T71: 0
A72: الاجمالى | E72: =SUM(E4:E71) -> 4263 | F72: =SUM(F4:F71) -> 0 | G72: 0 | H72: 0 | I72: 0 | J72: 0 | K72: 0 | L72: 0 | M72: 0 | N72: 0 | O72: 0 | P72: 0 | Q72: 0 | R72: 0 | S72: 0 | T72: 0

Sheet قنا
A1: رصيد توكيل ( قنا ) عن يوم ( 8-2-2025 )
A2: م | B2: الكود | C2: الصنف | D2: الوحدة | E2: الرصيد الدفترى بالكرتونة | F2: تاريخ الانتاج | T2: الرصيد الفعلى بالكرتونة
F3: 2024-01-01 | G3: 2024-02-01 | H3: 2024-03-01 | I3: 2024-04-01 | J3: 2024-05-01 | K3: 2024-06-01 | L3: 2024-07-01 | M3: 2024-08-01 | N3: 2024-09-01 | O3: 2024-10-01 | P3: 2024-11-01 | Q3: 2024-12-01 | R3: 2025-01-01 | S3: 2025-02-01
A4: 1 | B4: 6222000901529 | C4: منتج 1 | D4: كرتونة | E4: 48 | T4: =SUM(F4:S4) -> 0
A5: 2 | B5: 6222000901536 | C5: منتج 2 | D5: كرتونة | E5: 32 | T5: =SUM(F5:S5) -> 0
A6: 3 | B6: 6222000911733 | C6: منتج 3 | D6: كرتونة | E6: 0 | T6: 0
A7: 4 | B7: 6222000911764 | C7: منتج 4 | D7: كرتونة | E7: 33 | T7: 0
A8: 5 | B8: 00743 | C8: منتج 5 | D8: كرتونة | E8: 0 | T8: 0
A9: 6 | B9: 6222000901758 | C9: منتج 6 | D9: كرتونة | E9: 17 | T9: 0
A10: 7 | B10: 6222000912020 | C10: منتج 7 | D10: كرتونة | E10: 0 | T10: 0
A11: 8 | B11: 6222000909815 | C11: منتج 8 | D11: كرتونة | E11: 45 | T11: 0
A12: 9 | B12: 6222000908610 | C12: منتج 9 | D12: كرتونة | E12: 0 | T12: 0
A13: 10 | B13: 6222000909891 | C13: منتج 10 | D13: كرتونة | E13: 0 | T13: 0
A14: 11 | B14: 6222000911757 | C14: منتج 11 | D14: كرتونة | E14: 0 | T14: 0
A15: 12 | B15: 00744 | C15: منتج 12 | D15: كرتونة | E15: 52 | T15: 0
A16: 13 | B16: 6222000901642 | C16: منتج 13 | D16: كرتونة | E16: 56 | T16: 0
A17: 14 | B17: 6222000912037 | C17: منتج 14 | D17: كرتونة | E17: 6 | T17: 0
A18: 15 | B18: 6222000909808 | C18: منتج 15 | D18: كرتونة | E18: 0 | T18: 0
A19: 16 | B19: 6222000905268 | C19: منتج 16 | D19: كرتونة | E19: 0 | T19: 0
A20: 17 | B20: 6222000907583 | C20: منتج 17 | D20: كرتونة | E20: 0 | T20: 0
A21: 18 | B21: 6222000909884 | C21: منتج 18 | D21: كرتونة | E21: 11 | T21: 0
A22: 19 | B22: 002770 | C22: منتج 19 | D22: كرتونة | E22: 0 | T22: 0
A23: 20 | B23: 6222000912525 | C23: منتج 20 | D23: كرتونة | E23: 0 | T23: 0
A24: 21 | B24: 6222000912518 | C24: منتج 21 | D24: كرتونة | E24: 49 | T24: 0
A25: 22 | B25: 6222000908566 | C25: منتج 22 | D25: كرتونة | E25: 14 | T25: 0
A26: 23 | B26: 6222000908573 | C26: منتج 23 | D26: كرتونة | E26: 93 | T26: 0
A27: 24 | B27: 6222000912501 | C27: منتج 24 | D27: كرتونة | E27: 0 | T27: 0
A28: 25 | B28: 6222000912457 | C28: منتج 25 | D28: كرتونة | E28: 0 | T28: 0
A29: 26 | B29: 6222000901611 | C29: منتج 26 | D29: كرتونة | E29: 29 | T29: 0
A30: 27 | B30: 6222000909907 | C30: منتج 27 | D30: كرتونة | E30: 0 | T30: 0
A31: 28 | B31: 6222000911498 | C31: منتج 28 | D31: كرتونة | E31: 78 | T31: 0
A32: 29 | B32: 002771 | C32: منتج 29 | D32: كرتونة | E32: 0 | T32: 0
A33: 30 | B33: 6222000912778 | C33: منتج 30 | D33: كرتونة | E33: 129 | T33: 0
A34: 31 | B34: 6222000912822 | C34: منتج 31 | D34: كرتونة | E34: 6 | T34: 0
A35: 32 | B35: 6222000912532 | C35: منتج 32 | D35: كرتونة | E35: 54 | T35: 0
A36: 33 | B36: 6222000901697 | C36: منتج 33 | D36: كرتونة | E36: 16 | T36: 0
A37: 34 | B37: 6222000911481 | C37: منتج 34 | D37: كرتونة | E37: 0 | T37: 0
A38: 35 | B38: 6222000908276 | C38: منتج 35 | D38: كرتونة | E38: 137 | T38: 0
A39: 36 | B39: 6222000909921 | C39: منتج 36 | D39: كرتونة | E39: 0 | T39: 0
A40: 37 | B40: 6222000909839 | C40: منتج 37 | D40: كرتونة | E40: 62 | T40: 0
A41: 38 | B41: 6222000908825 | C41: منتج 38 | D41: كرتونة | E41: 0 | T41: 0
A42: 39 | B42: 6222000907637 | C42: منتج 39 | D42: كرتونة | E42: 200 | T42: 0
A43: 40 | B43: 6222000903295 | C43: منتج 40 | D43: كرتونة | E43: 39 | T43: 0
A44: 41 | B44: 6222000912006 | C44: منتج 41 | D44: كرتونة | E44: 55 | T44: 0
A45: 42 | B45: 6222000911993 | C45: منتج 42 | D45: كرتونة | E45: 0 | T45: 0
A46: 43 | B46: 6222000912013 | C46: منتج 43 | D46: كرتونة | E46: 130 | T46: 0
A47: 44 | B47: 6222000964197 | C47: منتج 44 | D47: كرتونة | E47: 0 | T47: 0
A48: 45 | B48: 6222000906630 | C48: منتج 45 | D48: كرتونة | E48: 82 | T48: 0
A49: 46 | B49: 6222000902519 | C49: منتج 46 | D49: كرتونة | E49: 0 | T49: 0
A50: 47 | B50: 6222000902557 | C50: منتج 47 | D50: كرتونة | E50: 40 | T50: 0
A51: 48 | B51: 6222000902564 | C51: منتج 48 | D51: كرتونة | E51: 60 | T51: 0
A52: 49 | B52: 6222000910033 | C52: منتج 49 | D52: كرتونة | E52: 0 | T52: 0
A53: 50 | B53: 6222000910026 | C53: منتج 50 | D53: كرتونة | E53: 0 | T53: 0
A54: 51 | B54: 6222000909945 | C54: منتج 51 | D54: كرتونة | E54: 0 | T54: 0
A55: 52 | B55: 6222000910200 | C55: منتج 52 | D55: كرتونة | E55: 883 | T55: 0
A56: 53 | B56: 6222000910514 | C56: منتج 53 | D56: كرتونة | E56: 312 | T56: 0
A57: 54 | B57: 6222000909976 | C57: منتج 54 | D57: كرتونة | E57: 226 | T57: 0
A58: 55 | B58: 6222000909983 | C58: منتج 55 | D58: كرتونة | E58: 46 | T58: 0
A59: 56 | B59: 6222000909969 | C59: منتج 56 | D59: كرتونة | E59: 0 | T59: 0
A60: 57 | B60: 622200097116 | C60: منتج 57 | D60: كرتونة | E60: 184 | T60: 0
A61: 58 | B61: 6222000912372 | C61: منتج 58 | D61: كرتونة | E61: 3 | T61: 0
A62: 59 | B62: 6222000912488 | C62: منتج 59 | D62: كرتونة | E62: 18 | T62: 0
A63: 60 | B63: 6222000914383 | C63: منتج 60 | D63: كرتونة | E63: 0 | T63: 0
A64: 61 | B64: 6222000914369 | C64: منتج 61 | D64: كرتونة | E64: 0 | T64: 0
A65: 62 | B65: 6222000914376 | C65: منتج 62 | D65: كرتونة | E65: 70 | T65: 0
A66: 63 | B66: 6222000912365 | C66: منتج 63 | D66: كرتونة | E66: 0 | T66: 0
A67: 64 | B67: 6222000902083 | C67: منتج 64 | D67: كرتونة | E67: 0 | T67: 0
A68: 65 | B68: 6222000913904 | C68: منتج 65 | D68: كرتونة | E68: 0 | T68: 0
A69: 66 | B69: EG-670026743-2453 | C69: منتج 66 | D69: كرتونة | E69: 0 | T69: =SUM(F69:S69) -> 0
A70: 67 | B70: 6222000915243 | C70: منتج 67 | D70: كرتونة | E70: 0 | T70: 0
A71: 68 | B71: 6888000909953 | C71: منتج 68 | D71: كرتونة | E71: 74 | T71: 0
A72: الاجمالى | E72: =SUM(E4:E71) -> 3389 | F72: =SUM(F4:F71) -> 0 | G72: 0 | H72: 0 | I72: 0 | J72: 0 | K72: 0 | L72: 0 | M72: 0 | N72: 0 | O72: 0 | P72: 0 | Q72: 0 | R72: 0 | S72: 0 | T72: 0

Sheet نجع حمادى
A1: رصيد توكيل ( نجع حمادى ) عن يوم ( 81-2-2025 )
A2: م | B2: الكود | C2: الصنف | D2: الوحدة | E2: الرصيد الدفترى بالكرتونة | F2: تاريخ الانتاج | T2: الرصيد الفعلى بالكرتونة
F3: 2024-01-01 | G3: 2024-02-01 | H3: 2024-03-01 | I3: 2024-04-01 | J3: 2024-05-01 | K3: 2024-06-01 | L3: 2024-07-01 | M3: 2024-08-01 | N3: 2024-09-01 | O3: 2024-10-01 | P3: 2024-11-01 | Q3: 2024-12-01 | R3: 2025-01-01 | S3: 2025-02-01
A4: 1 | B4: 6222000901529 | C4: منتج 1 | D4: كرتونة | E4: 196 | T4: =SUM(F4:S4) -> 0
A5: 2 | B5: 6222000901536 | C5: منتج 2 | D5: كرتونة | E5: 62 | T5: =SUM(F5:S5) -> 0
A6: 3 | B6: 6222000911733 | C6: منتج 3 | D6: كرتونة | E6: 5 | T6: 0
A7: 4 | B7: 6222000911764 | C7: منتج 4 | D7: كرتونة | E7: 59 | T7: 0
A8: 5 | B8: 00743 | C8: منتج 5 | D8: كرتونة | E8: 34 | T8: 0
A9: 6 | B9: 6222000901758 | C9: منتج 6 | D9: كرتونة | E9: 8 | T9: 0
A10: 7 | B10: 6222000912020 | C10: منتج 7 | D10: كرتونة | E10: 5 | T10: 0
A11: 8 | B11: 6222000909815 | C11: منتج 8 | D11: كرتونة | E11: 0 | T11: 0
A12: 9 | B12: 6222000908610 | C12: منتج 9 | D12: كرتونة | E12: 20 | T12: 0
A13: 10 | B13: 6222000909891 | C13: منتج 10 | D13: كرتونة | E13: 0 | T13: 0
A14: 11 | B14: 6222000911757 | C14: منتج 11 | D14: كرتونة | E14: 0 | T14: 0
A15: 12 | B15: 00744 | C15: منتج 12 | D15: كرتونة | E15: 82 | T15: 0
A16: 13 | B16: 6222000901642 | C16: منتج 13 | D16: كرتونة | E16: 39 | T16: 0
A17: 14 | B17: 6222000912037 | C17: منتج 14 | D17: كرتونة | E17: 5 | T17: 0
A18: 15 | B18: 6222000909808 | C18: منتج 15 | D18: كرتونة | E18: 0 | T18: 0
A19: 16 | B19: 6222000905268 | C19: منتج 16 | D19: كرتونة | E19: 0 | T19: 0
A20: 17 | B20: 6222000907583 | C20: منتج 17 | D20: كرتونة | E20: 39 | T20: 0
A21: 18 | B21: 6222000909884 | C21: منتج 18 | D21: كرتونة | E21: 0 | T21: 0
A22: 19 | B22: 002770 | C22: منتج 19 | D22: كرتونة | E22: 0 | T22: 0
A23: 20 | B23: 6222000912525 | C23: منتج 20 | D23: كرتونة | E23: 0 | T23: 0
A24: 21 | B24: 6222000912518 | C24: منتج 21 | D24: كرتونة | E24: 0 | T24: 0
A25: 22 | B25: 6222000908566 | C25: منتج 22 | D25: كرتونة | E25: 75 | T25: 0
A26: 23 | B26: 6222000908573 | C26: منتج 23 | D26: كرتونة | E26: 47 | T26: 0
A27: 24 | B27: 6222000912501 | C27: منتج 24 | D27: كرتونة | E27: 0 | T27: 0
A28: 25 | B28: 6222000912457 | C28: منتج 25 | D28: كرتونة | E28: 0 | T28: 0
A29: 26 | B29: 6222000901611 | C29: منتج 26 | D29: كرتونة | E29: 221 | T29: 0
A30: 27 | B30: 6222000909907 | C30: منتج 27 | D30: كرتونة | E30: 0 | T30: 0
A31: 28 | B31: 6222000911498 | C31: منتج 28 | D31: كرتونة | E31: 0 | T31: 0
A32: 29 | B32: 002771 | C32: منتج 29 | D32: كرتونة | E32: 0 | T32: 0
A33: 30 | B33: 6222000912778 | C33: منتج 30 | D33: كرتونة | E33: 0 | T33: 0
A34: 31 | B34: 6222000912822 | C34: منتج 31 | D34: كرتونة | E34: 10 | T34: 0
A35: 32 | B35: 6222000912532 | C35: منتج 32 | D35: كرتونة | E35: 51 | T35: 0
A36: 33 | B36: 6222000901697 | C36: منتج 33 | D36: كرتونة | E36: 463 | T36: 0
A37: 34 | B37: 6222000911481 | C37: منتج 34 | D37: كرتونة | E37: 0 | T37: 0
A38: 35 | B38: 6222000908276 | C38: منتج 35 | D38: كرتونة | E38: 0 | T38: 0
A39: 36 | B39: 6222000909921 | C39: منتج 36 | D39: كرتونة | E39: 0 | T39: 0
A40: 37 | B40: 6222000909839 | C40: منتج 37 | D40: كرتونة | E40: 0 | T40: 0
A41: 38 | B41: 6222000908825 | C41: منتج 38 | D41: كرتونة | E41: 13 | T41: 0
A42: 39 | B42: 6222000907637 | C42: منتج 39 | D42: كرتونة | E42: 55 | T42: 0
A43: 40 | B43: 6222000903295 | C43: منتج 40 | D43: كرتونة | E43: 0 | T43: 0
A44: 41 | B44: 6222000912006 | C44: منتج 41 | D44: كرتونة | E44: 0 | T44: 0
A45: 42 | B45: 6222000911993 | C45: منتج 42 | D45: كرتونة | E45: 0 | T45: 0
A46: 43 | B46: 6222000912013 | C46: منتج 43 | D46: كرتونة | E46: 0 | T46: 0
A47: 44 | B47: 6222000964197 | C47: منتج 44 | D47: كرتونة | E47: 0 | T47: 0
A48: 45 | B48: 6222000906630 | C48: منتج 45 | D48: كرتونة | E48: 109 | T48: 0
A49: 46 | B49: 6222000902519 | C49: منتج 46 | D49: كرتونة | E49: 55 | T49: 0
A50: 47 | B50: 6222000902557 | C50: منتج 47 | D50: كرتونة | E50: 41 | T50: 0
A51: 48 | B51: 6222000902564 | C51: منتج 48 | D51: كرتونة | E51: 41 | T51: 0
A52: 49 | B52: 6222000910033 | C52: منتج 49 | D52: كرتونة | E52: 0 | T52: 0
A53: 50 | B53: 6222000910026 | C53: منتج 50 | D53: كرتونة | E53: 0 | T53: 0
A54: 51 | B54: 6222000909945 | C54: منتج 51 | D54: كرتونة | E54: 0 | T54: 0
A55: 52 | B55: 6222000910200 | C55: منتج 52 | D55: كرتونة | E55: 1021 | T55: 0
A56: 53 | B56: 6222000910514 | C56: منتج 53 | D56: كرتونة | E56: 308 | T56: 0
A57: 54 | B57: 6222000909976 | C57: منتج 54 | D57: كرتونة | E57: 80 | T57: 0
A58: 55 | B58: 6222000909983 | C58: منتج 55 | D58: كرتونة | E58: 83 | T58: 0
A59: 56 | B59: 6222000909969 | C59: منتج 56 | D59: كرتونة | E59: 0 | T59: 0
A60: 57 | B60: 622200097116 | C60: منتج 57 | D60: كرتونة | E60: 0 | T60: 0
A61: 58 | B61: 6222000912372 | C61: منتج 58 | D61: كرتونة | E61: 0 | T61: 0
A62: 59 | B62: 6222000912488 | C62: منتج 59 | D62: كرتونة | E62: 400 | T62: 0
A63: 60 | B63: 6222000914383 | C63: منتج 60 | D63: كرتونة | E63: 0 | T63: 0
A64: 61 | B64: 6222000914369 | C64: منتج 61 | D64: كرتونة | E64: 0 | T64: 0
A65: 62 | B65: 6222000914376 | C65: منتج 62 | D65: كرتونة | E65: 0 | T65: 0
A66: 63 | B66: 6222000912365 | C66: منتج 63 | D66: كرتونة | E66: 0 | T66: 0
A67: 64 | B67: 6222000902083 | C67: منتج 64 | D67: كرتونة | E67: 0 | T67: 0
A68: 65 | B68: 6222000913904 | C68: منتج 65 | D68: كرتونة | E68: 0 | T68: 0
A69: 66 | B69: EG-670026743-2453 | C69: منتج 66 | D69: كرتونة | E69: 0 | T69: =SUM(F69:S69) -> 0
A70: 67 | B70: 6222000915243 | C70: منتج 67 | D70: كرتونة | E70: 0 | T70: 0
A71: 68 | B71: 6888000909953 | C71: منتج 68 | D71: كرتونة | E71: 40 | T71: 0
A72: الاجمالى | E72: =SUM(E4:E71) -> 3667 | F72: =SUM(F4:F71) -> 0 | G72: 0 | H72: 0 | I72: 0 | J72: 0 | K72: 0 | L72: 0 | M72: 0 | N72: 0 | O72: 0 | P72: 0 | Q72: 0 | R72: 0 | S72: 0 | T72: 0

Sheet الغردقة
A1: رصيد توكيل ( الغردقة ) عن يوم ( 8-2-2025 )
A2: م | B2: الكود | C2: الصنف | D2: الوحدة | E2: الرصيد الدفترى بالكرتونة | F2: تاريخ الانتاج | T2: الرصيد الفعلى بالكرتونة
F3: 2024-01-01 | G3: 2024-02-01 | H3: 2024-03-01 | I3: 2024-04-01 | J3: 2024-05-01 | K3: 2024-06-01 | L3: 2024-07-01 | M3: 2024-08-01 | N3: 2024-09-01 | O3: 2024-10-01 | P3: 2024-11-01 | Q3: 2024-12-01 | R3: 2025-01-01 | S3: 2025-02-01
A4: 1 | B4: 6222000901529 | C4: منتج 1 | D4: كرتونة | E4: 25 | T4: =SUM(F4:S4) -> 0
A5: 2 | B5: 6222000901536 | C5: منتج 2 | D5: كرتونة | E5: 52 | T5: =SUM(F5:S5) -> 0
A6: 3 | B6: 6222000911733 | C6: منتج 3 | D6: كرتونة | E6: 50 | T6: 0
A7: 4 | B7: 6222000911764 | C7: منتج 4 | D7: كرتونة | E7: 0 | T7: 0
A8: 5 | B8: 00743 | C8: منتج 5 | D8: كرتونة | E8: 0 | T8: 0
A9: 6 | B9: 6222000901758 | C9: منتج 6 | D9: كرتونة | E9: 27 | T9: 0
A10: 7 | B10: 6222000912020 | C10: منتج 7 | D10: كرتونة | E10: 25 | T10: 0
A11: 8 | B11: 6222000909815 | C11: منتج 8 | D11: كرتونة | E11: 30 | T11: 0
A12: 9 | B12: 6222000908610 | C12: منتج 9 | D12: كرتونة | E12: 60 | T12: 0
A13: 10 | B13: 6222000909891 | C13: منتج 10 | D13: كرتونة | E13: 57 | T13: 0
A14: 11 | B14: 6222000911757 | C14: منتج 11 | D14: كرتونة | E14: 0 | T14: 0
A15: 12 | B15: 00744 | C15: منتج 12 | D15: كرتونة | E15: 36 | T15: 0
A16: 13 | B16: 6222000901642 | C16: منتج 13 | D16: كرتونة | E16: 27 | T16: 0
A17: 14 | B17: 6222000912037 | C17: منتج 14 | D17: كرتونة | E17: 5 | T17: 0
A18: 15 | B18: 6222000909808 | C18: منتج 15 | D18: كرتونة | E18: 0 | T18: 0
A19: 16 | B19: 6222000905268 | C19: منتج 16 | D19: كرتونة | E19: 0 | T19: 0
A20: 17 | B20: 6222000907583 | C20: منتج 17 | D20: كرتونة | E20: 0 | T20: 0
A21: 18 | B21: 6222000909884 | C21: منتج 18 | D21: كرتونة | E21: 48 | T21: 0
A22: 19 | B22: 002770 | C22: منتج 19 | D22: كرتونة | E22: 0 | T22: 0
A23: 20 | B23: 6222000912525 | C23: منتج 20 | D23: كرتونة | E23: 6 | T23: 0
A24: 21 | B24: 6222000912518 | C24: منتج 21 | D24: كرتونة | E24: 40 | T24: 0
A25: 22 | B25: 6222000908566 | C25: منتج 22 | D25: كرتونة | E25: 6 | T25: 0
A26: 23 | B26: 6222000908573 | C26: منتج 23 | D26: كرتونة | E26: 100 | T26: 0
A27: 24 | B27: 6222000912501 | C27: منتج 24 | D27: كرتونة | E27: 11 | T27: 0
A28: 25 | B28: 6222000912457 | C28: منتج 25 | D28: كرتونة | E28: 0 | T28: 0
A29: 26 | B29: 6222000901611 | C29: منتج 26 | D29: كرتونة | E29: 171 | T29: 0
A30: 27 | B30: 6222000909907 | C30: منتج 27 | D30: كرتونة | E30: 43 | T30: 0
A31: 28 | B31: 6222000911498 | C31: منتج 28 | D31: كرتونة | E31: 25 | T31: 0
A32: 29 | B32: 002771 | C32: منتج 29 | D32: كرتونة | E32: 0 | T32: 0
A33: 30 | B33: 6222000912778 | C33: منتج 30 | D33: كرتونة | E33: 350 | T33: 0
A34: 31 | B34: 6222000912822 | C34: منتج 31 | D34: كرتونة | E34: 16 | T34: 0
A35: 32 | B35: 6222000912532 | C35: منتج 32 | D35: كرتونة | E35: 0 | T35: 0
A36: 33 | B36: 6222000901697 | C36: منتج 33 | D36: كرتونة | E36: 170 | T36: 0
A37: 34 | B37: 6222000911481 | C37: منتج 34 | D37: كرتونة | E37: 0 | T37: 0
A38: 35 | B38: 6222000908276 | C38: منتج 35 | D38: كرتونة | E38: 160 | T38: 0
A39: 36 | B39: 6222000909921 | C39: منتج 36 | D39: كرتونة | E39: 0 | T39: 0
A40: 37 | B40: 6222000909839 | C40: منتج 37 | D40: كرتونة | E40: 180 | T40: 0
A41: 38 | B41: 6222000908825 | C41: منتج 38 | D41: كرتونة | E41: 0 | T41: 0
A42: 39 | B42: 6222000907637 | C42: منتج 39 | D42: كرتونة | E42: 103 | T42: 0
A43: 40 | B43: 6222000903295 | C43: منتج 40 | D43: كرتونة | E43: 0 | T43: 0
A44: 41 | B44: 6222000912006 | C44: منتج 41 | D44: كرتونة | E44: 0 | T44: 0
A45: 42 | B45: 6222000911993 | C45: منتج 42 | D45: كرتونة | E45: 0 | T45: 0
A46: 43 | B46: 6222000912013 | C46: منتج 43 | D46: كرتونة | E46: 0 | T46: 0
A47: 44 | B47: 6222000964197 | C47: منتج 44 | D47: كرتونة | E47: 0 | T47: 0
A48: 45 | B48: 6222000906630 | C48: منتج 45 | D48: كرتونة | E48: 80 | T48: 0
A49: 46 | B49: 6222000902519 | C49: منتج 46 | D49: كرتونة | E49: 22 | T49: 0
A50: 47 | B50: 6222000902557 | C50: منتج 47 | D50: كرتونة | E50: 29 | T50: 0
A51: 48 | B51: 6222000902564 | C51: منتج 48 | D51: كرتونة | E51: 35 | T51: 0
A52: 49 | B52: 6222000910033 | C52: منتج 49 | D52: كرتونة | E52: 0 | T52: 0
A53: 50 | B53: 6222000910026 | C53: منتج 50 | D53: كرتونة | E53: 0 | T53: 0
A54: 51 | B54: 6222000909945 | C54: منتج 51 | D54: كرتونة | E54: 0 | T54: 0
A55: 52 | B55: 6222000910200 | C55: منتج 52 | D55: كرتونة | E55: 570 | T55: 0
A56: 53 | B56: 6222000910514 | C56: منتج 53 | D56: كرتونة | E56: 459 | T56: 0
A57: 54 | B57: 6222000909976 | C57: منتج 54 | D57: كرتونة | E57: 250 | T57: 0
A58: 55 | B58: 6222000909983 | C58: منتج 55 | D58: كرتونة | E58: 300 | T58: 0
A59: 56 | B59: 6222000909969 | C59: منتج 56 | D59: كرتونة | E59: 132 | T59: 0
A60: 57 | B60: 622200097116 | C60: منتج 57 | D60: كرتونة | E60: 139 | T60: 0
A61: 58 | B61: 6222000912372 | C61: منتج 58 | D61: كرتونة | E61: 0 | T61: 0
A62: 59 | B62: 6222000912488 | C62: منتج 59 | D62: كرتونة | E62: 250 | T62: 0
A63: 60 | B63: 6222000914383 | C63: منتج 60 | D63: كرتونة | E63: 0 | T63: 0
A64: 61 | B64: 6222000914369 | C64: منتج 61 | D64: كرتونة | E64: 3 | T64: 0
A65: 62 | B65: 6222000914376 | C65: منتج 62 | D65: كرتونة | E65: 1 | T65: 0
A66: 63 | B66: 6222000912365 | C66: منتج 63 | D66: كرتونة | E66: 0 | T66: 0
A67: 64 | B67: 6222000902083 | C67: منتج 64 | D67: كرتونة | E67: 0 | T67: 0
A68: 65 | B68: 6222000913904 | C68: منتج 65 | D68: كرتونة | E68: 0 | T68: =SUM(F68:S68) -> 0
A69: 66 | B69: EG-670026743-2453 | C69: منتج 66 | D69: كرتونة | E69: 0 | T69: 0
A70: 67 | B70: 6222000915243 | C70: منتج 67 | D70: كرتونة | E70: 40 | T70: =SUM(F70:S70) -> 0
A71: 68 | B71: 6888000909953 | C71: منتج 68 | D71: كرتونة | E71: 60 | T71: =SUM(F71:S71) -> 0
A72: الاجمالى | E72: =SUM(E4:E70) -> 4133 | F72: =SUM(F4:F70) -> 0 | G72: 0 | H72: 0 | I72: 0 | J72: 0 | K72: 0 | L72: 0 | M72: 0 | N72: 0 | O72: 0 | P72: 0 | Q72: 0 | R72: 0 | S72: 0 | T72: 0

Sheet الاقصر
A1: رصيد توكيل ( الاقصر ) عن يوم ( 8-2-2025 )
A2: م | B2: الكود | C2: الصنف | D2: الوحدة | E2: الرصيد الدفترى بالكرتونة | F2: تاريخ الانتاج | T2: الرصيد الفعلى بالكرتونة
F3: 2024-01-01 | G3: 2024-02-01 | H3: 2024-03-01 | I3: 2024-04-01 | J3: 2024-05-01 | K3: 2024-06-01 | L3: 2024-07-01 | M3: 2024-08-01 | N3: 2024-09-01 | O3: 2024-10-01 | P3: 2024-11-01 | Q3: 2024-12-01 | R3: 2025-01-01 | S3: 2025-02-01
A4: 1 | B4: 6222000901529 | C4: منتج 1 | D4: كرتونة | E4: 8 | T4: =SUM(F4:S4) -> 0
A5: 2 | B5: 6222000901536 | C5: منتج 2 | D5: كرتونة | E5: 49 | T5: =SUM(F5:S5) -> 0
A6: 3 | B6: 6222000911733 | C6: منتج 3 | D6: كرتونة | E6: 73 | T6: 0
A7: 4 | B7: 6222000911764 | C7: منتج 4 | D7: كرتونة | E7: 111 | T7: 0
A8: 5 | B8: 00743 | C8: منتج 5 | D8: كرتونة | E8: 13 | T8: 0
A9: 6 | B9: 6222000901758 | C9: منتج 6 | D9: كرتونة | E9: 87 | T9: 0
A10: 7 | B10: 6222000912020 | C10: منتج 7 | D10: كرتونة | E10: 45 | T10: 0
A11: 8 | B11: 6222000909815 | C11: منتج 8 | D11: كرتونة | E11: 239 | T11: 0
A12: 9 | B12: 6222000908610 | C12: منتج 9 | D12: كرتونة | E12: 0 | T12: 0
A13: 10 | B13: 6222000909891 | C13: منتج 10 | D13: كرتونة | E13: 0 | T13: 0
A14: 11 | B14: 6222000911757 | C14: منتج 11 | D14: كرتونة | E14: 0 | T14: 0
A15: 12 | B15: 00744 | C15: منتج 12 | D15: كرتونة | E15: 42 | T15: 0
A16: 13 | B16: 6222000901642 | C16: منتج 13 | D16: كرتونة | E16: 293 | T16: 0
A17: 14 | B17: 6222000912037 | C17: منتج 14 | D17: كرتونة | E17: 57 | T17: 0
A18: 15 | B18: 6222000909808 | C18: منتج 15 | D18: كرتونة | E18: 917 | T18: 0
A19: 16 | B19: 6222000905268 | C19: منتج 16 | D19: كرتونة | E19: 0 | T19: 0
A20: 17 | B20: 6222000907583 | C20: منتج 17 | D20: كرتونة | E20: 34 | T20: 0
A21: 18 | B21: 6222000909884 | C21: منتج 18 | D21: كرتونة | E21: 0 | T21: 0
A22: 19 | B22: 002770 | C22: منتج 19 | D22: كرتونة | E22: 0 | T22: 0
A23: 20 | B23: 6222000912525 | C23: منتج 20 | D23: كرتونة | E23: 0 | T23: 0
A24: 21 | B24: 6222000912518 | C24: منتج 21 | D24: كرتونة | E24: 88 | T24: 0
A25: 22 | B25: 6222000908566 | C25: منتج 22 | D25: كرتونة | E25: 19 | T25: 0
A26: 23 | B26: 6222000908573 | C26: منتج 23 | D26: كرتونة | E26: 24 | T26: 0
A27: 24 | B27: 6222000912501 | C27: منتج 24 | D27: كرتونة | E27: 0 | T27: 0
A28: 25 | B28: 6222000912457 | C28: منتج 25 | D28: كرتونة | E28: 0 | T28: 0
A29: 26 | B29: 6222000901611 | C29: منتج 26 | D29: كرتونة | E29: 6.5 | T29: 0
A30: 27 | B30: 6222000909907 | C30: منتج 27 | D30: كرتونة | E30: 161 | T30: 0
A31: 28 | B31: 6222000911498 | C31: منتج 28 | D31: كرتونة | E31: 95 | T31: 0
A32: 29 | B32: 002771 | C32: منتج 29 | D32: كرتونة | E32: 42 | T32: 0
A33: 30 | B33: 6222000912778 | C33: منتج 30 | D33: كرتونة | E33: 1800 | T33: 0
A34: 31 | B34: 6222000912822 | C34: منتج 31 | D34: كرتونة | E34: 165 | T34: 0
A35: 32 | B35: 6222000912532 | C35: منتج 32 | D35: كرتونة | E35: 28 | T35: 0
A36: 33 | B36: 6222000901697 | C36: منتج 33 | D36: كرتونة | E36: 458 | T36: 0
A37: 34 | B37: 6222000911481 | C37: منتج 34 | D37: كرتونة | E37: 0 | T37: 0
A38: 35 | B38: 6222000908276 | C38: منتج 35 | D38: كرتونة | E38: 89 | T38: 0
A39: 36 | B39: 6222000909921 | C39: منتج 36 | D39: كرتونة | E39: 0 | T39: 0
A40: 37 | B40: 6222000909839 | C40: منتج 37 | D40: كرتونة | E40: 156 | T40: 0
A41: 38 | B41: 6222000908825 | C41: منتج 38 | D41: كرتونة | E41: 0 | T41: 0
A42: 39 | B42: 6222000907637 | C42: منتج 39 | D42: كرتونة | E42: 68 | T42: 0
A43: 40 | B43: 6222000903295 | C43: منتج 40 | D43: كرتونة | T43: 0
A44: 41 | B44: 6222000912006 | C44: منتج 41 | D44: كرتونة | E44: 0 | T44: 0
A45: 42 | B45: 6222000911993 | C45: منتج 42 | D45: كرتونة | E45: 21 | T45: 0
A46: 43 | B46: 6222000912013 | C46: منتج 43 | D46: كرتونة | E46: 12 | T46: 0
A47: 44 | B47: 6222000964197 | C47: منتج 44 | D47: كرتونة | E47: 0 | T47: 0
A48: 45 | B48: 6222000906630 | C48: منتج 45 | D48: كرتونة | E48: 0 | T48: 0
A49: 46 | B49: 6222000902519 | C49: منتج 46 | D49: كرتونة | E49: 0 | T49: 0
A50: 47 | B50: 6222000902557 | C50: منتج 47 | D50: كرتونة | E50: 139 | T50: 0
A51: 48 | B51: 6222000902564 | C51: منتج 48 | D51: كرتونة | E51: 103 | T51: 0
A52: 49 | B52: 6222000910033 | C52: منتج 49 | D52: كرتونة | E52: 0 | T52: 0
A53: 50 | B53: 6222000910026 | C53: منتج 50 | D53: كرتونة | E53: 0 | T53: 0
A54: 51 | B54: 6222000909945 | C54: منتج 51 | D54: كرتونة | E54: 0 | T54: 0
A55: 52 | B55: 6222000910200 | C55: منتج 52 | D55: كرتونة | E55: 711 | T55: 0
A56: 53 | B56: 6222000910514 | C56: منتج 53 | D56: كرتونة | E56: 454 | T56: 0
A57: 54 | B57: 6222000909976 | C57: منتج 54 | D57: كرتونة | E57: 492 | T57: 0
A58: 55 | B58: 6222000909983 | C58: منتج 55 | D58: كرتونة | E58: 0 | T58: 0
A59: 56 | B59: 6222000909969 | C59: منتج 56 | D59: كرتونة | E59: 0 | T59: 0
A60: 57 | B60: 622200097116 | C60: منتج 57 | D60: كرتونة | E60: 198 | T60: 0
A61: 58 | B61: 6222000912372 | C61: منتج 58 | D61: كرتونة | E61: 711 | T61: 0
A62: 59 | B62: 6222000912488 | C62: منتج 59 | D62: كرتونة | E62: 593 | T62: 0
A63: 60 | B63: 6222000914383 | C63: منتج 60 | D63: كرتونة | E63: 0 | T63: 0
A64: 61 | B64: 6222000914369 | C64: منتج 61 | D64: كرتونة | E64: 0 | T64: 0
A65: 62 | B65: 6222000914376 | C65: منتج 62 | D65: كرتونة | E65: 0 | T65: 0
A66: 63 | B66: 6222000912365 | C66: منتج 63 | D66: كرتونة | E66: 0 | T66: 0
A67: 64 | B67: 6222000902083 | C67: منتج 64 | D67: كرتونة | E67: 0 | T67: 0
A68: 65 | B68: 6222000913904 | C68: منتج 65 | D68: كرتونة | E68: 0 | T68: 0
A69: 66 | B69: EG-670026743-2453 | C69: منتج 66 | D69: كرتونة | E69: 0 | T69: =SUM(F69:S69) -> 0
A70: 67 | B70: 6222000915243 | C70: منتج 67 | D70: كرتونة | E70: 0 | T70: 0
A71: 68 | B71: 6888000909953 | C71: منتج 68 | D71: كرتونة | E71: 177 | T71: 0
A72: الاجمالى | E72: =SUM(E4:E71) -> 8778.5 | F72: =SUM(F4:F71) -> 0 | G72: 0 | H72: 0 | I72: 0 | J72: 0 | K72: 0 | L72: 0 | M72: 0 | N72: 0 | O72: 0 | P72: 0 | Q72: 0 | R72: 0 | S72: 0 | T72: 0

Sheet اسوان
A1: رصيد توكيل ( أسوان ) عن يوم (8-2-2025 )
A2: م | B2: الكود | C2: الصنف | D2: الوحدة | E2: الرصيد الدفترى بالكرتونة | F2: تاريخ الانتاج | T2: الرصيد الفعلى بالكرتونة
F3: 2024-01-01 | G3: 2024-02-01 | H3: 2024-03-01 | I3: 2024-04-01 | J3: 2024-05-01 | K3: 2024-06-01 | L3: 2024-07-01 | M3: 2024-08-01 | N3: 2024-09-01 | O3: 2024-10-01 | P3: 2024-11-01 | Q3: 2024-12-01 | R3: 2025-01-01 | S3: 2025-02-01
A4: 1 | B4: 6222000901529 | C4: منتج 1 | D4: كرتونة | E4: 160 | T4: =SUM(F4:S4) -> 0
A5: 2 | B5: 6222000901536 | C5: منتج 2 | D5: كرتونة | E5: 152 | T5: =SUM(F5:S5) -> 0
A6: 3 | B6: 6222000911733 | C6: منتج 3 | D6: كرتونة | E6: 40 | T6: 0
A7: 4 | B7: 6222000911764 | C7: منتج 4 | D7: كرتونة | E7: 43 | T7: 0
A8: 5 | B8: 00743 | C8: منتج 5 | D8: كرتونة | E8: 20 | T8: 0
A9: 6 | B9: 6222000901758 | C9: منتج 6 | D9: كرتونة | E9: 55 | T9: 0
A10: 7 | B10: 6222000912020 | C10: منتج 7 | D10: كرتونة | E10: 25 | T10: 0
A11: 8 | B11: 6222000909815 | C11: منتج 8 | D11: كرتونة | E11: 700 | T11: 0
A12: 9 | B12: 6222000908610 | C12: منتج 9 | D12: كرتونة | E12: 12 | T12: 0
A13: 10 | B13: 6222000909891 | C13: منتج 10 | D13: كرتونة | E13: 14 | T13: 0
A14: 11 | B14: 6222000911757 | C14: منتج 11 | D14: كرتونة | E14: 0 | T14: 0
A15: 12 | B15: 00744 | C15: منتج 12 | D15: كرتونة | E15: 50 | T15: 0
A16: 13 | B16: 6222000901642 | C16: منتج 13 | D16: كرتونة | E16: 78 | T16: 0
A17: 14 | B17: 6222000912037 | C17: منتج 14 | D17: كرتونة | E17: 100 | T17: 0
A18: 15 | B18: 6222000909808 | C18: منتج 15 | D18: كرتونة | E18: 94 | T18: 0
A19: 16 | B19: 6222000905268 | C19: منتج 16 | D19: كرتونة | E19: 0 | T19: 0
A20: 17 | B20: 6222000907583 | C20: منتج 17 | D20: كرتونة | E20: 205 | T20: 0
A21: 18 | B21: 6222000909884 | C21: منتج 18 | D21: كرتونة | E21: 78 | T21: 0
A22: 19 | B22: 002770 | C22: منتج 19 | D22: كرتونة | E22: 0 | T22: 0
A23: 20 | B23: 6222000912525 | C23: منتج 20 | D23: كرتونة | E23: 0 | T23: 0
A24: 21 | B24: 6222000912518 | C24: منتج 21 | D24: كرتونة | E24: 14 | T24: 0
A25: 22 | B25: 6222000908566 | C25: منتج 22 | D25: كرتونة | E25: 75 | T25: 0
A26: 23 | B26: 6222000908573 | C26: منتج 23 | D26: كرتونة | E26: 50 | T26: 0
A27: 24 | B27: 6222000912501 | C27: منتج 24 | D27: كرتونة | E27: 0 | T27: 0
A28: 25 | B28: 6222000912457 | C28: منتج 25 | D28: كرتونة | E28: 0 | T28: 0
A29: 26 | B29: 6222000901611 | C29: منتج 26 | D29: كرتونة | E29: 401 | T29: 0
A30: 27 | B30: 6222000909907 | C30: منتج 27 | D30: كرتونة | E30: 8 | T30: 0
A31: 28 | B31: 6222000911498 | C31: منتج 28 | D31: كرتونة | E31: 54 | T31: 0
A32: 29 | B32: 002771 | C32: منتج 29 | D32: كرتونة | E32: 0 | T32: 0
A33: 30 | B33: 6222000912778 | C33: منتج 30 | D33: كرتونة | E33: 2169 | T33: 0
A34: 31 | B34: 6222000912822 | C34: منتج 31 | D34: كرتونة | E34: 9 | T34: 0
A35: 32 | B35: 6222000912532 | C35: منتج 32 | D35: كرتونة | E35: 120 | T35: 0
A36: 33 | B36: 6222000901697 | C36: منتج 33 | D36: كرتونة | E36: 341 | T36: 0
A37: 34 | B37: 6222000911481 | C37: منتج 34 | D37: كرتونة | E37: 0 | T37: 0
A38: 35 | B38: 6222000908276 | C38: منتج 35 | D38: كرتونة | E38: 258 | T38: 0
A39: 36 | B39: 6222000909921 | C39: منتج 36 | D39: كرتونة | E39: 0 | T39: 0
A40: 37 | B40: 6222000909839 | C40: منتج 37 | D40: كرتونة | E40: 703 | T40: 0
A41: 38 | B41: 6222000908825 | C41: منتج 38 | D41: كرتونة | E41: 125 | T41: 0
A42: 39 | B42: 6222000907637 | C42: منتج 39 | D42: كرتونة | E42: 59 | T42: 0
A43: 40 | B43: 6222000903295 | C43: منتج 40 | D43: كرتونة | E43: 53 | T43: 0
A44: 41 | B44: 6222000912006 | C44: منتج 41 | D44: كرتونة | E44: 42 | T44: 0
A45: 42 | B45: 6222000911993 | C45: منتج 42 | D45: كرتونة | E45: 42 | T45: 0
A46: 43 | B46: 6222000912013 | C46: منتج 43 | D46: كرتونة | E46: 34 | T46: 0
A47: 44 | B47: 6222000964197 | C47: منتج 44 | D47: كرتونة | E47: 0 | T47: 0
A48: 45 | B48: 6222000906630 | C48: منتج 45 | D48: كرتونة | E48: 0 | T48: 0
A49: 46 | B49: 6222000902519 | C49: منتج 46 | D49: كرتونة | E49: 51 | T49: 0
A50: 47 | B50: 6222000902557 | C50: منتج 47 | D50: كرتونة | E50: 211 | T50: 0
A51: 48 | B51: 6222000902564 | C51: منتج 48 | D51: كرتونة | E51: 42 | T51: 0
A52: 49 | B52: 6222000910033 | C52: منتج 49 | D52: كرتونة | E52: 0 | T52: 0
A53: 50 | B53: 6222000910026 | C53: منتج 50 | D53: كرتونة | E53: 0 | T53: 0
A54: 51 | B54: 6222000909945 | C54: منتج 51 | D54: كرتونة | E54: 0 | T54: 0
A55: 52 | B55: 6222000910200 | C55: منتج 52 | D55: كرتونة | E55: 754 | T55: 0
A56: 53 | B56: 6222000910514 | C56: منتج 53 | D56: كرتونة | E56: 726 | T56: 0
A57: 54 | B57: 6222000909976 | C57: منتج 54 | D57: كرتونة | E57: 246 | T57: 0
A58: 55 | B58: 6222000909983 | C58: منتج 55 | D58: كرتونة | E58: 0 | T58: 0
A59: 56 | B59: 6222000909969 | C59: منتج 56 | D59: كرتونة | E59: 434 | T59: 0
A60: 57 | B60: 622200097116 | C60: منتج 57 | D60: كرتونة | E60: 0 | T60: 0
A61: 58 | B61: 6222000912372 | C61: منتج 58 | D61: كرتونة | E61: 12 | T61: 0
A62: 59 | B62: 6222000912488 | C62: منتج 59 | D62: كرتونة | E62: 302 | T62: 0
A63: 60 | B63: 6222000914383 | C63: منتج 60 | D63: كرتونة | E63: 0 | T63: 0
A64: 61 | B64: 6222000914369 | C64: منتج 61 | D64: كرتونة | E64: 0 | T64: 0
A65: 62 | B65: 6222000914376 | C65: منتج 62 | D65: كرتونة | E65: 0 | T65: 0
A66: 63 | B66: 6222000912365 | C66: منتج 63 | D66: كرتونة | E66: 0 | T66: 0
A67: 64 | B67: 6222000902083 | C67: منتج 64 | D67: كرتونة | E67: 0 | T67: 0
A68: 65 | B68: 6222000913904 | C68: منتج 65 | D68: كرتونة | E68: 0 | T68: 0
A69: 66 | B69: EG-670026743-2453 | C69: منتج 66 | D69: كرتونة | E69: 0 | T69: =SUM(F69:S69) -> 0
A70: 67 | B70: 6222000915243 | C70: منتج 67 | D70: كرتونة | E70: 0 | T70: 0
A71: 68 | B71: 6888000909953 | C71: منتج 68 | D71: كرتونة | E71: 68 | T71: 0
A72: الاجمالى | E72: =SUM(E4:E71) -> 9229 | F72: =SUM(F4:F71) -> 0 | G72: 0 | H72: 0 | I72: 0 | J72: 0 | K72: 0 | L72: 0 | M72: 0 | N72: 0 | O72: 0 | P72: 0 | Q72: 0 | R72: 0 | S72: 0 | T72: 0

Sheet ادفو
A1: رصيد توكيل ادفو 8/2/2024
A2: م | B2: الكود | C2: الصنف | D2: الوحدة | E2: الرصيد الدفترى بالكرتونة | F2: تاريخ الانتاج | T2: الرصيد الفعلى بالكرتونة
F3: 2024-01-01 | G3: 2024-02-01 | H3: 2024-03-01 | I3: 2024-04-01 | J3: 2024-05-01 | K3: 2024-06-01 | L3: 2024-07-01 | M3: 2024-08-01 | N3: 2024-09-01 | O3: 2024-10-01 | P3: 2024-11-01 | Q3: 2024-12-01 | R3: 2025-01-01 | S3: 2025-02-01
A4: 1 | B4: 6222000901529 | C4: منتج 1 | D4: كرتونة | E4: 178 | T4: =SUM(F4:S4) -> 0
A5: 2 | B5: 6222000901536 | C5: منتج 2 | D5: كرتونة | E5: 55 | T5: =SUM(F5:S5) -> 0
A6: 3 | B6: 6222000911733 | C6: منتج 3 | D6: كرتونة | E6: 8 | T6: 0
A7: 4 | B7: 6222000911764 | C7: منتج 4 | D7: كرتونة | E7: 19 | T7: 0
A8: 5 | B8: 00743 | C8: منتج 5 | D8: كرتونة | E8: 20 | T8: 0
A9: 6 | B9: 6222000901758 | C9: منتج 6 | D9: كرتونة | E9: 0 | T9: 0
A10: 7 | B10: 6222000912020 | C10: منتج 7 | D10: كرتونة | E10: 8 | T10: 0
A11: 8 | B11: 6222000909815 | C11: منتج 8 | D11: كرتونة | E11: 72 | T11: 0
A12: 9 | B12: 6222000908610 | C12: منتج 9 | D12: كرتونة | E12: 62 | T12: 0
A13: 10 | B13: 6222000909891 | C13: منتج 10 | D13: كرتونة | E13: 1 | T13: 0
A14: 11 | B14: 6222000911757 | C14: منتج 11 | D14: كرتونة | E14: 0 | T14: 0
A15: 12 | B15: 00744 | C15: منتج 12 | D15: كرتونة | E15: 36 | T15: 0
A16: 13 | B16: 6222000901642 | C16: منتج 13 | D16: كرتونة | E16: 0 | T16: 0
A17: 14 | B17: 6222000912037 | C17: منتج 14 | D17: كرتونة | E17: 29 | T17: 0
A18: 15 | B18: 6222000909808 | C18: منتج 15 | D18: كرتونة | E18: 0 | T18: 0
A19: 16 | B19: 6222000905268 | C19: منتج 16 | D19: كرتونة | E19: 0 | T19: 0
A20: 17 | B20: 6222000907583 | C20: منتج 17 | D20: كرتونة | E20: 0 | T20: 0
A21: 18 | B21: 6222000909884 | C21: منتج 18 | D21: كرتونة | E21: 0 | T21: 0
A22: 19 | B22: 002770 | C22: منتج 19 | D22: كرتونة | E22: 0 | T22: 0
A23: 20 | B23: 6222000912525 | C23: منتج 20 | D23: كرتونة | E23: 14 | T23: 0
A24: 21 | B24: 6222000912518 | C24: منتج 21 | D24: كرتونة | E24: 28 | T24: 0
A25: 22 | B25: 6222000908566 | C25: منتج 22 | D25: كرتونة | E25: 25 | T25: 0
A26: 23 | B26: 6222000908573 | C26: منتج 23 | D26: كرتونة | E26: 25 | T26: 0
A27: 24 | B27: 6222000912501 | C27: منتج 24 | D27: كرتونة | E27: 38 | T27: 0
A28: 25 | B28: 6222000912457 | C28: منتج 25 | D28: كرتونة | E28: 0 | T28: 0
A29: 26 | B29: 6222000901611 | C29: منتج 26 | D29: كرتونة | E29: 141 | T29: 0
A30: 27 | B30: 6222000909907 | C30: منتج 27 | D30: كرتونة | E30: 0 | T30: 0
A31: 28 | B31: 6222000911498 | C31: منتج 28 | D31: كرتونة | E31: 49 | T31: 0
A32: 29 | B32: 002771 | C32: منتج 29 | D32: كرتونة | E32: 0 | T32: 0
A33: 30 | B33: 6222000912778 | C33: منتج 30 | D33: كرتونة | E33: 113 | T33: 0
A34: 31 | B34: 6222000912822 | C34: منتج 31 | D34: كرتونة | E34: 0 | T34: 0
A35: 32 | B35: 6222000912532 | C35: منتج 32 | D35: كرتونة | E35: 21 | T35: 0
A36: 33 | B36: 6222000901697 | C36: منتج 33 | D36: كرتونة | E36: 468 | T36: 0
A37: 34 | B37: 6222000911481 | C37: منتج 34 | D37: كرتونة | E37: 0 | T37: 0
A38: 35 | B38: 6222000908276 | C38: منتج 35 | D38: كرتونة | E38: 22 | T38: 0
A39: 36 | B39: 6222000909921 | C39: منتج 36 | D39: كرتونة | E39: 0 | T39: 0
A40: 37 | B40: 6222000909839 | C40: منتج 37 | D40: كرتونة | E40: 65 | T40: 0
A41: 38 | B41: 6222000908825 | C41: منتج 38 | D41: كرتونة | E41: 43 | T41: 0
A42: 39 | B42: 6222000907637 | C42: منتج 39 | D42: كرتونة | E42: 0 | T42: 0
A43: 40 | B43: 6222000903295 | C43: منتج 40 | D43: كرتونة | E43: 0 | T43: 0
A44: 41 | B44: 6222000912006 | C44: منتج 41 | D44: كرتونة | E44: 13 | T44: 0
A45: 42 | B45: 6222000911993 | C45: منتج 42 | D45: كرتونة | E45: 22 | T45: 0
A46: 43 | B46: 6222000912013 | C46: منتج 43 | D46: كرتونة | E46: 12 | T46: 0
A47: 44 | B47: 6222000964197 | C47: منتج 44 | D47: كرتونة | E47: 0 | T47: 0
A48: 45 | B48: 6222000906630 | C48: منتج 45 | D48: كرتونة | E48: 23 | T48: 0
A49: 46 | B49: 6222000902519 | C49: منتج 46 | D49: كرتونة | E49: 19 | T49: 0
A50: 47 | B50: 6222000902557 | C50: منتج 47 | D50: كرتونة | E50: 87 | T50: 0
A51: 48 | B51: 6222000902564 | C51: منتج 48 | D51: كرتونة | E51: 80 | T51: 0
A52: 49 | B52: 6222000910033 | C52: منتج 49 | D52: كرتونة | E52: 0 | T52: 0
A53: 50 | B53: 6222000910026 | C53: منتج 50 | D53: كرتونة | E53: 0 | T53: 0
A54: 51 | B54: 6222000909945 | C54: منتج 51 | D54: كرتونة | E54: 0 | T54: 0
A55: 52 | B55: 6222000910200 | C55: منتج 52 | D55: كرتونة | E55: 776 | T55: 0
A56: 53 | B56: 6222000910514 | C56: منتج 53 | D56: كرتونة | E56: 413 | T56: 0
A57: 54 | B57: 6222000909976 | C57: منتج 54 | D57: كرتونة | E57: 558 | T57: 0
A58: 55 | B58: 6222000909983 | C58: منتج 55 | D58: كرتونة | E58: 0 | T58: 0
A59: 56 | B59: 6222000909969 | C59: منتج 56 | D59: كرتونة | E59: 0 | T59: 0
A60: 57 | B60: 622200097116 | C60: منتج 57 | D60: كرتونة | E60: 0 | T60: 0
A61: 58 | B61: 6222000912372 | C61: منتج 58 | D61: كرتونة | E61: 15 | T61: 0
A62: 59 | B62: 6222000912488 | C62: منتج 59 | D62: كرتونة | E62: 1234 | T62: 0
A63: 60 | B63: 6222000914383 | C63: منتج 60 | D63: كرتونة | E63: 0 | T63: 0
A64: 61 | B64: 6222000914369 | C64: منتج 61 | D64: كرتونة | E64: 0 | T64: 0
A65: 62 | B65: 6222000914376 | C65: منتج 62 | D65: كرتونة | E65: 0 | T65: 0
A66: 63 | B66: 6222000912365 | C66: منتج 63 | D66: كرتونة | E66: 0 | T66: 0
A67: 64 | B67: 6222000902083 | C67: منتج 64 | D67: كرتونة | E67: 0 | T67: 0
A68: 65 | B68: 6222000913904 | C68: منتج 65 | D68: كرتونة | E68: 0 | T68: 0
A69: 66 | B69: EG-670026743-2453 | C69: منتج 66 | D69: كرتونة | E69: 0 | T69: =SUM(F69:S69) -> 0
A70: 67 | B70: 6222000915243 | C70: منتج 67 | D70: كرتونة | E70: 0 | T70: 0
A71: 68 | B71: 6888000909953 | C71: منتج 68 | D71: كرتونة | E71: 54 | T71: 0
A72: الاجمالى | E72: =SUM(E4:E71) -> 4846 | F72: =SUM(F4:F71) -> 0 | G72: 0 | H72: 0 | I72: 0 | J72: 0 | K72: 0 | L72: 0 | M72: 0 | N72: 0 | O72: 0 | P72: 0 | Q72: 0 | R72: 0 | S72: 0 | T72: 0
